Department family,Entity,Date,Expense Type, Expense Area , Supplier ,Transaction number, AP Amount (�) ,Purchase invoice number,Comments from NHS England
Department of Health,NHS England,31/01/2014,Purchase of healthcare from non-NHS bodies, Secondary and Community Dental Care , BODMIN NHS TREATMENT CENTRE ,2197723," 40,402.09 ",NVC24JAN14O,
Department of Health,NHS England,31/01/2014,Services from other NHS bodies, Secondary and Community Dental Care , GLOUCESTERSHIRE CARE SERVICES NHS TRUST ,2289843," 251,866.00 ",50501854 ,
Department of Health,NHS England,31/01/2014,Services from other NHS bodies, Public Health , GLOUCESTERSHIRE CARE SERVICES NHS TRUST ,2289843," 438,043.64 ",50501854 ,
Department of Health,NHS England,31/01/2014,Services from other NHS bodies, Specialised Commissioning , GREAT WESTERN HOSPITALS NHS FOUNDATION TRUST ,2355758,"-550,399.00 ",16944706 ,
Department of Health,NHS England,31/01/2014,Services from other NHS bodies, Specialised Commissioning , GREAT WESTERN HOSPITALS NHS FOUNDATION TRUST ,2405918," 329,000.00 ",16944781 ,
Department of Health,NHS England,31/01/2014,Purchase of healthcare from non-NHS bodies, Specialised Commissioning , NHS BLOOD & TRANSPLANT ,2182917," 28,513.08 ",528454 ,
Department of Health,NHS England,31/01/2014,Purchase of healthcare from non-NHS bodies, Specialised Commissioning , NHS BLOOD & TRANSPLANT ,2394780," 28,513.08 ",530563 ,
Department of Health,NHS England,31/01/2014,Purchase of healthcare from non-NHS bodies, Specialised Commissioning , NHS BLOOD & TRANSPLANT ,2182928," 36,648.88 ",528409 ,
Department of Health,NHS England,31/01/2014,Purchase of healthcare from non-NHS bodies, Specialised Commissioning , NHS BLOOD & TRANSPLANT ,2394775," 38,173.59 ",530517 ,
Department of Health,NHS England,31/01/2014,Purchase of healthcare from non-NHS bodies, Other , NHS DIRECT ,2289787," 2,057,503.97 ",702134 ,
Department of Health,NHS England,31/01/2014,Purchase of healthcare from non-NHS bodies, Other , NHS DIRECT ,2466041," 2,057,503.97 ",702191 ,
Department of Health,NHS England,31/01/2014,Services from other NHS bodies, Health & Justice , NHS NORTH WEST SURREY CCG ,2208736," 568,844.00 ",7026700123 ,
Department of Health,NHS England,31/01/2014,Services from other NHS bodies, Primary Care ," NHS NORTH, EAST, WEST DEVON CCG ",2393833," 44,833.33 ",7031000199 ,
Department of Health,NHS England,31/01/2014,Purchase of healthcare from non-NHS bodies, NHS England Running Costs , NHS SHARED BUSINESS SERVICES LTD ,2368327," 40,047.61 ",100021600 ,
Department of Health,NHS England,31/01/2014,Purchase of healthcare from non-NHS bodies, NHS England Running Costs , NHS SHARED BUSINESS SERVICES LTD ,2196473," 45,295.59 ",100021255 ,
Department of Health,NHS England,31/01/2014,Purchase of healthcare from non-NHS bodies, NHS England Running Costs , NHS SHARED BUSINESS SERVICES LTD ,2334603," 63,128.57 ",100021606 ,
Department of Health,NHS England,31/01/2014,Purchase of healthcare from non-NHS bodies, NHS England Running Costs , NHS SHARED BUSINESS SERVICES LTD ,2175330," 63,152.80 ",100020010 ,
Department of Health,NHS England,31/01/2014,Purchase of healthcare from non-NHS bodies, NHS England Running Costs , NHS SHARED BUSINESS SERVICES LTD ,2334602," 67,746.78 ",100021607 ,
Department of Health,NHS Anglia CSU,31/01/2014,Establishment, Other , DIONYSYS LTD ,2334438," 76,199.94 ",27283 ,
Department of Health,NHS Anglia CSU,31/01/2014,Premises, Other , NHS PROPERTY SERVICES LTD ,2391248,"-69,607.08 ",48312132 ,
Department of Health,NHS Anglia CSU,31/01/2014,Premises, Other , NHS PROPERTY SERVICES LTD ,2391260,"-61,692.00 ",48312133 ,
Department of Health,NHS Anglia CSU,31/01/2014,Premises, Other , NHS PROPERTY SERVICES LTD ,2391207," 61,692.00 ",48297849 ,
Department of Health,NHS Anglia CSU,31/01/2014,Premises, Other , NHS PROPERTY SERVICES LTD ,2391217," 69,607.08 ",48297848 ,
Department of Health,NHS Arden CSU,31/01/2014,Establishment, Other , COVENTRY AND WARWICKSHIRE PARTNERSHIP NHS TRUST ,2438862," 92,389.25 ",18509 ,
Department of Health,NHS Arden CSU,31/01/2014,Establishment, Other , WORCESTERSHIRE ACUTE HOSPITALS NHS TRUST ,2377120," 30,215.00 ",4423579 ,
Department of Health,NHS Arden CSU,31/01/2014,Establishment, Other , WORCESTERSHIRE ACUTE HOSPITALS NHS TRUST ,2377120," 89,399.00 ",4423579 ,
Department of Health,NHS Central Midlands CSU,31/01/2014,Establishment, Other , ATOS ORIGIN IT SERVICES UK LTD ,2193088," 25,416.00 ",5584143349 ,
Department of Health,NHS Central Midlands CSU,31/01/2014,Establishment, Other , DUDLEY GROUP HOSPITALS NHS FOUNDATION TRUST ,2271245," 48,248.24 ",1000017514 ,
Department of Health,NHS Central Midlands CSU,31/01/2014,Consultancy services, Other , EXPRESS INTERPRETING & TRANSLATION ,2287752," 33,725.00 ",EX134,
Department of Health,NHS Central Midlands CSU,31/01/2014,Consultancy services, Other , FIVE STAR INTERPRETING ,2391605," 23,326.25 ",114169 ,
Department of Health,NHS Central Southern CSU,31/01/2014,Establishment, Other , BDS SOLUTIONS (BOWLEY DATA SYSTEMS) ,2450063," 40,800.00 ",15360 ,
Department of Health,NHS Central Southern CSU,31/01/2014,Establishment, Other , BT GLOBAL SERVICES ,2313518," 34,892.57 ",790106786 ,
Department of Health,NHS Central Southern CSU,31/01/2014,Establishment, Other , EGTON MEDICAL INFORMATION SYSTEMS LTD ,2328195," 53,636.17 ",IN7486211,
Department of Health,NHS Central Southern CSU,31/01/2014,Consultancy services, Other , ERNST & YOUNG LLP ,2328318," 95,218.80 ",GB10300012109,
Department of Health,NHS Central Southern CSU,31/01/2014,Establishment, Other , HEALTHCARE COMPUTING LTD ,2313645," 30,009.00 ",44680 ,
Department of Health,NHS Central Southern CSU,31/01/2014,Establishment, Other , HEALTHCARE COMPUTING LTD ,2193185," 51,649.80 ",305 ,
Department of Health,NHS Central Southern CSU,31/01/2014,Establishment, Other , HEALTHCARE COMPUTING LTD ,2313637," 51,675.00 ",44676 ,
Department of Health,NHS Central Southern CSU,31/01/2014,Consultancy services, Other , PRIMARY CARE COMMISSIONING CIC ,2287623," 94,948.80 ",3253 ,
Department of Health,NHS Central Southern CSU,31/01/2014,Establishment, Other , TABLEAU SOFTWARE ,2287745," 96,278.61 ",IN2336203,
Department of Health,NHS Central Southern CSU,31/01/2014,Establishment, Other , UNIVERSITY HOSPITAL BIRMINGHAM NHS FOUNDATION TRUST ,2423917," 27,500.00 ",OPP034579,
Department of Health,NHS Cheshire And Merseyside CSU,31/01/2014,Establishment, Other , ANS GROUP PLC ,2222635," 22,398.88 ",998762 ,
Department of Health,NHS Cheshire And Merseyside CSU,31/01/2014,Supplies and services � general, Other , AXON RESOURCING LTD ,2252953," 27,300.00 ",61073 ,
Department of Health,NHS Cheshire And Merseyside CSU,31/01/2014,Consultancy services, Other , BENCHMARK MANAGEMENT CONSULTING LTD ,2329024," 37,800.00 ",BMC499,
Department of Health,NHS Cheshire And Merseyside CSU,31/01/2014,Consultancy services, Other , BENCHMARK MANAGEMENT CONSULTING LTD ,2329044," 41,265.05 ",BMC500,
Department of Health,NHS Cheshire And Merseyside CSU,31/01/2014,Establishment, Other , BRAY LEINO LTD ,2378512," 34,680.00 ",L28636,
Department of Health,NHS Cheshire And Merseyside CSU,31/01/2014,Establishment, Other , EGTON MEDICAL INFORMATION SYSTEMS LTD ,2206288," 65,880.00 ",IN7298211,
Department of Health,NHS Cheshire And Merseyside CSU,31/01/2014,Establishment, Other , EGTON MEDICAL INFORMATION SYSTEMS LTD ,2206290," 90,000.00 ",IN7297711,
Department of Health,NHS England,31/01/2014,GPMS/APMS and PCTMS, Primary Care , 157 MEDICAL PRACTICE ,2244167," 26,831.05 ",LNE000003592,
Department of Health,NHS England,31/01/2014,Purchase of healthcare from non-NHS bodies, Public Health , 1ST RETINAL SCREEN ,2354910," 35,513.64 ",494 ,
Department of Health,NHS England,31/01/2014,Purchase of healthcare from non-NHS bodies, Public Health , 1ST RETINAL SCREEN ,2165072," 52,345.19 ",491 ,
Department of Health,NHS England,31/01/2014,Purchase of healthcare from non-NHS bodies, Public Health , 1ST RETINAL SCREEN ,2183067," 52,345.19 ",491A,
Department of Health,NHS England,31/01/2014,Purchase of healthcare from non-NHS bodies, Public Health , 1ST RETINAL SCREEN ,2256226," 52,345.19 ",493 ,
Department of Health,NHS England,31/01/2014,Purchase of healthcare from non-NHS bodies, Public Health , 1ST RETINAL SCREEN ,2353944," 56,565.54 ",492 ,
Department of Health,NHS England,31/01/2014,Services from other NHS bodies, Specialised Commissioning , 2GETHER NHS FOUNDATION TRUST ,2275825," 154,834.96 ",9004222 ,
Department of Health,NHS England,31/01/2014,Services from other NHS bodies, Specialised Commissioning , 2GETHER NHS FOUNDATION TRUST ,2427704," 154,834.96 ",9004259 ,
Department of Health,NHS England,31/01/2014,Purchase of healthcare from non-NHS bodies, NHS England Running Costs , 3M SECURITY SYSTEMS DIVISION ,2145246," 2,529.19 ",125970 ,
Department of Health,NHS England,31/01/2014,Establishment, NHS England Running Costs , 3M SECURITY SYSTEMS DIVISION ,2175412," 5,775.35 ",125984 ,
Department of Health,NHS England,31/01/2014,Purchase of healthcare from non-NHS bodies, NHS England Running Costs , 3M SECURITY SYSTEMS DIVISION ,2175412," 19,160.30 ",125984 ,
Department of Health,NHS England,31/01/2014,Establishment, NHS England Running Costs , 3M SECURITY SYSTEMS DIVISION ,2145246," 19,729.19 ",125970 ,
Department of Health,NHS England,31/01/2014,Establishment, NHS England Running Costs , 3M SECURITY SYSTEMS DIVISION ,2145282," 20,881.63 ",125786 ,
Department of Health,NHS England,31/01/2014,Establishment, NHS England Running Costs , 3M SECURITY SYSTEMS DIVISION ,1923553," 22,278.46 ",125102 ,
Department of Health,NHS England,31/01/2014,GPMS/APMS and PCTMS, Primary Care , 4 SEASONS MEDICAL CENTRE LTD ,2211740," 33,266.51 ",CH000004964,
Department of Health,NHS England,31/01/2014,Services from other NHS bodies, Public Health , 5 BOROUGHS PARTNERSHIP NHS FOUNDATION TRUST ,2275845," 279,923.00 ",16030404 ,
Department of Health,NHS England,31/01/2014,Services from other NHS bodies, Specialised Commissioning , 5 BOROUGHS PARTNERSHIP NHS FOUNDATION TRUST ,2222803," 747,125.00 ",16030405 ,
Department of Health,NHS England,31/01/2014,Services from other NHS bodies, Primary Care , 543 DENTAL CENTRE LTD ,2242772," 25,777.00 ",143 ,
Department of Health,NHS England,31/01/2014,GPMS/APMS and PCTMS, Primary Care , A F FROLEY ,2356230," 38,479.86 ",LNP000005144,
Department of Health,NHS England,31/01/2014,GPMS/APMS and PCTMS, Primary Care , A HAFEEZ ,2231298," 36,850.91 ",LNP000004961,
Department of Health,NHS England,31/01/2014,GPMS/APMS and PCTMS, Primary Care , A MOGHAL ,2226889,"-52,331.38 ",LNC000003116,
Department of Health,NHS England,31/01/2014,GPMS/APMS and PCTMS, Primary Care , A MOGHAL ,2226890," 123,466.23 ",LNC000003117,
Department of Health,NHS England,31/01/2014,GPMS/APMS and PCTMS, Primary Care , ABAZIE OD & PARTNER ,2428762," 33,203.41 ",EX000011350,
Department of Health,NHS England,31/01/2014,GPMS/APMS and PCTMS, Primary Care , ABBEY DALE MEDICAL CENTRE ,2396848," 35,227.07 ",LA000007790,
Department of Health,NHS England,31/01/2014,GPMS/APMS and PCTMS, Primary Care , ABBEY HOUSE MEDICAL PRACTICE ,2229584,"-47,016.53 ",NO000003745,
Department of Health,NHS England,31/01/2014,GPMS/APMS and PCTMS, Primary Care , ABBEY HOUSE MEDICAL PRACTICE ,2229585," 206,116.34 ",NO000003746,
Department of Health,NHS England,31/01/2014,GPMS/APMS and PCTMS, Primary Care , ABBEY LANE SURGERY ,2227245," 55,362.41 ",SHE000003009,
Department of Health,NHS England,31/01/2014,GPMS/APMS and PCTMS, Primary Care , ABBEY MANOR MEDICAL PRACTICE ,2225489," 39,919.29 ",SM000002693,
Department of Health,NHS England,31/01/2014,GPMS/APMS and PCTMS, Primary Care , ABBEY MEAD SURGERY ,2337637," 79,362.92 ",SO000011068,
Department of Health,NHS England,31/01/2014,GPMS/APMS and PCTMS, Primary Care , ABBEY MEDICAL CENTER KENILWORTH ,2396240," 96,657.34 ",WA000003524,
Department of Health,NHS England,31/01/2014,GPMS/APMS and PCTMS, Primary Care , ABBEY MEDICAL CENTER LONDON ,2414931," 95,111.31 ",LND000003472,
Department of Health,NHS England,31/01/2014,GPMS/APMS and PCTMS, Primary Care , ABBEY MEDICAL PRACTICE EVESHAM ,2406222," 94,224.19 ",WR000004092,
Department of Health,NHS England,31/01/2014,GPMS/APMS and PCTMS, Primary Care , ABBEY MEDICAL PRACTICE WELLINGBOROUGH ,2229586,"-37,919.95 ",NO000003747,
Department of Health,NHS England,31/01/2014,GPMS/APMS and PCTMS, Primary Care , ABBEY MEDICAL PRACTICE WELLINGBOROUGH ,2244089," 165,349.05 ",NO000003748,
Department of Health,NHS England,31/01/2014,GPMS/APMS and PCTMS, Primary Care , ABBEY PRACTICE GROUP ,2341172," 49,425.48 ",DUD000001463,
Department of Health,NHS England,31/01/2014,GPMS/APMS and PCTMS, Primary Care , ABBEY ROAD HEALTH CENTRE ,2337018," 88,013.07 ",LNA000004514,
Department of Health,NHS England,31/01/2014,GPMS/APMS and PCTMS, Primary Care , ABBEY SURGERY TAVISTOCK ,2339778,"-25,746.92 ",DN000008369,
Department of Health,NHS England,31/01/2014,GPMS/APMS and PCTMS, Primary Care , ABBEY SURGERY TAVISTOCK ,2339779," 124,301.84 ",DN000008370,
Department of Health,NHS England,31/01/2014,GPMS/APMS and PCTMS, Primary Care , ABBEY VIEW MEDICAL CENTRE ,2211111,"-133,650.97 ",DO000004531,
Department of Health,NHS England,31/01/2014,GPMS/APMS and PCTMS, Primary Care , ABBEY VIEW MEDICAL CENTRE ,2211112," 234,460.24 ",DO000004532,
Department of Health,NHS England,31/01/2014,GPMS/APMS and PCTMS, Primary Care , ABBEY WOOD SURGERY ,2229703," 81,670.27 ",LNW000002372,
Department of Health,NHS England,31/01/2014,GPMS/APMS and PCTMS, Primary Care , ABBOTS WOOD MEDICAL CENTRE ,2428961," 49,030.71 ",HT000006043,
Department of Health,NHS England,31/01/2014,GPMS/APMS and PCTMS, Primary Care , ABBOTSBURY ROAD SURGERY ,2339070,"-25,253.40 ",DO000004741,
Department of Health,NHS England,31/01/2014,GPMS/APMS and PCTMS, Primary Care , ABBOTSBURY ROAD SURGERY ,2339071," 85,460.61 ",DO000004742,
Department of Health,NHS England,31/01/2014,GPMS/APMS and PCTMS, Primary Care , ABBOTT & PATEL ,2396537," 62,709.20 ",DR000003672,
Department of Health,NHS England,31/01/2014,GPMS/APMS and PCTMS, Primary Care , ABBOTTSWOOD MEDICAL CENTRE ,2396318,"-31,679.84 ",WR000004093,
Department of Health,NHS England,31/01/2014,GPMS/APMS and PCTMS, Primary Care , ABBOTTSWOOD MEDICAL CENTRE ,2430450," 25,780.45 ",WR000004283,
Department of Health,NHS England,31/01/2014,GPMS/APMS and PCTMS, Primary Care , ABBOTTSWOOD MEDICAL CENTRE ,2396319," 115,972.58 ",WR000004094,
Department of Health,NHS England,31/01/2014,GPMS/APMS and PCTMS, Primary Care , ABDI SHS ,2319145," 30,263.92 ",LIP000004641,
Department of Health,NHS England,31/01/2014,GPMS/APMS and PCTMS, Primary Care , ABELL WOODCOCK CHURCH DILS & PARTNERS ,2229917," 66,920.97 ",DE000006308,
Department of Health,NHS England,31/01/2014,GPMS/APMS and PCTMS, Primary Care , ABERFELDY STREET PRACTICE ,2337020," 64,107.55 ",LNA000004516,
Department of Health,NHS England,31/01/2014,GPMS/APMS and PCTMS, Primary Care , ABERNETHY HOUSE ,2230021,"-25,529.27 ",LNE000003595,
Department of Health,NHS England,31/01/2014,GPMS/APMS and PCTMS, Primary Care , ABERNETHY HOUSE ,2230024," 121,642.01 ",LNE000003596,
Department of Health,NHS England,31/01/2014,GPMS/APMS and PCTMS, Primary Care , ABINGDON HEALTH CENTRE ,2231104," 84,636.68 ",LNJ000002898,
Department of Health,NHS England,31/01/2014,GPMS/APMS and PCTMS, Primary Care , ABINGDON SURGERY ,2413572," 100,135.83 ",OX000003962,
Department of Health,NHS England,31/01/2014,GPMS/APMS and PCTMS, Primary Care , ABINGTON MEDICAL CENTRE ,2229587,"-32,598.74 ",NO000003749,
Department of Health,NHS England,31/01/2014,GPMS/APMS and PCTMS, Primary Care , ABINGTON MEDICAL CENTRE ,2244090," 166,247.19 ",NO000003750,
Department of Health,NHS England,31/01/2014,GPMS/APMS and PCTMS, Primary Care , ABINGTON PARK SURGERY ,2229588,"-29,672.57 ",NO000003751,
Department of Health,NHS England,31/01/2014,GPMS/APMS and PCTMS, Primary Care , ABINGTON PARK SURGERY ,2244091," 120,760.66 ",NO000003752,
Department of Health,NHS England,31/01/2014,GPMS/APMS and PCTMS, Primary Care , ABNEY HOUSE MEDICAL CENTRE ,2355838," 33,337.87 ",LNA000004518,
Department of Health,NHS England,31/01/2014,GPMS/APMS and PCTMS, Primary Care , ABRAHAM K K & PARTNER ,2428763," 45,780.45 ",EX000011354,
Department of Health,NHS England,31/01/2014,GPMS/APMS and PCTMS, Primary Care , ACCRINGTON VIC HAC ,2396851," 434,857.00 ",LA000007794,
Department of Health,NHS England,31/01/2014,GPMS/APMS and PCTMS, Primary Care , ACORN D J & PARTNER ,2413201," 32,216.88 ",EX000011356,
Department of Health,NHS England,31/01/2014,GPMS/APMS and PCTMS, Primary Care , ACORN GROUP PRACTICE ,2356026," 76,562.18 ",LNN000002912,
Department of Health,NHS England,31/01/2014,GPMS/APMS and PCTMS, Primary Care , ACORN MEDICAL CENTRE ,2320289," 45,571.81 ",LNK000001413,
Department of Health,NHS England,31/01/2014,GPMS/APMS and PCTMS, Primary Care , ACORNS SURGERY ,2211703," 38,895.36 ",CH000004926,
Department of Health,NHS England,31/01/2014,GPMS/APMS and PCTMS, Primary Care , ACORNS SURGERY ,2230250," 122,967.54 ",LNS000006631,
Department of Health,NHS England,31/01/2014,GPMS/APMS and PCTMS, Primary Care , ACRE SURGERY NORTHWOOD HEALTH CENTRE ,2211218,"-45,060.67 ",LNK000001336,
Department of Health,NHS England,31/01/2014,GPMS/APMS and PCTMS, Primary Care , ACRE SURGERY NORTHWOOD HEALTH CENTRE ,2211219," 73,952.97 ",LNK000001337,
Department of Health,NHS England,31/01/2014,GPMS/APMS and PCTMS, Primary Care , ACRESWOOD SURGERY ,2396853," 68,271.30 ",LA000007796,
Department of Health,NHS England,31/01/2014,GPMS/APMS and PCTMS, Primary Care , ADAM HOUSE MEDICAL CENTRE ,2229919," 55,662.55 ",DE000006310,
Department of Health,NHS England,31/01/2014,GPMS/APMS and PCTMS, Primary Care , ADAM PRACTICE ,2211115,"-78,362.31 ",DO000004535,
Department of Health,NHS England,31/01/2014,GPMS/APMS and PCTMS, Primary Care , ADAM PRACTICE ,2306660," 32,955.54 ",DO000004655,
Department of Health,NHS England,31/01/2014,GPMS/APMS and PCTMS, Primary Care , ADAM PRACTICE ,2211116," 298,469.76 ",DO000004536,
Department of Health,NHS England,31/01/2014,GPMS/APMS and PCTMS, Primary Care , ADAMS P & PARTNERS ,2339979," 43,614.68 ",SY000005165,
Department of Health,NHS England,31/01/2014,GPMS/APMS and PCTMS, Primary Care , ADDINGTON ROAD SURGERY ,2292354," 77,506.64 ",LNT000002279,
Department of Health,NHS England,31/01/2014,GPMS/APMS and PCTMS, Primary Care , ADELAIDE GP SURGERY ,2198093," 60,189.07 ",SO000010803,
Department of Health,NHS England,31/01/2014,GPMS/APMS and PCTMS, Primary Care , ADELAIDE MEDICAL CENTRE ,2337645," 76,418.32 ",SO000011076,
Department of Health,NHS England,31/01/2014,GPMS/APMS and PCTMS, Primary Care , ADELAIDE MEDICAL CENTRE BLAYDON ,2429046," 94,065.12 ",GAT000002334,
Department of Health,NHS England,31/01/2014,GPMS/APMS and PCTMS, Primary Care , ADELAIDE MEDICAL CENTRE LONDON ,2414937," 94,813.59 ",LND000003474,
Department of Health,NHS England,31/01/2014,GPMS/APMS and PCTMS, Primary Care , ADELAIDE ST SURGERY WATERFRONT LCG ,2339784," 25,531.83 ",DN000008375,
Department of Health,NHS England,31/01/2014,GPMS/APMS and PCTMS, Primary Care , ADELAIDE STREET SURGERY ,2396859," 112,477.06 ",LA000007802,
Department of Health,NHS England,31/01/2014,GPMS/APMS and PCTMS, Primary Care , ADLER & ROSENBERG ,2414903," 36,545.12 ",LNH000002598,
Department of Health,NHS England,31/01/2014,GPMS/APMS and PCTMS, Primary Care , ADO THE ENTERPRISE PRACTICE ,2356236," 30,833.42 ",LNL000003797,
Department of Health,NHS England,31/01/2014,GPMS/APMS and PCTMS, Primary Care , ADSHALL ROAD MEDICAL PRACTICE ,2384436," 43,463.25 ",SPT000001809,
Department of Health,NHS England,31/01/2014,GPMS/APMS and PCTMS, Primary Care , ADSWOOD ROAD SURGERY ,2227754," 33,248.43 ",SPT000001726,
Department of Health,NHS England,31/01/2014,GPMS/APMS and PCTMS, Primary Care , ADUR & PARTNERS ,2226891,"-37,632.21 ",LNC000003118,
Department of Health,NHS England,31/01/2014,GPMS/APMS and PCTMS, Primary Care , ADUR & PARTNERS ,2226892," 72,700.61 ",LNC000003119,
Department of Health,NHS England,31/01/2014,GPMS/APMS and PCTMS, Primary Care , ADUR MEDICAL GROUP ,2320672," 54,677.48 ",TW000006539,
Department of Health,NHS England,31/01/2014,GPMS/APMS and PCTMS, Primary Care , AELFGAR SURGERY ,2244242," 42,656.35 ",ST000008807,
Department of Health,NHS England,31/01/2014,GPMS/APMS and PCTMS, Primary Care , AGARWAL & PARTNERS ,2319155,"-50,201.87 ",LIP000004652,
Department of Health,NHS England,31/01/2014,GPMS/APMS and PCTMS, Primary Care , AGARWAL & PARTNERS ,2166880," 49,368.81 ",LIP000004367,
Department of Health,NHS England,31/01/2014,GPMS/APMS and PCTMS, Primary Care , AGARWAL & PARTNERS ,2319156," 67,471.01 ",LIP000004653,
Department of Health,NHS England,31/01/2014,GPMS/APMS and PCTMS, Primary Care , AGHA AS ,2359542," 26,339.93 ",MAN000002759,
Department of Health,NHS England,31/01/2014,GPMS/APMS and PCTMS, Primary Care , AGHA B & PARTNERS ,2226540," 48,552.12 ",EX000010842,
Department of Health,NHS England,31/01/2014,GPMS/APMS and PCTMS, Primary Care , AGRAWAL ,2355948," 59,370.15 ",WOM000002295,
Department of Health,NHS England,31/01/2014,GPMS/APMS and PCTMS, Primary Care , AGRAWAL & PARTNER ,2356318," 66,023.58 ",WBH000001810,
Department of Health,NHS England,31/01/2014,GPMS/APMS and PCTMS, Primary Care , AGRAWAL R K & K ,2230521," 29,566.42 ",LNN000002840,
Department of Health,NHS England,31/01/2014,GPMS/APMS and PCTMS, Primary Care , AHMAD & MONTEIRO ,2337180," 48,567.55 ",LNC000003193,
Department of Health,NHS England,31/01/2014,GPMS/APMS and PCTMS, Primary Care , AHMAD H S ,2243756," 37,592.57 ",EX000010844,
Department of Health,NHS England,31/01/2014,GPMS/APMS and PCTMS, Primary Care , AHMAD M & PARTNERS ,2227619," 47,509.52 ",SY000005045,
Department of Health,NHS England,31/01/2014,GPMS/APMS and PCTMS, Primary Care , AHMED & BUTT ,2260331," 48,895.40 ",YW000003946,
Department of Health,NHS England,31/01/2014,GPMS/APMS and PCTMS, Primary Care , AHMED & PARTNERS ,2356319," 58,533.00 ",WBH000001812,
Department of Health,NHS England,31/01/2014,GPMS/APMS and PCTMS, Primary Care , AHMED I & PTS ,2337181," 77,732.96 ",DE000006500,
Department of Health,NHS England,31/01/2014,GPMS/APMS and PCTMS, Primary Care , AINSWORTH D & PARTNERS ,2413207," 39,097.26 ",EX000011362,
Department of Health,NHS England,31/01/2014,Services from other NHS bodies, Public Health , AINTREE UNIVERSITY HOSPITALS NHS FOUNDATION TRUST ,2208587," 37,791.00 ",8410003679 ,
Department of Health,NHS England,31/01/2014,Services from other NHS bodies, Public Health , AINTREE UNIVERSITY HOSPITALS NHS FOUNDATION TRUST ,2304429," 37,791.00 ",8410005164 ,
Department of Health,NHS England,31/01/2014,Services from other NHS bodies, Public Health , AINTREE UNIVERSITY HOSPITALS NHS FOUNDATION TRUST ,2243440," 87,868.17 ",8410005165 ,
Department of Health,NHS England,31/01/2014,Services from other NHS bodies, Social Care , AINTREE UNIVERSITY HOSPITALS NHS FOUNDATION TRUST ,2221281," 88,292.00 ",8410005143 ,
Department of Health,NHS England,31/01/2014,Services from other NHS bodies, Social Care , AINTREE UNIVERSITY HOSPITALS NHS FOUNDATION TRUST ,2221282," 88,292.00 ",8410005142 ,
Department of Health,NHS England,31/01/2014,General Dental services and personal dental services, Secondary and Community Dental Care , AINTREE UNIVERSITY HOSPITALS NHS FOUNDATION TRUST ,2208587," 202,601.00 ",8410003679 ,
Department of Health,NHS England,31/01/2014,General Dental services and personal dental services, Secondary and Community Dental Care , AINTREE UNIVERSITY HOSPITALS NHS FOUNDATION TRUST ,2304429," 202,601.00 ",8410005164 ,
Department of Health,NHS England,31/01/2014,Services from other NHS bodies, Secondary and Community Dental Care , AINTREE UNIVERSITY HOSPITALS NHS FOUNDATION TRUST ,2243440," 414,139.83 ",8410005165 ,
Department of Health,NHS England,31/01/2014,Services from other NHS bodies, Specialised Commissioning , AINTREE UNIVERSITY HOSPITALS NHS FOUNDATION TRUST ,2175368," 2,542,901.00 ",8410005163 ,
Department of Health,NHS England,31/01/2014,Services from other NHS bodies, Specialised Commissioning , AINTREE UNIVERSITY HOSPITALS NHS FOUNDATION TRUST ,2381311," 2,542,901.00 ",8410005747 ,
Department of Health,NHS England,31/01/2014,GPMS/APMS and PCTMS, Primary Care , AIR BALLOON SURGERY ,2228901," 112,739.08 ",BRS000005690,
Department of Health,NHS England,31/01/2014,GPMS/APMS and PCTMS, Primary Care , AIREBOROUGH FAMILY PRACTICE ,2226324,"-35,280.07 ",LDS000005199,
Department of Health,NHS England,31/01/2014,GPMS/APMS and PCTMS, Primary Care , AIREBOROUGH FAMILY PRACTICE ,2226325," 71,435.95 ",LDS000005200,
Department of Health,NHS England,31/01/2014,Services from other NHS bodies, Secondary and Community Dental Care , AIREDALE NHS FOUNDATION TRUST ,2139739," 96,663.00 ",3310003106 ,
Department of Health,NHS England,31/01/2014,Services from other NHS bodies, Specialised Commissioning , AIREDALE NHS FOUNDATION TRUST ,2197648," 825,669.00 ",3310003104 ,
Department of Health,NHS England,31/01/2014,GPMS/APMS and PCTMS, Primary Care , AKERMAN MEDICAL PRACTICE ,2244179," 41,430.36 ",LNS000006635,
Department of Health,NHS England,31/01/2014,GPMS/APMS and PCTMS, Primary Care , AKHTAR ,2356320," 31,982.54 ",WBH000001814,
Department of Health,NHS England,31/01/2014,GPMS/APMS and PCTMS, Primary Care , ALAM N ,2332493," 30,508.69 ",BIK000002260,
Department of Health,NHS England,31/01/2014,GPMS/APMS and PCTMS, Primary Care , ALBANY HOUSE MEDICAL CENTRE ,2229589,"-35,334.30 ",NO000003753,
Department of Health,NHS England,31/01/2014,GPMS/APMS and PCTMS, Primary Care , ALBANY HOUSE MEDICAL CENTRE ,2229590," 165,807.01 ",NO000003754,
Department of Health,NHS England,31/01/2014,GPMS/APMS and PCTMS, Primary Care , ALBANY SURGERY NEWTON ABBOT ,2455145," 123,905.76 ",DN000008856,
Department of Health,NHS England,31/01/2014,GPMS/APMS and PCTMS, Primary Care , ALBERT HOUSE CLINIC ,2292273," 59,174.86 ",MID000003262,
Department of Health,NHS England,31/01/2014,GPMS/APMS and PCTMS, Primary Care , ALBERT STREET SURGERY ,2227077," 50,055.48 ",WA000003498,
Department of Health,NHS England,31/01/2014,GPMS/APMS and PCTMS, Primary Care , ALBION HEALTH CENTRE ,2355840," 87,307.17 ",LNA000004524,
Department of Health,NHS England,31/01/2014,GPMS/APMS and PCTMS, Primary Care , ALBION MEDICAL PRACTICE ,2222649," 111,051.91 ",GMK000002456,
Department of Health,NHS England,31/01/2014,GPMS/APMS and PCTMS, Primary Care , ALBION MOUNT MEDICAL PRACTICE ,2276120," 65,698.79 ",YW000003948,
Department of Health,NHS England,31/01/2014,GPMS/APMS and PCTMS, Primary Care , ALBION STREET HEALTH CENTRE ,2244180," 98,496.70 ",LNS000006637,
Department of Health,NHS England,31/01/2014,GPMS/APMS and PCTMS, Primary Care , ALBION SURGERY ,2229708," 120,005.13 ",LNW000002378,
Department of Health,NHS England,31/01/2014,GPMS/APMS and PCTMS, Primary Care , ALBRIGHTON MEDICAL PRACTICE ,2356205," 80,273.70 ",SA000003723,
Department of Health,NHS England,31/01/2014,GPMS/APMS and PCTMS, Primary Care , ALCESTER HEALTH CENTRE ,2406218," 58,683.67 ",WA000003642,
Department of Health,NHS England,31/01/2014,Purchase of healthcare from non-NHS bodies, Specialised Commissioning , ALCURA UK LTD ,2331639," 212,586.27 ",INV0847522,
Department of Health,NHS England,31/01/2014,General Dental services and personal dental services, Secondary and Community Dental Care , ALDER HEY CHILDRENS NHS FOUNDATION TRUST ,2183076,"-1,122,674.00 ",261 ,
Department of Health,NHS England,31/01/2014,Services from other NHS bodies, Health & Justice , ALDER HEY CHILDRENS NHS FOUNDATION TRUST ,2183072," 52,500.00 ",9110004515 ,
Department of Health,NHS England,31/01/2014,Services from other NHS bodies, Health & Justice , ALDER HEY CHILDRENS NHS FOUNDATION TRUST ,2466558," 52,500.00 ",9110004962 ,
Department of Health,NHS England,31/01/2014,Services from other NHS bodies, Specialised Commissioning , ALDER HEY CHILDRENS NHS FOUNDATION TRUST ,2305277," 87,892.00 ",9110004814 ,
Department of Health,NHS England,31/01/2014,Services from other NHS bodies, Secondary and Community Dental Care , ALDER HEY CHILDRENS NHS FOUNDATION TRUST ,2138716," 109,362.00 ",9110004572 ,
Department of Health,NHS England,31/01/2014,General Dental services and personal dental services, Secondary and Community Dental Care , ALDER HEY CHILDRENS NHS FOUNDATION TRUST ,2207258," 561,337.00 ",9110003208 ,
Department of Health,NHS England,31/01/2014,General Dental services and personal dental services, Secondary and Community Dental Care , ALDER HEY CHILDRENS NHS FOUNDATION TRUST ,2207281," 561,337.00 ",9110003207 ,
Department of Health,NHS England,31/01/2014,Services from other NHS bodies, Specialised Commissioning , ALDER HEY CHILDRENS NHS FOUNDATION TRUST ,2175385," 7,350,000.00 ",9110004571 ,
Department of Health,NHS England,31/01/2014,GPMS/APMS and PCTMS, Primary Care , ALDERMOOR SURGERY ,2337624," 69,025.70 ",SO000011054,
Department of Health,NHS England,31/01/2014,GPMS/APMS and PCTMS, Primary Care , ALDERSBROOK MEDICAL CENTRE ,2227518," 32,169.40 ",LNB000002738,
Department of Health,NHS England,31/01/2014,GPMS/APMS and PCTMS, Primary Care , ALDERWOOD ROAD ,2229695," 29,533.96 ",LNW000002362,
Department of Health,NHS England,31/01/2014,GPMS/APMS and PCTMS, Primary Care , ALEXANDER & PARTNER ,2319925,"-76,435.63 ",STL000003757,
Department of Health,NHS England,31/01/2014,GPMS/APMS and PCTMS, Primary Care , ALEXANDER & PARTNER ,2167054," 29,482.81 ",STL000003518,
Department of Health,NHS England,31/01/2014,GPMS/APMS and PCTMS, Primary Care , ALEXANDER & PARTNER ,2319926," 84,639.27 ",STL000003758,
Department of Health,NHS England,31/01/2014,GPMS/APMS and PCTMS, Primary Care , ALEXANDER GS ,2369680," 53,452.66 ",MAN000002748,
Department of Health,NHS England,31/01/2014,GPMS/APMS and PCTMS, Primary Care , ALEXANDER HOUSE SURGERY ,2198087,"-62,186.45 ",SO000010796,
Department of Health,NHS England,31/01/2014,GPMS/APMS and PCTMS, Primary Care , ALEXANDER HOUSE SURGERY ,2198088," 130,056.60 ",SO000010797,
Department of Health,NHS England,31/01/2014,GPMS/APMS and PCTMS, Primary Care , ALEXANDRA MEDICAL CENTRE ,2338758,"-26,083.28 ",DUD000001369,
Department of Health,NHS England,31/01/2014,GPMS/APMS and PCTMS, Primary Care , ALEXANDRA MEDICAL CENTRE ,2355978," 50,642.90 ",DUD000001370,
Department of Health,NHS England,31/01/2014,GPMS/APMS and PCTMS, Primary Care , ALEXANDRA PRACTICE ,2359534," 49,934.25 ",MAN000002750,
Department of Health,NHS England,31/01/2014,GPMS/APMS and PCTMS, Primary Care , ALI A & PARTNER ,2319829,"-45,926.55 ",BIK000002255,
Department of Health,NHS England,31/01/2014,GPMS/APMS and PCTMS, Primary Care , ALI A & PARTNER ,2319830," 60,805.91 ",BIK000002256,
Department of Health,NHS England,31/01/2014,GPMS/APMS and PCTMS, Primary Care , ALICE MEDICAL CENTRE ,2332394," 32,515.31 ",NN000007061,
Department of Health,NHS England,31/01/2014,GPMS/APMS and PCTMS, Primary Care , ALL SAINTS MEDICAL CENTRE ,2229699," 53,847.73 ",LNW000002366,
Department of Health,NHS England,31/01/2014,GPMS/APMS and PCTMS, Primary Care , ALL SAINTS MEDICAL PRACTICE ,2226882,"-70,856.66 ",LNA000004505,
Department of Health,NHS England,31/01/2014,GPMS/APMS and PCTMS, Primary Care , ALL SAINTS MEDICAL PRACTICE ,2243882," 145,362.60 ",LNA000004506,
Department of Health,NHS England,31/01/2014,GPMS/APMS and PCTMS, Primary Care , ALLEN & PARTNERS ,2319141,"-99,129.01 ",LIP000004636,
Department of Health,NHS England,31/01/2014,GPMS/APMS and PCTMS, Primary Care , ALLEN & PARTNERS ,2166864," 44,718.24 ",LIP000004351,
Department of Health,NHS England,31/01/2014,GPMS/APMS and PCTMS, Primary Care , ALLEN & PARTNERS ,2319142," 125,830.26 ",LIP000004637,
Department of Health,NHS England,31/01/2014,Consultancy services, NHS England Running Costs , ALLEN LANE FINANCIAL RECRUITMENT ,2243443," 30,661.79 ",1055237 ,
Department of Health,NHS England,31/01/2014,GPMS/APMS and PCTMS, Primary Care , ALLENBY CLINIC ,2369524," 71,484.00 ",LNM000004671,
Department of Health,NHS England,31/01/2014,GPMS/APMS and PCTMS, Primary Care , ALLERTON ROAD MEDICAL CENTRE ,2243881," 40,816.40 ",LNA000004504,
Department of Health,NHS England,31/01/2014,Purchase of healthcare from non-NHS bodies, Specialised Commissioning , ALLIANCE MEDICAL LTD ,2196996,"-50,694.52 ",8012695 ,
Department of Health,NHS England,31/01/2014,Purchase of healthcare from non-NHS bodies, Specialised Commissioning , ALLIANCE MEDICAL LTD ,2221249," 51,667.00 ",13171 ,
Department of Health,NHS England,31/01/2014,Purchase of healthcare from non-NHS bodies, Specialised Commissioning , ALLIANCE MEDICAL LTD ,2331211," 51,667.00 ",113171 ,
Department of Health,NHS England,31/01/2014,Purchase of healthcare from non-NHS bodies, Specialised Commissioning , ALLIANCE MEDICAL LTD ,2380334," 63,431.43 ",13253 ,
Department of Health,NHS England,31/01/2014,Purchase of healthcare from non-NHS bodies, Other , ALLIANCE MEDICAL LTD ,2209441," 1,113,552.00 ",PET0188,
Department of Health,NHS England,31/01/2014,Purchase of healthcare from non-NHS bodies, Other , ALLIANCE MEDICAL LTD ,2453329," 1,119,729.60 ",PET0191,
Department of Health,NHS England,31/01/2014,GPMS/APMS and PCTMS, Primary Care , ALLUM MEDICAL CENTRE ,2243995," 140,496.03 ",LNB000002740,
Department of Health,NHS England,31/01/2014,GPMS/APMS and PCTMS, Primary Care , ALMA MEDICAL CENTRE ,2277801,"-104,689.84 ",MID000003251,
Department of Health,NHS England,31/01/2014,GPMS/APMS and PCTMS, Primary Care , ALMA MEDICAL CENTRE ,2292271," 188,712.82 ",MID000003252,
Department of Health,NHS England,31/01/2014,GPMS/APMS and PCTMS, Primary Care , ALMA PARTNERSHIP ,2211108," 83,963.83 ",DO000004528,
Department of Health,NHS England,31/01/2014,GPMS/APMS and PCTMS, Primary Care , ALMA ROAD SURGERY ,2337627,"-40,692.91 ",SO000011057,
Department of Health,NHS England,31/01/2014,GPMS/APMS and PCTMS, Primary Care , ALMA ROAD SURGERY ,2337628," 126,728.66 ",SO000011058,
Department of Health,NHS England,31/01/2014,GPMS/APMS and PCTMS, Primary Care , ALMAN R & PARTNERS ,2319831,"-83,945.52 ",BIK000002257,
Department of Health,NHS England,31/01/2014,GPMS/APMS and PCTMS, Primary Care , ALMAN R & PARTNERS ,2166803," 34,537.90 ",BIK000002141,
Department of Health,NHS England,31/01/2014,GPMS/APMS and PCTMS, Primary Care , ALMAN R & PARTNERS ,2319832," 106,888.09 ",BIK000002258,
Department of Health,NHS England,31/01/2014,GPMS/APMS and PCTMS, Primary Care , ALMONDSBURY SURGERY ,2228893," 40,136.98 ",BRS000005682,
Department of Health,NHS England,31/01/2014,Purchase of healthcare from non-NHS bodies, Specialised Commissioning , ALPHA HOSPITAL BURY ,2315972,"-151,988.10 ",BUR000231,
Department of Health,NHS England,31/01/2014,Purchase of healthcare from non-NHS bodies, Specialised Commissioning , ALPHA HOSPITAL BURY ,2405015,"-103,092.46 ",BUR000233,
Department of Health,NHS England,31/01/2014,Purchase of healthcare from non-NHS bodies, Specialised Commissioning , ALPHA HOSPITAL BURY ,2315977,"-46,255.21 ",BUR000232,
Department of Health,NHS England,31/01/2014,Purchase of healthcare from non-NHS bodies, Specialised Commissioning , ALPHA HOSPITAL BURY ,2316973," 56,035.36 ",BUR002585,
Department of Health,NHS England,31/01/2014,Purchase of healthcare from non-NHS bodies, Specialised Commissioning , ALPHA HOSPITAL BURY ,2368253," 1,864,807.49 ",BUR002586,
Department of Health,NHS England,31/01/2014,Purchase of healthcare from non-NHS bodies, Specialised Commissioning , ALPHA HOSPITAL SHEFFIELD ,2331654," 187,850.39 ",SHF000869,
Department of Health,NHS England,31/01/2014,Purchase of healthcare from non-NHS bodies, Specialised Commissioning , ALPHA HOSPITAL WOKING ,2331660,"-124,472.48 ",AHW000123,
Department of Health,NHS England,31/01/2014,Purchase of healthcare from non-NHS bodies, Specialised Commissioning , ALPHA HOSPITAL WOKING ,2316000,"-59,931.75 ",AHW000119,
Department of Health,NHS England,31/01/2014,Purchase of healthcare from non-NHS bodies, Specialised Commissioning , ALPHA HOSPITAL WOKING ,2316976," 97,887.50 ",AHW004896,
Department of Health,NHS England,31/01/2014,Purchase of healthcare from non-NHS bodies, Specialised Commissioning , ALPHA HOSPITAL WOKING ,2368254," 714,413.00 ",AHW004897,
Department of Health,NHS England,31/01/2014,GPMS/APMS and PCTMS, Primary Care , ALRESFORD SURGERY ,2355925," 74,661.28 ",SO000011060,
Department of Health,NHS England,31/01/2014,GPMS/APMS and PCTMS, Primary Care , ALSTON MEDICAL PRACTICE ,2356080," 27,891.28 ",CU000003447,
Department of Health,NHS England,31/01/2014,GPMS/APMS and PCTMS, Primary Care , ALTON STREET SURGERY ,2406221," 101,534.41 ",WR000004088,
Department of Health,NHS England,31/01/2014,GPMS/APMS and PCTMS, Primary Care , ALTY & PARTNERS ,2319143,"-26,137.22 ",LIP000004638,
Department of Health,NHS England,31/01/2014,GPMS/APMS and PCTMS, Primary Care , ALTY & PARTNERS ,2332444," 38,811.41 ",LIP000004639,
Department of Health,NHS England,31/01/2014,GPMS/APMS and PCTMS, Primary Care , ALVANLEY FAMILY PRACTICE ,2227747," 35,413.84 ",SPT000001722,
Department of Health,NHS England,31/01/2014,GPMS/APMS and PCTMS, Primary Care , ALYMER LODGE COOKLEY PARTNERSHIP ,2226693,"-26,816.75 ",WR000003997,
Department of Health,NHS England,31/01/2014,GPMS/APMS and PCTMS, Primary Care , ALYMER LODGE COOKLEY PARTNERSHIP ,2226696," 143,225.33 ",WR000003998,
Department of Health,NHS England,31/01/2014,GPMS/APMS and PCTMS, Primary Care , AMERSHAM HEALTH CENTRE ,2306554," 86,549.35 ",BU000003463,
Department of Health,NHS England,31/01/2014,GPMS/APMS and PCTMS, Primary Care , AMERSHAM VALE TRAINING PRACTICE ,2230244," 62,516.96 ",LNS000006625,
Department of Health,NHS England,31/01/2014,GPMS/APMS and PCTMS, Primary Care , AMHERST MEDICAL ,2278547," 82,099.06 ",KC000011677,
Department of Health,NHS England,31/01/2014,GPMS/APMS and PCTMS, Primary Care , AMPLEFORTH SURGERY ,2370359," 47,635.12 ",YN000004977,
Department of Health,NHS England,31/01/2014,GPMS/APMS and PCTMS, Primary Care , AMPTHILL PRACTICE ,2414913," 58,986.86 ",LND000003466,
Department of Health,NHS England,31/01/2014,GPMS/APMS and PCTMS, Primary Care , AMWELL PRACTICE ,2414919," 156,822.62 ",LND000003468,
Department of Health,NHS England,31/01/2014,GPMS/APMS and PCTMS, Primary Care , AMWELL STREET SURGERY ,2414490," 85,574.67 ",HT000006039,
Department of Health,NHS England,31/01/2014,Purchase of healthcare from non-NHS bodies, Primary Care , ANAWIM WWT ,2304437," 42,213.00 ",82 ,
Department of Health,NHS England,31/01/2014,GPMS/APMS and PCTMS, Primary Care , ANDERSON MATTHEWS MADDEN FLANN & PARTNERS ,2229915," 80,794.24 ",DE000006306,
Department of Health,NHS England,31/01/2014,GPMS/APMS and PCTMS, Primary Care , ANDOVER HEALTH CENTRE MEDICAL PRACTICE ,2337635," 103,169.68 ",SO000011066,
Department of Health,NHS England,31/01/2014,GPMS/APMS and PCTMS, Primary Care , ANDOVER MEDICAL CENTRE ,2414925," 46,139.94 ",LND000003470,
Department of Health,NHS England,31/01/2014,GPMS/APMS and PCTMS, Primary Care , ANDREOU & PARTNERS ,2341964,"-46,314.76 ",WBH000001807,
Department of Health,NHS England,31/01/2014,GPMS/APMS and PCTMS, Primary Care , ANDREOU & PARTNERS ,2341965," 154,731.37 ",WBH000001808,
Department of Health,NHS England,31/01/2014,GPMS/APMS and PCTMS, Primary Care , ANGEL MEDICAL PRACTICE ,2230156,"-613,600.00 ",LND000003314,
Department of Health,NHS England,31/01/2014,GPMS/APMS and PCTMS, Primary Care , ANGEL MEDICAL PRACTICE ,2230157," 674,960.00 ",LND000003315,
Department of Health,NHS England,31/01/2014,GPMS/APMS and PCTMS, Primary Care , ANGEL SURGERY ,2230019," 30,919.12 ",LNE000003594,
Department of Health,NHS England,31/01/2014,Services from other NHS bodies, Primary Care , ANGLIAN COMMUNITY ENTERPRISE CIC ,2243017," 82,210.08 ",AC7000006234,
Department of Health,NHS England,31/01/2014,Consultancy services, NHS England Running Costs , ANGLIAN COMMUNITY ENTERPRISE CIC ,2368385," 153,365.32 ",AC7000006246,
Department of Health,NHS England,31/01/2014,Consultancy services, NHS England Running Costs , ANGLIAN COMMUNITY ENTERPRISE CIC ,2368386," 153,365.32 ",AC7000006247,
Department of Health,NHS England,31/01/2014,GPMS/APMS and PCTMS, Primary Care , ANNANDALE MEDICAL CENTRE ,2306847,"-32,654.31 ",CH000005244,
Department of Health,NHS England,31/01/2014,GPMS/APMS and PCTMS, Primary Care , ANNANDALE MEDICAL CENTRE ,2166258," 34,514.64 ",CH000004821,
Department of Health,NHS England,31/01/2014,GPMS/APMS and PCTMS, Primary Care , ANNANDALE MEDICAL CENTRE ,2317836," 53,147.71 ",CH000005245,
Department of Health,NHS England,31/01/2014,GPMS/APMS and PCTMS, Primary Care , ANNANDALE SURGERY ,2414492," 62,484.35 ",HT000006041,
Department of Health,NHS England,31/01/2014,GPMS/APMS and PCTMS, Primary Care , ANSDELL MEDICAL CENTRE ,2406404," 78,971.16 ",LA000007792,
Department of Health,NHS England,31/01/2014,Purchase of healthcare from non-NHS bodies, Specialised Commissioning , ANSEL LTD ,2222770," 128,976.12 ",L900000469,
Department of Health,NHS England,31/01/2014,Purchase of healthcare from non-NHS bodies, Specialised Commissioning , ANSEL LTD ,2222771," 186,298.84 ",L900000470,
Department of Health,NHS England,31/01/2014,GPMS/APMS and PCTMS, Primary Care , APEX MEDICAL PRACTICE ,2278550," 41,301.41 ",KC000011681,
Department of Health,NHS England,31/01/2014,GPMS/APMS and PCTMS, Primary Care , APMS HARDEN ,2338213," 48,157.57 ",WAL000002322,
Department of Health,NHS England,31/01/2014,GPMS/APMS and PCTMS, Primary Care , APPLEBY HEALTH CENTRE ,2356081," 36,866.01 ",CU000003449,
Department of Health,NHS England,31/01/2014,GPMS/APMS and PCTMS, Primary Care , APPLES MEDICAL CENTRE ,2211114," 52,933.17 ",DO000004534,
Department of Health,NHS England,31/01/2014,GPMS/APMS and PCTMS, Primary Care , APSLEY SURGERY ,2244241," 85,170.07 ",ST000008805,
Department of Health,NHS England,31/01/2014,GPMS/APMS and PCTMS, Primary Care , ARBURY MEDICAL PRACTICE ,2406175," 75,799.91 ",WA000003526,
Department of Health,NHS England,31/01/2014,GPMS/APMS and PCTMS, Primary Care , ARCADIAN GARDENS ,2428999," 29,603.29 ",LNE000003766,
Department of Health,NHS England,31/01/2014,GPMS/APMS and PCTMS, Primary Care , ARCHWAY PRIMARY CARE TEAM ,2230159,"-64,098.56 ",LND000003316,
Department of Health,NHS England,31/01/2014,GPMS/APMS and PCTMS, Primary Care , ARCHWAY PRIMARY CARE TEAM ,2230160," 148,372.44 ",LND000003317,
Department of Health,NHS England,31/01/2014,GPMS/APMS and PCTMS, Primary Care , ARCHWAY SURGERY ,2225642," 25,568.47 ",HT000005828,
Department of Health,NHS England,31/01/2014,GPMS/APMS and PCTMS, Primary Care , ARCHWOOD MEDICAL PRACTICE ,2227751," 43,764.94 ",SPT000001724,
Department of Health,NHS England,31/01/2014,GPMS/APMS and PCTMS, Primary Care , ARDEN MEDICAL CENTRE ,2243912," 29,126.85 ",WA000003496,
Department of Health,NHS England,31/01/2014,GPMS/APMS and PCTMS, Primary Care , ARGYLE SURGERY ,2357500," 67,578.86 ",LNM000004673,
Department of Health,NHS England,31/01/2014,GPMS/APMS and PCTMS, Primary Care , ARGYLL HOUSE SURGERY ,2337641," 33,744.58 ",SO000011072,
Department of Health,NHS England,31/01/2014,GPMS/APMS and PCTMS, Primary Care , ARLESEY MEDICAL CENTRE - SUNNY HILL CIC ,2225654," 29,890.27 ",BD000003710,
Department of Health,NHS England,31/01/2014,GPMS/APMS and PCTMS, Primary Care , ARMADA FAMILY PRACTICE ,2228899," 113,608.32 ",BRS000005688,
Department of Health,NHS England,31/01/2014,GPMS/APMS and PCTMS, Primary Care , ARNEWOOD PRACTICE ,2337643," 122,449.23 ",SO000011074,
Department of Health,NHS England,31/01/2014,GPMS/APMS and PCTMS, Primary Care , ARNOLD MEDICAL CENTRE ,2396855," 45,274.16 ",LA000007798,
Department of Health,NHS England,31/01/2014,GPMS/APMS and PCTMS, Primary Care , ARNOS GROVE MEDICAL CENTRE ,2230028," 35,658.90 ",LNE000003598,
Department of Health,NHS England,31/01/2014,GPMS/APMS and PCTMS, Primary Care , ARORA SC ,2244010," 79,011.09 ",MAN000002644,
Department of Health,NHS England,31/01/2014,GPMS/APMS and PCTMS, Primary Care , ARRIVAL PRACTICE ,2277805,"-26,172.35 ",MID000003257,
Department of Health,NHS England,31/01/2014,GPMS/APMS and PCTMS, Primary Care , ARRIVAL PRACTICE ,2277806," 46,036.89 ",MID000003258,
Department of Health,NHS England,31/01/2014,GPMS/APMS and PCTMS, Primary Care , ARROW LODGE MEDICAL CENTRE ,2406176," 49,812.68 ",WA000003528,
Department of Health,NHS England,31/01/2014,GPMS/APMS and PCTMS, Primary Care , ARUN MEDICAL CENTRE ,2230800," 73,642.09 ",TW000006230,
Department of Health,NHS England,31/01/2014,GPMS/APMS and PCTMS, Primary Care , ARUNDEL SURGERY ,2320671," 39,039.09 ",TW000006538,
Department of Health,NHS England,31/01/2014,GPMS/APMS and PCTMS, Primary Care , AS GILL & P CHEEMA ,2355969," 37,304.45 ",WAL000002324,
Department of Health,NHS England,31/01/2014,GPMS/APMS and PCTMS, Primary Care , AS JAWAD ,2355889," 39,895.45 ",LNC000003191,
Department of Health,NHS England,31/01/2014,GPMS/APMS and PCTMS, Primary Care , ASH TREE HOUSE SURGERY ,2396865," 97,439.56 ",LA000007810,
Department of Health,NHS England,31/01/2014,GPMS/APMS and PCTMS, Primary Care , ASHBY TURN PRIMARY CARE PARTNERS ,2411130," 112,842.72 ",KHU000004595,
Department of Health,NHS England,31/01/2014,GPMS/APMS and PCTMS, Primary Care , ASHCROFT ROAD MEDICAL PRACTICE ,2225657," 40,863.38 ",BD000003712,
Department of Health,NHS England,31/01/2014,GPMS/APMS and PCTMS, Primary Care , ASHCROFT SURGERY ,2317790," 30,588.30 ",BU000003465,
Department of Health,NHS England,31/01/2014,GPMS/APMS and PCTMS, Primary Care , ASHDOWN FOREST HEALTH CENTRE ,2356137," 71,117.13 ",TE000005618,
Department of Health,NHS England,31/01/2014,GPMS/APMS and PCTMS, Primary Care , ASHFIELD MEDICAL CENTRE BLACKPOOL ,2396866," 26,260.19 ",LA000007812,
Department of Health,NHS England,31/01/2014,GPMS/APMS and PCTMS, Primary Care , ASHFIELD MEDICAL CENTRE MILTON KEYNES ,2243615," 135,221.70 ",BU000003376,
Department of Health,NHS England,31/01/2014,GPMS/APMS and PCTMS, Primary Care , ASHFIELDS PRIMARY CARE CENTRE ,2211704,"-29,532.42 ",CH000004927,
Department of Health,NHS England,31/01/2014,GPMS/APMS and PCTMS, Primary Care , ASHFIELDS PRIMARY CARE CENTRE ,2306848," 43,384.25 ",CH000005247,
Department of Health,NHS England,31/01/2014,GPMS/APMS and PCTMS, Primary Care , ASHFIELDS PRIMARY CARE CENTRE ,2211705," 179,798.17 ",CH000004928,
Department of Health,NHS England,31/01/2014,Services from other NHS bodies, Primary Care , ASHFORD & ST PETERS HOSPITALS NHSFT ,2197308," 28,250.00 ",14464364 ,
Department of Health,NHS England,31/01/2014,GPMS/APMS and PCTMS, Primary Care , ASHFORD & ST PETERS HOSPITALS NHSFT ,2380561," 31,718.75 ",14464645 ,
Department of Health,NHS England,31/01/2014,Services from other NHS bodies, Health & Justice , ASHFORD & ST PETERS HOSPITALS NHSFT ,2404799," 38,728.00 ",14464362 ,
Department of Health,NHS England,31/01/2014,Services from other NHS bodies, Specialised Commissioning , ASHFORD & ST PETERS HOSPITALS NHSFT ,2275548," 48,400.00 ",14464553 ,
Department of Health,NHS England,31/01/2014,Services from other NHS bodies, Specialised Commissioning , ASHFORD & ST PETERS HOSPITALS NHSFT ,2290198," 1,969,583.00 ",14464363 ,
Department of Health,NHS England,31/01/2014,GPMS/APMS and PCTMS, Primary Care , ASHFORD A L & PARTNERS ,2226543," 150,413.75 ",EX000010846,
Department of Health,NHS England,31/01/2014,GPMS/APMS and PCTMS, Primary Care , ASHINGDON MEDICAL CENTRE ,2226545," 31,745.57 ",EX000010848,
Department of Health,NHS England,31/01/2014,GPMS/APMS and PCTMS, Primary Care , ASHTON GP SERVICE ,2222648," 138,130.33 ",GMK000002454,
Department of Health,NHS England,31/01/2014,GPMS/APMS and PCTMS, Primary Care , ASHURST PRIMARY CARE ,2396833," 33,045.99 ",LA000007774,
Department of Health,NHS England,31/01/2014,GPMS/APMS and PCTMS, Primary Care , ASHWELL SURGERY ,2428960," 76,173.97 ",HT000006033,
Department of Health,NHS England,31/01/2014,GPMS/APMS and PCTMS, Primary Care , ASHWOOD SURGERY ,2224404," 44,029.06 ",KHU000004310,
Department of Health,NHS England,31/01/2014,GPMS/APMS and PCTMS, Primary Care , ASHWORTH HM ,2369679," 36,979.41 ",MAN000002746,
Department of Health,NHS England,31/01/2014,GPMS/APMS and PCTMS, Primary Care , ASHWORTH STREET SURGERY ,2395877,"-29,444.37 ",ROC000002266,
Department of Health,NHS England,31/01/2014,GPMS/APMS and PCTMS, Primary Care , ASHWORTH STREET SURGERY ,2395878," 96,812.32 ",ROC000002267,
Department of Health,NHS England,31/01/2014,GPMS/APMS and PCTMS, Primary Care , ASKARI & PARTNER ,2319139,"-36,598.25 ",LIP000004634,
Department of Health,NHS England,31/01/2014,GPMS/APMS and PCTMS, Primary Care , ASKARI & PARTNER ,2319140," 51,852.93 ",LIP000004635,
Department of Health,NHS England,31/01/2014,GPMS/APMS and PCTMS, Primary Care , ASKEY & PARTNERS ,2338209," 143,237.69 ",WAL000002318,
Department of Health,NHS England,31/01/2014,GPMS/APMS and PCTMS, Primary Care , ASPATRIA MEDICAL GROUP ,2356079," 75,797.07 ",CU000003443,
Department of Health,NHS England,31/01/2014,GPMS/APMS and PCTMS, Primary Care , ASPLANDS MEDICAL CENTRE ,2225650," 121,384.11 ",BD000003708,
Department of Health,NHS England,31/01/2014,GPMS/APMS and PCTMS, Primary Care , ASPLEY MEDICAL CENTRE ,2225736," 72,531.56 ",NN000006743,
Department of Health,NHS England,31/01/2014,GPMS/APMS and PCTMS, Primary Care , ASPULL SURGERY ,2211690," 42,607.90 ",WIG000004448,
Department of Health,NHS England,31/01/2014,GPMS/APMS and PCTMS, Primary Care , ASQUITH SURGERY ,2187226," 30,048.86 ",LD000005807,
Department of Health,NHS England,31/01/2014,GPMS/APMS and PCTMS, Primary Care , ASSURA COVENTRY LLP ,2466024," 46,366.00 ",826Z304,
Department of Health,NHS England,31/01/2014,GPMS/APMS and PCTMS, Primary Care , ASSURA LEEDS LLP ,2380393," 65,636.00 ",813Z134,
Department of Health,NHS England,31/01/2014,GPMS/APMS and PCTMS, Primary Care , ASSURA PROPERTY LTD ,2222195," 27,626.17 ",MPDEC13047,
Department of Health,NHS England,31/01/2014,GPMS/APMS and PCTMS, Primary Care , ASSURA PROPERTY LTD ,2222197," 32,612.61 ",MPDEC13049,
Department of Health,NHS England,31/01/2014,GPMS/APMS and PCTMS, Primary Care , ASSURA PROPERTY LTD ,2222196," 35,971.36 ",MPDEC13048,
Department of Health,NHS England,31/01/2014,GPMS/APMS and PCTMS, Primary Care , ASSURA PROPERTY LTD ,2222186," 36,612.25 ",MPDEC13050,
Department of Health,NHS England,31/01/2014,GPMS/APMS and PCTMS, Primary Care , ASTLEY & LEVICK ,2227011,"-51,519.31 ",DR000003412,
Department of Health,NHS England,31/01/2014,GPMS/APMS and PCTMS, Primary Care , ASTLEY & LEVICK ,2243893," 96,916.20 ",DR000003413,
Department of Health,NHS England,31/01/2014,GPMS/APMS and PCTMS, Primary Care , ASTLEY GENERAL PRACTICE ,2292226," 28,469.22 ",WIG000004466,
Department of Health,NHS England,31/01/2014,GPMS/APMS and PCTMS, Primary Care , ASTON HEALTHCARE LTD ,2319931,"-465,455.65 ",STL000003763,
Department of Health,NHS England,31/01/2014,GPMS/APMS and PCTMS, Primary Care , ASTON HEALTHCARE LTD ,2167059,"-33,202.89 ",STL000003523,
Department of Health,NHS England,31/01/2014,GPMS/APMS and PCTMS, Primary Care , ASTON HEALTHCARE LTD ,2196377," 30,252.02 ",BFS33,
Department of Health,NHS England,31/01/2014,GPMS/APMS and PCTMS, Primary Care , ASTON HEALTHCARE LTD ,2395263," 146,368.60 ",152247-13-JAN-2014,
Department of Health,NHS England,31/01/2014,GPMS/APMS and PCTMS, Primary Care , ASTON HEALTHCARE LTD ,2167060," 182,931.67 ",STL000003524,
Department of Health,NHS England,31/01/2014,GPMS/APMS and PCTMS, Primary Care , ASTON HEALTHCARE LTD ,2319932," 605,506.58 ",STL000003764,
Department of Health,NHS England,31/01/2014,GPMS/APMS and PCTMS, Primary Care , AT ACE AT APMS PRACTICE ,2226533,"-28,519.08 ",EX000010833,
Department of Health,NHS England,31/01/2014,GPMS/APMS and PCTMS, Primary Care , AT ACE AT APMS PRACTICE ,2243754," 235,609.29 ",EX000010834,
Department of Health,NHS England,31/01/2014,GPMS/APMS and PCTMS, Primary Care , AT MEDICS LTD BARLBY ROAD ,2231102," 83,339.83 ",LNJ000002896,
Department of Health,NHS England,31/01/2014,GPMS/APMS and PCTMS, Primary Care , AT MEDICS LTD MERRIAM AVENUE ,2226801,"-36,757.62 ",LNA000004387,
Department of Health,NHS England,31/01/2014,GPMS/APMS and PCTMS, Primary Care , AT MEDICS LTD MERRIAM AVENUE ,2243845," 125,273.97 ",LNA000004388,
Department of Health,NHS England,31/01/2014,GPMS/APMS and PCTMS, Primary Care , ATHENA MEDICAL CENTRE ,2355837," 49,364.76 ",LNA000004512,
Department of Health,NHS England,31/01/2014,GPMS/APMS and PCTMS, Primary Care , ATHERLEY HOUSE SURGERY ,2337633," 36,829.44 ",SO000011064,
Department of Health,NHS England,31/01/2014,Consultancy services, NHS England Running Costs , ATOS IT SERVICES UK LTD ,2243434," 21,180.00 ",5584147444 ,
Department of Health,NHS England,31/01/2014,Premises, NHS England Running Costs , ATOS IT SERVICES UK LTD ,2275829," 160,492.80 ",5584147488 ,
Department of Health,NHS England,31/01/2014,Premises, NHS England Running Costs , ATOS IT SERVICES UK LTD ,2243435," 386,616.00 ",5584147492 ,
Department of Health,NHS England,31/01/2014,Consultancy services, NHS England Running Costs , ATOS IT SERVICES UK LTD ,2291850," 496,664.00 ",5584146717 ,
Department of Health,NHS England,31/01/2014,GPMS/APMS and PCTMS, Primary Care , ATRIUM HEALTH CENTRE ,2211110," 78,687.44 ",DO000004530,
Department of Health,NHS England,31/01/2014,GPMS/APMS and PCTMS, Primary Care , ATTENBOROUGH SURGERY ,2414488," 105,820.06 ",HT000006037,
Department of Health,NHS England,31/01/2014,GPMS/APMS and PCTMS, Primary Care , AUCKLAND MEDICAL GROUP ,2406388," 141,847.66 ",DR000003668,
Department of Health,NHS England,31/01/2014,GPMS/APMS and PCTMS, Primary Care , AUCKLAND SURGERY ,2231172," 54,113.07 ",LNR000002971,
Department of Health,NHS England,31/01/2014,GPMS/APMS and PCTMS, Primary Care , AUDLEM MEDICAL PRACTICE ,2306845,"-34,254.20 ",CH000005242,
Department of Health,NHS England,31/01/2014,GPMS/APMS and PCTMS, Primary Care , AUDLEM MEDICAL PRACTICE ,2166257," 26,726.71 ",CH000004820,
Department of Health,NHS England,31/01/2014,GPMS/APMS and PCTMS, Primary Care , AUDLEM MEDICAL PRACTICE ,2306846," 41,978.84 ",CH000005243,
Department of Health,NHS England,31/01/2014,GPMS/APMS and PCTMS, Primary Care , AUGHTON SURGERY ,2396844," 40,268.09 ",LA000007786,
Department of Health,NHS England,31/01/2014,GPMS/APMS and PCTMS, Primary Care , AVENUE MEDICAL CENTRE DENESIDE SEAHAM ,2396532," 48,520.49 ",DR000003670,
Department of Health,NHS England,31/01/2014,GPMS/APMS and PCTMS, Primary Care , AVENUE MEDICAL CENTRE SHEFFIELD ,2227238,"-65,959.08 ",SHE000003006,
Department of Health,NHS England,31/01/2014,GPMS/APMS and PCTMS, Primary Care , AVENUE MEDICAL CENTRE SHEFFIELD ,2227241," 124,620.29 ",SHE000003007,
Department of Health,NHS England,31/01/2014,GPMS/APMS and PCTMS, Primary Care , AVENUE MEDICAL CENTRE SLOUGH ,2243639," 67,338.53 ",BE000004559,
Department of Health,NHS England,31/01/2014,GPMS/APMS and PCTMS, Primary Care , AVENUES MEDICAL CENTRE ,2428635," 55,889.01 ",KHU000004593,
Department of Health,NHS England,31/01/2014,GPMS/APMS and PCTMS, Primary Care , AVICENNA HEALTH CENTRE ,2230246," 39,987.25 ",LNS000006627,
Department of Health,NHS England,31/01/2014,GPMS/APMS and PCTMS, Primary Care , AVISFORD MEDICAL GROUP ,2230798," 106,990.01 ",TW000006228,
Department of Health,NHS England,31/01/2014,Services from other NHS bodies, Specialised Commissioning , AVON AND WILTSHIRE MENTAL HEALTH PARTNERSHIP NHS TRUST ,2274659,"-54,960.57 ",500160 ,
Department of Health,NHS England,31/01/2014,Services from other NHS bodies, Military Health , AVON AND WILTSHIRE MENTAL HEALTH PARTNERSHIP NHS TRUST ,2242810," 37,500.00 ",3002464 ,
Department of Health,NHS England,31/01/2014,Services from other NHS bodies, Health & Justice , AVON AND WILTSHIRE MENTAL HEALTH PARTNERSHIP NHS TRUST ,2274271," 143,445.00 ",3002263 ,
Department of Health,NHS England,31/01/2014,Services from other NHS bodies, Specialised Commissioning , AVON AND WILTSHIRE MENTAL HEALTH PARTNERSHIP NHS TRUST ,2165569," 2,014,299.00 ",3002390 ,
Department of Health,NHS England,31/01/2014,Services from other NHS bodies, Specialised Commissioning , AVON AND WILTSHIRE MENTAL HEALTH PARTNERSHIP NHS TRUST ,2369084," 2,014,299.00 ",3002515 ,
Department of Health,NHS England,31/01/2014,GPMS/APMS and PCTMS, Primary Care , AVON LMC ,2442494," 88,372.56 ",154134-21-JAN-2014,
Department of Health,NHS England,31/01/2014,GPMS/APMS and PCTMS, Primary Care , AVONMOUTH MEDICAL CENTRE ,2228895," 25,618.24 ",BRS000005684,
Department of Health,NHS England,31/01/2014,GPMS/APMS and PCTMS, Primary Care , AVONSIDE HEALTH CENTRE ,2406173," 84,860.97 ",WA000003522,
Department of Health,NHS England,31/01/2014,GPMS/APMS and PCTMS, Primary Care , AW SURGERIES ,2355979,"-173,714.43 ",DUD000001371,
Department of Health,NHS England,31/01/2014,GPMS/APMS and PCTMS, Primary Care , AW SURGERIES ,2355980," 340,275.13 ",DUD000001372,
Department of Health,NHS England,31/01/2014,GPMS/APMS and PCTMS, Primary Care , AWBURN HOUSE MEDICAL PRACTICE ,2359199," 57,150.97 ",GMK000002590,
Department of Health,NHS England,31/01/2014,GPMS/APMS and PCTMS, Primary Care , AYLESBURY MEDICAL CENTRE ,2230248," 205,431.11 ",LNS000006629,
Department of Health,NHS England,31/01/2014,GPMS/APMS and PCTMS, Primary Care , AYLESFORD MEDICAL CENTRE ,2292318," 46,691.33 ",KC000011679,
Department of Health,NHS England,31/01/2014,GPMS/APMS and PCTMS, Primary Care , AYLESHAM MEDICAL PRACTICE ,2279035," 38,437.06 ",KC000012134,
Department of Health,NHS England,31/01/2014,Purchase of healthcare from non-NHS bodies, Specialised Commissioning , B BRAUN AVITUM UK LTD ,2441499," 76,998.28 ",328550350 ,
Department of Health,NHS England,31/01/2014,Purchase of healthcare from non-NHS bodies, Specialised Commissioning , B BRAUN AVITUM UK LTD ,2452298," 77,704.31 ",32855123031121300000 ,
Department of Health,NHS England,31/01/2014,Purchase of healthcare from non-NHS bodies, Specialised Commissioning , B BRAUN AVITUM UK LTD ,2441814," 94,531.75 ",328551228 ,
Department of Health,NHS England,31/01/2014,Purchase of healthcare from non-NHS bodies, Specialised Commissioning , B BRAUN AVITUM UK LTD ,2441503," 96,032.26 ",328550331 ,
Department of Health,NHS England,31/01/2014,Purchase of healthcare from non-NHS bodies, Specialised Commissioning , B BRAUN AVITUM UK LTD ,2380409," 117,664.52 ",328551229 ,
Department of Health,NHS England,31/01/2014,GPMS/APMS and PCTMS, Primary Care , B HUDSON ,2244374," 72,994.48 ",LNP000004965,
Department of Health,NHS England,31/01/2014,GPMS/APMS and PCTMS, Primary Care , B RASHID ,2414894," 25,452.35 ",LNH000002594,
Department of Health,NHS England,31/01/2014,GPMS/APMS and PCTMS, Primary Care , BA PATTOO ,2359537," 30,122.13 ",MAN000002754,
Department of Health,NHS England,31/01/2014,GPMS/APMS and PCTMS, Primary Care , BACKWELL&NAILSEA MEDICAL GROUP ,2228897," 114,154.88 ",BRS000005686,
Department of Health,NHS England,31/01/2014,GPMS/APMS and PCTMS, Primary Care , BACON ROAD MEDICAL CENTRE ,2244328," 29,143.04 ",NF000005755,
Department of Health,NHS England,31/01/2014,GPMS/APMS and PCTMS, Primary Care , BACON ROAD MEDICAL CENTRE ,2359020," 32,126.55 ",NF000006132,
Department of Health,NHS England,31/01/2014,GPMS/APMS and PCTMS, Primary Care , BADGER LTD ,2395291," 174,754.44 ",154127-21-JAN-2014,
Department of Health,NHS England,31/01/2014,GPMS/APMS and PCTMS, Primary Care , BADGERSWOOD SURGERY ,2337639," 101,782.40 ",SO000011070,
Department of Health,NHS England,31/01/2014,GPMS/APMS and PCTMS, Primary Care , BAFFINS SURGERY ,2198091,"-64,745.50 ",SO000010800,
Department of Health,NHS England,31/01/2014,GPMS/APMS and PCTMS, Primary Care , BAFFINS SURGERY ,2209538," 169,160.67 ",SO000010801,
Department of Health,NHS England,31/01/2014,GPMS/APMS and PCTMS, Primary Care , BAGARY & BAGARY ,2355947," 41,119.32 ",WOM000002293,
Department of Health,NHS England,31/01/2014,GPMS/APMS and PCTMS, Primary Care , BAILEY M C & PARTNERS ,2413198," 67,495.60 ",EX000011352,
Department of Health,NHS England,31/01/2014,GPMS/APMS and PCTMS, Primary Care , BAINBRIDGE & PARTNERS ,2319148,"-26,137.27 ",LIP000004644,
Department of Health,NHS England,31/01/2014,GPMS/APMS and PCTMS, Primary Care , BAINBRIDGE & PARTNERS ,2332445," 38,526.75 ",LIP000004645,
Department of Health,NHS England,31/01/2014,GPMS/APMS and PCTMS, Primary Care , BAIRD & PARTNERS ,2319149,"-53,356.96 ",LIP000004646,
Department of Health,NHS England,31/01/2014,GPMS/APMS and PCTMS, Primary Care , BAIRD & PARTNERS ,2166874," 50,024.08 ",LIP000004361,
Department of Health,NHS England,31/01/2014,GPMS/APMS and PCTMS, Primary Care , BAIRD & PARTNERS ,2319150," 77,471.22 ",LIP000004647,
Department of Health,NHS England,31/01/2014,GPMS/APMS and PCTMS, Primary Care , BAJAJ & PARTNER ,2319152," 27,766.67 ",LIP000004649,
Department of Health,NHS England,31/01/2014,GPMS/APMS and PCTMS, Primary Care , BAJEN J M & PARTNER ,2226535," 65,178.19 ",EX000010836,
Department of Health,NHS England,31/01/2014,GPMS/APMS and PCTMS, Primary Care , BAKERSFIELD MEDICAL CENTRE ,2225741," 49,347.59 ",NN000006745,
Department of Health,NHS England,31/01/2014,GPMS/APMS and PCTMS, Primary Care , BAKEWELL MEDICAL CENTRE ,2342055," 71,637.43 ",DE000006538,
Department of Health,NHS England,31/01/2014,GPMS/APMS and PCTMS, Primary Care , BAKHAT A ,2359539," 79,732.82 ",MAN000002756,
Department of Health,NHS England,31/01/2014,GPMS/APMS and PCTMS, Primary Care , BALAAM STREET PRACTICE ,2226802,"-54,970.53 ",LNA000004389,
Department of Health,NHS England,31/01/2014,GPMS/APMS and PCTMS, Primary Care , BALAAM STREET PRACTICE ,2226803," 108,420.27 ",LNA000004390,
Department of Health,NHS England,31/01/2014,GPMS/APMS and PCTMS, Primary Care , BALDERTON PRIMARY CARE CENTRE ,2305533," 75,123.00 ",152262-13-JAN-2014,
Department of Health,NHS England,31/01/2014,GPMS/APMS and PCTMS, Primary Care , BALDWINS LANE SURGERY ,2414495," 34,812.34 ",HT000006045,
Department of Health,NHS England,31/01/2014,GPMS/APMS and PCTMS, Primary Care , BALFOUR ROAD SURGERY ,2340190," 42,531.97 ",LNB000002844,
Department of Health,NHS England,31/01/2014,GPMS/APMS and PCTMS, Primary Care , BALHAM PARK SURGERY ,2244375," 119,425.75 ",LNP000004967,
Department of Health,NHS England,31/01/2014,GPMS/APMS and PCTMS, Primary Care , BALIGA KS ,2227013," 34,989.05 ",DR000003415,
Department of Health,NHS England,31/01/2014,GPMS/APMS and PCTMS, Primary Care , BALL TREE SURGERY ,2320669," 64,976.92 ",TW000006536,
Department of Health,NHS England,31/01/2014,GPMS/APMS and PCTMS, Primary Care , BALLATER ,2292353," 59,625.56 ",LNT000002277,
Department of Health,NHS England,31/01/2014,GPMS/APMS and PCTMS, Primary Care , BALMORAL GARDENS ,2278552," 48,439.41 ",KC000011683,
Department of Health,NHS England,31/01/2014,GPMS/APMS and PCTMS, Primary Care , BALMORAL SURGERY ,2279014," 71,997.12 ",KC000012112,
Department of Health,NHS England,31/01/2014,GPMS/APMS and PCTMS, Primary Care , BALMORE PARK SURGERY ,2338934," 33,160.71 ",BE000004680,
Department of Health,NHS England,31/01/2014,GPMS/APMS and PCTMS, Primary Care , BALMORE PARK SURGERY ,2225529," 129,326.00 ",BE000004563,
Department of Health,NHS England,31/01/2014,GPMS/APMS and PCTMS, Primary Care , BAMPTON MEDICAL PRACTICE ,2413574," 69,922.47 ",OX000003964,
Department of Health,NHS England,31/01/2014,GPMS/APMS and PCTMS, Primary Care , BAMPTON SURGERY ,2455137," 39,468.08 ",DN000008848,
Department of Health,NHS England,31/01/2014,GPMS/APMS and PCTMS, Primary Care , BANBURY ROAD MEDICAL CENTRE ,2413576," 51,595.03 ",OX000003966,
Department of Health,NHS England,31/01/2014,GPMS/APMS and PCTMS, Primary Care , BANGOR STREET HEALTH CENTRE ,2396857," 51,771.45 ",LA000007800,
Department of Health,NHS England,31/01/2014,GPMS/APMS and PCTMS, Primary Care , BANK HOUSE SURGERY HARTLEPOOL ,2277808," 70,046.39 ",MID000003260,
Department of Health,NHS England,31/01/2014,GPMS/APMS and PCTMS, Primary Care , BANKS SURGERY ,2410092," 41,836.29 ",LD000006066,
Department of Health,NHS England,31/01/2014,GPMS/APMS and PCTMS, Primary Care , BANNOCKBURN SURGERY ,2244109," 48,105.21 ",LNW000002374,
Department of Health,NHS England,31/01/2014,GPMS/APMS and PCTMS, Primary Care , BANSAL & READE ,2319933,"-25,302.27 ",STL000003765,
Department of Health,NHS England,31/01/2014,GPMS/APMS and PCTMS, Primary Care , BANSAL & READE ,2167062," 26,452.33 ",STL000003526,
Department of Health,NHS England,31/01/2014,GPMS/APMS and PCTMS, Primary Care , BANSAL & READE ,2319934," 34,319.29 ",STL000003766,
Department of Health,NHS England,31/01/2014,GPMS/APMS and PCTMS, Primary Care , BANSAL A & PARTNER ,2243755," 49,096.60 ",EX000010840,
Department of Health,NHS England,31/01/2014,GPMS/APMS and PCTMS, Primary Care , BARGATE MEDICAL CENTRE ,2198094," 43,781.49 ",SO000010805,
Department of Health,NHS England,31/01/2014,GPMS/APMS and PCTMS, Primary Care , BARING ROAD MEDICAL CENTRE ,2230252," 66,010.25 ",LNS000006633,
Department of Health,NHS England,31/01/2014,GPMS/APMS and PCTMS, Primary Care , BARKANTINE PRACTICE ,2226804,"-206,127.09 ",LNA000004391,
Department of Health,NHS England,31/01/2014,GPMS/APMS and PCTMS, Primary Care , BARKANTINE PRACTICE ,2275467," 58,710.00 ",WIC037,
Department of Health,NHS England,31/01/2014,GPMS/APMS and PCTMS, Primary Care , BARKANTINE PRACTICE ,2226805," 385,791.59 ",LNA000004392,
Department of Health,NHS England,31/01/2014,GPMS/APMS and PCTMS, Primary Care , BARKHAM J D T & PARTNER ,2413205," 42,522.82 ",EX000011360,
Department of Health,NHS England,31/01/2014,Services from other NHS bodies, Secondary and Community Dental Care , BARKING HAVERING AND REDBRIDGE HOSPITALS NHS TRUST ,2221056,"-108,442.00 ",8403394 ,
Department of Health,NHS England,31/01/2014,Services from other NHS bodies, Public Health , BARKING HAVERING AND REDBRIDGE HOSPITALS NHS TRUST ,2197331," 26,935.00 ",8404014 ,
Department of Health,NHS England,31/01/2014,Services from other NHS bodies, Secondary and Community Dental Care , BARKING HAVERING AND REDBRIDGE HOSPITALS NHS TRUST ,2221037," 108,442.00 ",8403362 ,
Department of Health,NHS England,31/01/2014,Services from other NHS bodies, Public Health , BARKING HAVERING AND REDBRIDGE HOSPITALS NHS TRUST ,2197711," 200,234.00 ",8404013 ,
Department of Health,NHS England,31/01/2014,Services from other NHS bodies, Secondary and Community Dental Care , BARKING HAVERING AND REDBRIDGE HOSPITALS NHS TRUST ,2197712," 272,096.00 ",8404015 ,
Department of Health,NHS England,31/01/2014,Services from other NHS bodies, Specialised Commissioning , BARKING HAVERING AND REDBRIDGE HOSPITALS NHS TRUST ,2209348," 4,709,800.00 ",8404012 ,
Department of Health,NHS England,31/01/2014,GPMS/APMS and PCTMS, Primary Care , BARKINGSIDE MEDICAL CENTRE ,2243996," 49,552.58 ",LNB000002742,
Department of Health,NHS England,31/01/2014,GPMS/APMS and PCTMS, Primary Care , BARMSTON MEDICAL CENTRE ,2229821," 62,288.26 ",SUN000001745,
Department of Health,NHS England,31/01/2014,GPMS/APMS and PCTMS, Primary Care , BARN SURGERY ,2211118," 77,188.22 ",DO000004538,
Department of Health,NHS England,31/01/2014,GPMS/APMS and PCTMS, Primary Care , BARNARD CASTLE SURGERY ,2227014,"-101,865.91 ",DR000003416,
Department of Health,NHS England,31/01/2014,GPMS/APMS and PCTMS, Primary Care , BARNARD CASTLE SURGERY ,2227015," 189,873.05 ",DR000003417,
Department of Health,NHS England,31/01/2014,GPMS/APMS and PCTMS, Primary Care , BARNARD PRACTICE ,2229706," 87,411.57 ",LNW000002376,
Department of Health,NHS England,31/01/2014,GPMS/APMS and PCTMS, Primary Care , BARNDOC HEALTHCARE LTD ,2195810," 64,477.00 ",1497 ,
Department of Health,NHS England,31/01/2014,Services from other NHS bodies, Public Health , BARNET & CHASE FARM HOSPITALS NHS TRUST ,2275243," 52,915.00 ",I0063283,
Department of Health,NHS England,31/01/2014,General Dental services and personal dental services, Secondary and Community Dental Care , BARNET & CHASE FARM HOSPITALS NHS TRUST ,2275241," 98,492.00 ",I0063281,
Department of Health,NHS England,31/01/2014,Services from other NHS bodies, Specialised Commissioning , BARNET & CHASE FARM HOSPITALS NHS TRUST ,2209432," 168,544.65 ",I0063267,
Department of Health,NHS England,31/01/2014,Services from other NHS bodies, Public Health , BARNET & CHASE FARM HOSPITALS NHS TRUST ,2209352," 296,706.00 ",I0063284,
Department of Health,NHS England,31/01/2014,Services from other NHS bodies, Secondary and Community Dental Care , BARNET & CHASE FARM HOSPITALS NHS TRUST ,2209351," 571,135.00 ",I0063280,
Department of Health,NHS England,31/01/2014,Services from other NHS bodies, Specialised Commissioning , BARNET & CHASE FARM HOSPITALS NHS TRUST ,2197824," 1,449,709.00 ",I0063279,
Department of Health,NHS England,31/01/2014,Services from other NHS bodies, Other , BARNET ENFIELD AND HARINGEY MENTAL HEALTH NHS TRUST ,2222004," 26,333.00 ",41417422 ,
Department of Health,NHS England,31/01/2014,Services from other NHS bodies, Health & Justice , BARNET ENFIELD AND HARINGEY MENTAL HEALTH NHS TRUST ,2290322," 31,046.00 ",41417420 ,
Department of Health,NHS England,31/01/2014,Services from other NHS bodies, Public Health , BARNET ENFIELD AND HARINGEY MENTAL HEALTH NHS TRUST ,2183315," 57,198.75 ",41417338 ,
Department of Health,NHS England,31/01/2014,Services from other NHS bodies, Other , BARNET ENFIELD AND HARINGEY MENTAL HEALTH NHS TRUST ,2197682," 180,682.00 ",41417361 ,
Department of Health,NHS England,31/01/2014,Services from other NHS bodies, Public Health , BARNET ENFIELD AND HARINGEY MENTAL HEALTH NHS TRUST ,2174693," 279,750.00 ",41417280 ,
Department of Health,NHS England,31/01/2014,Services from other NHS bodies, Public Health , BARNET ENFIELD AND HARINGEY MENTAL HEALTH NHS TRUST ,2209349," 279,750.00 ",41417421 ,
Department of Health,NHS England,31/01/2014,Services from other NHS bodies, Specialised Commissioning , BARNET ENFIELD AND HARINGEY MENTAL HEALTH NHS TRUST ,2197820," 3,756,849.00 ",41417419 ,
Department of Health,NHS England,31/01/2014,GPMS/APMS and PCTMS, Primary Care , BARNETT & PARTNERS ,2319157,"-30,724.94 ",LIP000004654,
Department of Health,NHS England,31/01/2014,GPMS/APMS and PCTMS, Primary Care , BARNETT & PARTNERS ,2166882," 26,841.57 ",LIP000004369,
Department of Health,NHS England,31/01/2014,GPMS/APMS and PCTMS, Primary Care , BARNETT & PARTNERS ,2319158," 36,564.17 ",LIP000004655,
Department of Health,NHS England,31/01/2014,GPMS/APMS and PCTMS, Primary Care , BARNFIELD HILL SURGERY ,2455139," 69,710.04 ",DN000008850,
Department of Health,NHS England,31/01/2014,GPMS/APMS and PCTMS, Primary Care , BARNOLDSWICK MEDICAL CENTRE ,2406406," 134,044.90 ",LA000007806,
Department of Health,NHS England,31/01/2014,Services from other NHS bodies, Specialised Commissioning , BARNSLEY HOSPITAL NHS FOUNDATION TRUST ,2427678," 28,700.00 ",6022905 ,
Department of Health,NHS England,31/01/2014,Services from other NHS bodies, Public Health , BARNSLEY HOSPITAL NHS FOUNDATION TRUST ,2255681," 120,628.00 ",6024207 ,
Department of Health,NHS England,31/01/2014,Services from other NHS bodies, Secondary and Community Dental Care , BARNSLEY HOSPITAL NHS FOUNDATION TRUST ,2255680," 149,764.00 ",6024206 ,
Department of Health,NHS England,31/01/2014,Services from other NHS bodies, Specialised Commissioning , BARNSLEY HOSPITAL NHS FOUNDATION TRUST ,2222876," 540,561.00 ",6024205 ,
Department of Health,NHS England,31/01/2014,GPMS/APMS and PCTMS, Primary Care , BARNSLEY ROAD SURGERY ,2243959," 25,993.40 ",SHE000003011,
Department of Health,NHS England,31/01/2014,GPMS/APMS and PCTMS, Primary Care , BARNT GREEN SURGERY ,2243801," 56,348.20 ",WR000004000,
Department of Health,NHS England,31/01/2014,GPMS/APMS and PCTMS, Primary Care , BARR LANE SURGERY ,2406177," 73,525.86 ",WA000003530,
Department of Health,NHS England,31/01/2014,GPMS/APMS and PCTMS, Primary Care , BARRACK LANE MEDICAL CENTRE ,2211511,"-107,468.46 ",SU000004440,
Department of Health,NHS England,31/01/2014,GPMS/APMS and PCTMS, Primary Care , BARRACK LANE MEDICAL CENTRE ,2211512," 229,432.51 ",SU000004441,
Department of Health,NHS England,31/01/2014,GPMS/APMS and PCTMS, Primary Care , BARRETT CHATTERJEE DAY & PARTNERS ,2229920,"-27,798.18 ",DE000006311,
Department of Health,NHS England,31/01/2014,GPMS/APMS and PCTMS, Primary Care , BARRETT CHATTERJEE DAY & PARTNERS ,2229921," 129,130.31 ",DE000006312,
Department of Health,NHS England,31/01/2014,GPMS/APMS and PCTMS, Primary Care , BARROWFORD SURGERY ,2396863," 34,948.71 ",LA000007808,
Department of Health,NHS England,31/01/2014,GPMS/APMS and PCTMS, Primary Care , BARTLEMAS SURGERY ,2413578," 63,977.32 ",OX000003968,
Department of Health,NHS England,31/01/2014,GPMS/APMS and PCTMS, Primary Care , BARTON HOUSE GROUP PRACTICE ,2355839," 189,458.83 ",LNA000004522,
Department of Health,NHS England,31/01/2014,GPMS/APMS and PCTMS, Primary Care , BARTON HOUSE SURGERY ,2339073," 53,732.27 ",DO000004744,
Department of Health,NHS England,31/01/2014,GPMS/APMS and PCTMS, Primary Care , BARTON SURGERY (DAWLISH) ,2455141," 134,281.27 ",DN000008852,
Department of Health,NHS England,31/01/2014,GPMS/APMS and PCTMS, Primary Care , BARTON SURGERY (TORQUAY) ,2455143," 88,359.01 ",DN000008854,
Department of Health,NHS England,31/01/2014,GPMS/APMS and PCTMS, Primary Care , BARTON WEBB PEPLOE PARTNERSHIP ,2337647," 97,121.32 ",SO000011078,
Department of Health,NHS England,31/01/2014,Services from other NHS bodies, Public Health , BARTS HEALTH NHS TRUST ,2275995," 38,500.00 ",181666 ,
Department of Health,NHS England,31/01/2014,Services from other NHS bodies, Public Health , BARTS HEALTH NHS TRUST ,2256205," 41,833.33 ",181665 ,
Department of Health,NHS England,31/01/2014,Services from other NHS bodies, Public Health , BARTS HEALTH NHS TRUST ,2354097," 276,988.00 ",180695 ,
Department of Health,NHS England,31/01/2014,Services from other NHS bodies, Public Health , BARTS HEALTH NHS TRUST ,2367899," 276,988.00 ",179301 ,
Department of Health,NHS England,31/01/2014,Services from other NHS bodies, Secondary and Community Dental Care , BARTS HEALTH NHS TRUST ,2275998," 349,083.33 ",181664 ,
Department of Health,NHS England,31/01/2014,Services from other NHS bodies, Public Health , BARTS HEALTH NHS TRUST ,2275996," 385,833.33 ",181668 ,
Department of Health,NHS England,31/01/2014,Services from other NHS bodies, Secondary and Community Dental Care , BARTS HEALTH NHS TRUST ,2275997," 1,733,532.25 ",181667 ,
Department of Health,NHS England,31/01/2014,GPMS/APMS and PCTMS, Primary Care , BARUCH & PARTNERS ,2339346," 52,160.13 ",LNN000002914,
Department of Health,NHS England,31/01/2014,Services from other NHS bodies, Specialised Commissioning , BASILDON & THURROCK UNIVERSITY HOSPITALS NHS FOUNDATION TRUST ,2183192,"-155,482.75 ",4924 ,
Department of Health,NHS England,31/01/2014,Services from other NHS bodies, Specialised Commissioning , BASILDON & THURROCK UNIVERSITY HOSPITALS NHS FOUNDATION TRUST ,2380781," 33,767.64 ",61900 ,
Department of Health,NHS England,31/01/2014,Services from other NHS bodies, Secondary and Community Dental Care , BASILDON & THURROCK UNIVERSITY HOSPITALS NHS FOUNDATION TRUST ,2368135," 128,078.00 ",61762 ,
Department of Health,NHS England,31/01/2014,Services from other NHS bodies, Public Health , BASILDON & THURROCK UNIVERSITY HOSPITALS NHS FOUNDATION TRUST ,2368135," 143,200.00 ",61762 ,
Department of Health,NHS England,31/01/2014,Services from other NHS bodies, Specialised Commissioning , BASILDON & THURROCK UNIVERSITY HOSPITALS NHS FOUNDATION TRUST ,2290615," 3,986,434.00 ",61757 ,
Department of Health,NHS England,31/01/2014,GPMS/APMS and PCTMS, Primary Care , BASLOW HEALTH CENTRE ,2355920," 38,445.02 ",DE000006587,
Department of Health,NHS England,31/01/2014,GPMS/APMS and PCTMS, Primary Care , BASLOW ROAD & SHOREHAM STREET SURGERIES ,2412414," 69,265.58 ",SHE000003188,
Department of Health,NHS England,31/01/2014,GPMS/APMS and PCTMS, Primary Care , BASSAN ,2341970," 31,487.22 ",WBH000001816,
Department of Health,NHS England,31/01/2014,GPMS/APMS and PCTMS, Primary Care , BASSETT ROAD MEDICAL PRACTICE ,2428853," 116,198.06 ",BD000003870,
Department of Health,NHS England,31/01/2014,GPMS/APMS and PCTMS, Primary Care , BATES & PARTNERS RICHMOND ,2339348," 63,875.72 ",LNN000002916,
Department of Health,NHS England,31/01/2014,GPMS/APMS and PCTMS, Primary Care , BATES & PARTNERS WIRRAL ,2319834,"-50,823.31 ",BIK000002261,
Department of Health,NHS England,31/01/2014,GPMS/APMS and PCTMS, Primary Care , BATES & PARTNERS WIRRAL ,2166806," 31,981.00 ",BIK000002144,
Department of Health,NHS England,31/01/2014,GPMS/APMS and PCTMS, Primary Care , BATES & PARTNERS WIRRAL ,2319835," 71,380.67 ",BIK000002262,
Department of Health,NHS England,31/01/2014,GPMS/APMS and PCTMS, Primary Care , BATESON & PARTNERS ,2319159,"-40,029.16 ",LIP000004656,
Department of Health,NHS England,31/01/2014,GPMS/APMS and PCTMS, Primary Care , BATESON & PARTNERS ,2166884," 40,745.44 ",LIP000004371,
Department of Health,NHS England,31/01/2014,GPMS/APMS and PCTMS, Primary Care , BATESON & PARTNERS ,2319160," 60,253.87 ",LIP000004657,
Department of Health,NHS England,31/01/2014,GPMS/APMS and PCTMS, Primary Care , BATH LODGE PRACTICE ,2337649," 114,848.41 ",SO000011080,
Department of Health,NHS England,31/01/2014,GPMS/APMS and PCTMS, Primary Care , BATH ROAD SURGERY SLOUGH ,2338936," 30,130.23 ",BE000004682,
Department of Health,NHS England,31/01/2014,GPMS/APMS and PCTMS, Primary Care , BATH STREET SURGERY ,2355982," 55,156.50 ",DUD000001374,
Department of Health,NHS England,31/01/2014,GPMS/APMS and PCTMS, Primary Care , BATHEASTON MEDICAL CENTRE ,2228904," 47,783.76 ",BRS000005693,
Department of Health,NHS England,31/01/2014,Purchase of healthcare from non-NHS bodies, Specialised Commissioning , BATTERSEA BRIDGE HOUSE LTD ,2291836,"-357,238.69 ",HONHSLS018,
Department of Health,NHS England,31/01/2014,Purchase of healthcare from non-NHS bodies, Specialised Commissioning , BATTERSEA BRIDGE HOUSE LTD ,2291831," 595,069.48 ",HONHSLS019,
Department of Health,NHS England,31/01/2014,GPMS/APMS and PCTMS, Primary Care , BATTLEHILL HEALTH CENTRE ,2228249," 113,985.48 ",NEW000002455,
Department of Health,NHS England,31/01/2014,GPMS/APMS and PCTMS, Primary Care , BAYLIS T M & PARTNERS ,2413193," 46,796.81 ",EX000011346,
Department of Health,NHS England,31/01/2014,GPMS/APMS and PCTMS, Primary Care , BAYSWATER MEDICAL CENTRE ,2231100," 72,819.23 ",LNJ000002894,
Department of Health,NHS England,31/01/2014,GPMS/APMS and PCTMS, Primary Care , BEACON MEDICAL ,2224405,"-27,486.35 ",KHU000004311,
Department of Health,NHS England,31/01/2014,GPMS/APMS and PCTMS, Primary Care , BEACON MEDICAL ,2243585," 153,326.44 ",KHU000004312,
Department of Health,NHS England,31/01/2014,GPMS/APMS and PCTMS, Primary Care , BEACON SURGERY ,2293840," 86,080.00 ",TE000005248,
Department of Health,NHS England,31/01/2014,GPMS/APMS and PCTMS, Primary Care , BEARSTED MEDICAL PRACTICE ,2278544," 73,795.33 ",KC000011673,
Department of Health,NHS England,31/01/2014,GPMS/APMS and PCTMS, Primary Care , BEARWOOD MEDICAL CENTRE ,2211106," 76,321.62 ",DO000004526,
Department of Health,NHS England,31/01/2014,GPMS/APMS and PCTMS, Primary Care , BEAUFORT ROAD SURGERY ,2339067," 98,189.51 ",DO000004738,
Department of Health,NHS England,31/01/2014,GPMS/APMS and PCTMS, Primary Care , BEAUMONT LEYS HEALTH CENTRE ,2187224," 45,408.52 ",LD000005805,
Department of Health,NHS England,31/01/2014,GPMS/APMS and PCTMS, Primary Care , BEAUMONT STREET SURGERY ,2413568," 37,763.96 ",OX000003958,
Department of Health,NHS England,31/01/2014,GPMS/APMS and PCTMS, Primary Care , BEAUMONT VILLA SURGERY ,2455133," 109,280.52 ",DN000008844,
Department of Health,NHS England,31/01/2014,GPMS/APMS and PCTMS, Primary Care , BECCLES MEDICAL CENTRE ,2230883,"-31,595.51 ",NF000005564,
Department of Health,NHS England,31/01/2014,GPMS/APMS and PCTMS, Primary Care , BECCLES MEDICAL CENTRE ,2230884," 169,582.76 ",NF000005565,
Department of Health,NHS England,31/01/2014,GPMS/APMS and PCTMS, Primary Care , BECKETT HOUSE PRACTICE ,2244177," 57,404.33 ",LNS000006615,
Department of Health,NHS England,31/01/2014,GPMS/APMS and PCTMS, Primary Care , BECKINGTON FAMILY PRACTICE ,2428683," 103,948.51 ",SM000002835,
Department of Health,NHS England,31/01/2014,Services from other NHS bodies, Specialised Commissioning , BEDFORD HOSPITAL NHS TRUST ,2452399," 47,507.11 ",I0131819,
Department of Health,NHS England,31/01/2014,Services from other NHS bodies, Public Health , BEDFORD HOSPITAL NHS TRUST ,2290157," 194,723.95 ",I0131443,
Department of Health,NHS England,31/01/2014,General Dental services and personal dental services, Secondary and Community Dental Care , BEDFORD HOSPITAL NHS TRUST ,2290157," 198,422.05 ",I0131443,
Department of Health,NHS England,31/01/2014,Services from other NHS bodies, Specialised Commissioning , BEDFORD HOSPITAL NHS TRUST ,2290155," 765,062.00 ",I0131438,
Department of Health,NHS England,31/01/2014,GPMS/APMS and PCTMS, Primary Care , BEDFORD HOUSE MEDICAL CENTRE ,2369652," 61,683.32 ",GMK000002588,
Department of Health,NHS England,31/01/2014,GPMS/APMS and PCTMS, Primary Care , BEDFORD SQUARE MEDICAL CENTRE ,2414901," 37,529.59 ",LND000003462,
Department of Health,NHS England,31/01/2014,GPMS/APMS and PCTMS, Primary Care , BEDFORD STREET SURGERY ,2225411," 93,635.96 ",BU000003372,
Department of Health,NHS England,31/01/2014,GPMS/APMS and PCTMS, Primary Care , BEDLINGTONSHIRE MEDICAL GROUP ,2226942," 95,321.41 ",NR000002151,
Department of Health,NHS England,31/01/2014,GPMS/APMS and PCTMS, Primary Care , BEDMINSTER FAMILY PRACTICE ,2244049," 113,076.47 ",BRS000005680,
Department of Health,NHS England,31/01/2014,GPMS/APMS and PCTMS, Primary Care , BEDSIDE MANOR ,2229697," 40,664.04 ",LNW000002364,
Department of Health,NHS England,31/01/2014,GPMS/APMS and PCTMS, Primary Care , BEDWELL MEDICAL CENTRE ,2414486," 96,262.92 ",HT000006035,
Department of Health,NHS England,31/01/2014,GPMS/APMS and PCTMS, Primary Care , BEEBY ,2319928," 33,240.24 ",STL000003760,
Department of Health,NHS England,31/01/2014,GPMS/APMS and PCTMS, Primary Care , BEECH GROVE MEDICAL PRACTICE ,2370352," 32,510.27 ",YN000004967,
Department of Health,NHS England,31/01/2014,GPMS/APMS and PCTMS, Primary Care , BEECH GROVE SURGERY ,2337626," 41,407.74 ",SO000011056,
Department of Health,NHS England,31/01/2014,GPMS/APMS and PCTMS, Primary Care , BEECH HILL MEDICAL CENTRE ,2222697," 131,815.55 ",WIG000004332,
Department of Health,NHS England,31/01/2014,GPMS/APMS and PCTMS, Primary Care , BEECH HOUSE MEDICAL PRACTICE ,2227743," 71,403.94 ",SPT000001720,
Department of Health,NHS England,31/01/2014,GPMS/APMS and PCTMS, Primary Care , BEECH HOUSE SURGERY ,2370353," 72,150.58 ",YN000004969,
Department of Health,NHS England,31/01/2014,GPMS/APMS and PCTMS, Primary Care , BEECH TREE SURGERY ,2370355," 149,131.08 ",YN000004971,
Department of Health,NHS England,31/01/2014,GPMS/APMS and PCTMS, Primary Care , BEECHCROFT SURGERY ,2230886," 48,442.89 ",NF000005567,
Department of Health,NHS England,31/01/2014,GPMS/APMS and PCTMS, Primary Care , BEECHDALE SURGERY ,2225732," 45,105.76 ",NN000006741,
Department of Health,NHS England,31/01/2014,GPMS/APMS and PCTMS, Primary Care , BEECHES MEDICAL PRACTICE ,2370163," 49,207.04 ",SA000003796,
Department of Health,NHS England,31/01/2014,GPMS/APMS and PCTMS, Primary Care , BEECHWOOD GROUP PRACTICE ,2340366," 48,965.55 ",CU000003445,
Department of Health,NHS England,31/01/2014,GPMS/APMS and PCTMS, Primary Care , BEECHWOOD MEDICAL CENTRE ,2355835," 31,691.91 ",LNA000004508,
Department of Health,NHS England,31/01/2014,GPMS/APMS and PCTMS, Primary Care , BEECHWOOD MEDICAL PRACTICE ,2428723," 93,625.90 ",BRS000006057,
Department of Health,NHS England,31/01/2014,GPMS/APMS and PCTMS, Primary Care , BEECHWOOD SURGERY ,2406403," 27,324.81 ",LA000007780,
Department of Health,NHS England,31/01/2014,GPMS/APMS and PCTMS, Primary Care , BEGGARWOOD SURGERY (THE) ,2198089,"-113,600.88 ",SO000010798,
Department of Health,NHS England,31/01/2014,GPMS/APMS and PCTMS, Primary Care , BEGGARWOOD SURGERY (THE) ,2198090," 175,863.91 ",SO000010799,
Department of Health,NHS England,31/01/2014,GPMS/APMS and PCTMS, Primary Care , BEHESHTI & PARTNERS ,2337172," 45,344.40 ",LNC000003187,
Department of Health,NHS England,31/01/2014,GPMS/APMS and PCTMS, Primary Care , BELFORD MEDICAL PRACTICE ,2226946," 51,533.87 ",NR000002155,
Department of Health,NHS England,31/01/2014,GPMS/APMS and PCTMS, Primary Care , BELGRAVE SURGERY ,2383177," 75,383.52 ",YN000004973,
Department of Health,NHS England,31/01/2014,GPMS/APMS and PCTMS, Primary Care , BELGRAVIA SURGERY ,2307265," 57,985.39 ",LNJ000003016,
Department of Health,NHS England,31/01/2014,GPMS/APMS and PCTMS, Primary Care , BELL HOUSE MEDICAL PRACTICE ,2413860," 80,872.49 ",BD000003868,
Department of Health,NHS England,31/01/2014,GPMS/APMS and PCTMS, Primary Care , BELL SURGERY ,2413570," 91,218.84 ",OX000003960,
Department of Health,NHS England,31/01/2014,GPMS/APMS and PCTMS, Primary Care , BELLEGROVE ROAD SURGERY ,2244107," 76,525.09 ",LNW000002368,
Department of Health,NHS England,31/01/2014,GPMS/APMS and PCTMS, Primary Care , BELLINGHAM GREEN SURGERY ,2230237," 65,269.38 ",LNS000006617,
Department of Health,NHS England,31/01/2014,GPMS/APMS and PCTMS, Primary Care , BELLINGHAM J M & PARTNERS ,2226530," 79,699.13 ",EX000010830,
Department of Health,NHS England,31/01/2014,GPMS/APMS and PCTMS, Primary Care , BELLINGHAM MEDICAL GROUP ,2243883," 38,182.62 ",NR000002157,
Department of Health,NHS England,31/01/2014,GPMS/APMS and PCTMS, Primary Care , BELMONT & SHERBURN MEDICAL GROUP ,2396523," 75,471.66 ",DR000003665,
Department of Health,NHS England,31/01/2014,GPMS/APMS and PCTMS, Primary Care , BELMONT HILL SURGERY ,2230239," 55,647.17 ",LNS000006619,
Department of Health,NHS England,31/01/2014,GPMS/APMS and PCTMS, Primary Care , BELMONT MEDICAL CENTRE ,2320285," 73,155.30 ",LNK000001408,
Department of Health,NHS England,31/01/2014,GPMS/APMS and PCTMS, Primary Care , BELSIZE PRIORY MEDICAL PRACTICE ,2414906," 37,701.12 ",LND000003464,
Department of Health,NHS England,31/01/2014,GPMS/APMS and PCTMS, Primary Care , BELVEDERE MEDICAL CENTRE ,2244108," 59,303.66 ",LNW000002370,
Department of Health,NHS England,31/01/2014,GPMS/APMS and PCTMS, Primary Care , BELVIDERE MEDICAL PRACTICE ,2370165," 38,782.68 ",SA000003798,
Department of Health,NHS England,31/01/2014,GPMS/APMS and PCTMS, Primary Care , BENFIELD PARK MEDICAL GROUP ,2429035," 67,820.30 ",NEW000002623,
Department of Health,NHS England,31/01/2014,GPMS/APMS and PCTMS, Primary Care , BENNETTS END SURGERY ,2225640," 137,662.72 ",HT000005826,
Department of Health,NHS England,31/01/2014,GPMS/APMS and PCTMS, Primary Care , BENNFIELD SURGERY ,2406172," 80,711.07 ",WA000003520,
Department of Health,NHS England,31/01/2014,GPMS/APMS and PCTMS, Primary Care , BENTHAM MEDICAL PRACTICE ,2383178," 85,697.60 ",YN000004975,
Department of Health,NHS England,31/01/2014,GPMS/APMS and PCTMS, Primary Care , BENTHAM ROAD HEALTH CENTRE ,2396840," 85,905.88 ",LA000007782,
Department of Health,NHS England,31/01/2014,GPMS/APMS and PCTMS, Primary Care , BENTLEY MEDICAL PRACTICE ,2277802,"-55,294.56 ",MID000003253,
Department of Health,NHS England,31/01/2014,GPMS/APMS and PCTMS, Primary Care , BENTLEY MEDICAL PRACTICE ,2292272," 109,452.10 ",MID000003254,
Department of Health,NHS England,31/01/2014,GPMS/APMS and PCTMS, Primary Care , BENTLEY VILLAGE SURGERY ,2337631," 34,029.55 ",SO000011062,
Department of Health,NHS England,31/01/2014,GPMS/APMS and PCTMS, Primary Care , BENTS GREEN SURGERY ,2227237," 33,543.29 ",SHE000003005,
Department of Health,NHS England,31/01/2014,GPMS/APMS and PCTMS, Primary Care , BERE REGIS PRACTICE ,2339069," 37,673.49 ",DO000004740,
Department of Health,NHS England,31/01/2014,Services from other NHS bodies, Specialised Commissioning , BERKSHIRE HEALTHCARE NHS FOUNDATION TRUST ,2355243," 51,096.69 ",766836 ,
Department of Health,NHS England,31/01/2014,Transport, Social Care , BERKSHIRE HEALTHCARE NHS FOUNDATION TRUST ,2182621," 60,232.50 ",765433 ,
Department of Health,NHS England,31/01/2014,Transport, Social Care , BERKSHIRE HEALTHCARE NHS FOUNDATION TRUST ,2165153," 73,556.25 ",766062 ,
Department of Health,NHS England,31/01/2014,Services from other NHS bodies, Specialised Commissioning , BERKSHIRE HEALTHCARE NHS FOUNDATION TRUST ,2175043," 86,923.15 ",766566 ,
Department of Health,NHS England,31/01/2014,Premises, Other , BERKSHIRE HEALTHCARE NHS FOUNDATION TRUST ,2145151," 100,500.00 ",766308 ,
Department of Health,NHS England,31/01/2014,Services from other NHS bodies, Health & Justice , BERKSHIRE HEALTHCARE NHS FOUNDATION TRUST ,2255635," 113,652.00 ",766733 ,
Department of Health,NHS England,31/01/2014,GPMS/APMS and PCTMS, Primary Care , BERKSHIRE HEALTHCARE NHS FOUNDATION TRUST ,2316645," 144,751.00 ",766737 ,
Department of Health,NHS England,31/01/2014,General Dental services and personal dental services, Secondary and Community Dental Care , BERKSHIRE HEALTHCARE NHS FOUNDATION TRUST ,2255604," 213,996.00 ",766738 ,
Department of Health,NHS England,31/01/2014,Services from other NHS bodies, Specialised Commissioning , BERKSHIRE HEALTHCARE NHS FOUNDATION TRUST ,2368001," 337,734.57 ",766634 ,
Department of Health,NHS England,31/01/2014,Services from other NHS bodies, Public Health , BERKSHIRE HEALTHCARE NHS FOUNDATION TRUST ,2255635," 925,697.00 ",766733 ,
Department of Health,NHS England,31/01/2014,GPMS/APMS and PCTMS, Primary Care , BERKSHIRE HEALTHCARE NHS FOUNDATION TRUST ,2208334," 1,302,759.00 ",766303 ,
Department of Health,NHS England,31/01/2014,GPMS/APMS and PCTMS, Primary Care , BERMONDSEY & LANSDOWNE MEDICAL MISSION ,2230241," 135,351.11 ",LNS000006621,
Department of Health,NHS England,31/01/2014,GPMS/APMS and PCTMS, Primary Care , BERMONDSEY SPA MEDICAL CENTRE ,2244178," 107,994.99 ",LNS000006623,
Department of Health,NHS England,31/01/2014,GPMS/APMS and PCTMS, Primary Care , BERNAYS & WHITEHOUSE LTD T/A KINGSHURST MEDICAL PRACTICE ,2341718," 50,570.53 ",WMF000001306,
Department of Health,NHS England,31/01/2014,GPMS/APMS and PCTMS, Primary Care , BERRY & PARTNERS ,2412056," 108,408.57 ",DCR000002079,
Department of Health,NHS England,31/01/2014,GPMS/APMS and PCTMS, Primary Care , BERRY LANE MEDICAL CENTRE ,2396842," 94,823.48 ",LA000007784,
Department of Health,NHS England,31/01/2014,GPMS/APMS and PCTMS, Primary Care , BERRYFIELDS MEDICAL CENTRE ,2225413," 41,962.32 ",BU000003374,
Department of Health,NHS England,31/01/2014,GPMS/APMS and PCTMS, Primary Care , BERRYLANDS SURGERY ,2339343," 31,906.48 ",LNN000002910,
Department of Health,NHS England,31/01/2014,GPMS/APMS and PCTMS, Primary Care , BERSTED GREEN SURGERY ,2406484," 26,210.48 ",TW000006712,
Department of Health,NHS England,31/01/2014,GPMS/APMS and PCTMS, Primary Care , BERSTED GREEN SURGERY ,2320667," 64,466.19 ",TW000006534,
Department of Health,NHS England,31/01/2014,GPMS/APMS and PCTMS, Primary Care , BEST M & PARTNER ,2226532," 54,800.10 ",EX000010832,
Department of Health,NHS England,31/01/2014,GPMS/APMS and PCTMS, Primary Care , BETHESDA MEDICAL CENTRE ,2433489,"-27,244.71 ",KC000012744,
Department of Health,NHS England,31/01/2014,Premises, Primary Care , BETHESDA MEDICAL CENTRE ,2433489,-73.83 ,KC000012744,
Department of Health,NHS England,31/01/2014,GPMS/APMS and PCTMS, Primary Care , BETHESDA MEDICAL CENTRE ,2433490," 158,932.64 ",KC000012745,
Department of Health,NHS England,31/01/2014,GPMS/APMS and PCTMS, Primary Care , BETHNAL GREEN HEALTH CENTRE ,2355836," 84,676.10 ",LNA000004510,
Department of Health,NHS England,31/01/2014,Services from other NHS bodies, Specialised Commissioning , BETSI CADWALADR UNIVERSITY LHB ,2183289," 183,126.25 ",344644 ,
Department of Health,NHS England,31/01/2014,GPMS/APMS and PCTMS, Primary Care , BEVAN ,2319938," 34,068.02 ",STL000003770,
Department of Health,NHS England,31/01/2014,GPMS/APMS and PCTMS, Primary Care , BEVAN HEALTHCARE CIC ,2226030," 134,095.82 ",BRA000002882,
Department of Health,NHS England,31/01/2014,GPMS/APMS and PCTMS, Primary Care , BEVERSBROOK MEDICAL CENTRE ,2260471," 39,987.77 ",WL000004196,
Department of Health,NHS England,31/01/2014,GPMS/APMS and PCTMS, Primary Care , BEWBUSH MEDICAL CENTRE ,2320676," 38,659.14 ",TW000006543,
Department of Health,NHS England,31/01/2014,GPMS/APMS and PCTMS, Primary Care , BEWDLEY MEDICAL CENTRE ,2226700,"-30,334.23 ",WR000004001,
Department of Health,NHS England,31/01/2014,GPMS/APMS and PCTMS, Primary Care , BEWDLEY MEDICAL CENTRE ,2243802," 130,843.47 ",WR000004002,
Department of Health,NHS England,31/01/2014,GPMS/APMS and PCTMS, Primary Care , BEWICK CRESCENT SURGERY ,2227132,"-123,450.98 ",DR000003532,
Department of Health,NHS England,31/01/2014,GPMS/APMS and PCTMS, Primary Care , BEWICK CRESCENT SURGERY ,2243911," 244,133.78 ",DR000003533,
Department of Health,NHS England,31/01/2014,GPMS/APMS and PCTMS, Primary Care , BEXLEY GROUP PRACTICE ,2229710," 92,097.43 ",LNW000002380,
Department of Health,NHS England,31/01/2014,GPMS/APMS and PCTMS, Primary Care , BEXLEY MEDICAL GROUP ,2244110," 135,222.18 ",LNW000002382,
Department of Health,NHS England,31/01/2014,GPMS/APMS and PCTMS, Primary Care , BHADAURIA ,2341972," 34,223.29 ",WBH000001818,
Department of Health,NHS England,31/01/2014,GPMS/APMS and PCTMS, Primary Care , BHARANI MEDICAL CENTRE ,2243642," 127,588.36 ",BE000004569,
Department of Health,NHS England,31/01/2014,GPMS/APMS and PCTMS, Primary Care , BHATTACHARJEE S & PARTNER ,2226547," 29,463.45 ",EX000010850,
Department of Health,NHS England,31/01/2014,GPMS/APMS and PCTMS, Primary Care , BHISHMA ,2359544," 49,976.60 ",MAN000002763,
Department of Health,NHS England,31/01/2014,GPMS/APMS and PCTMS, Primary Care , BIDEFORD MEDICAL CENTRE BIDEFORD ,2455146,"-27,106.08 ",DN000008857,
Department of Health,NHS England,31/01/2014,GPMS/APMS and PCTMS, Primary Care , BIDEFORD MEDICAL CENTRE BIDEFORD ,2455147," 139,680.76 ",DN000008858,
Department of Health,NHS England,31/01/2014,GPMS/APMS and PCTMS, Primary Care , BIDFORD ON AVON HEALTH CENTRE ,2227081," 118,540.23 ",WA000003500,
Department of Health,NHS England,31/01/2014,GPMS/APMS and PCTMS, Primary Care , BIDWELL & DAVIDSON ,2227016,"-36,542.13 ",DR000003418,
Department of Health,NHS England,31/01/2014,GPMS/APMS and PCTMS, Primary Care , BIDWELL & DAVIDSON ,2227017," 69,414.70 ",DR000003419,
Department of Health,NHS England,31/01/2014,GPMS/APMS and PCTMS, Primary Care , BIGGIN HILL SURGERY ,2292355," 98,920.39 ",LNT000002283,
Department of Health,NHS England,31/01/2014,GPMS/APMS and PCTMS, Primary Care , BILAS & THOMAS ,2338078," 29,202.70 ",WOM000002297,
Department of Health,NHS England,31/01/2014,GPMS/APMS and PCTMS, Primary Care , BILLET LANE MEDICAL CENTRE ,2337339," 33,541.99 ",LNC000003308,
Department of Health,NHS England,31/01/2014,GPMS/APMS and PCTMS, Primary Care , BILLINGSHURST SURGERY ,2320678," 70,892.15 ",TW000006545,
Department of Health,NHS England,31/01/2014,GPMS/APMS and PCTMS, Primary Care , BILSTON STREET SURGERY ,2355983,"-29,452.91 ",DUD000001375,
Department of Health,NHS England,31/01/2014,GPMS/APMS and PCTMS, Primary Care , BILSTON STREET SURGERY ,2338762," 43,162.83 ",DUD000001376,
Department of Health,NHS England,31/01/2014,GPMS/APMS and PCTMS, Primary Care , BILSTON URBAN VILLAGE MEDICAL CENTRE ,2338080," 78,944.85 ",WOM000002299,
Department of Health,NHS England,31/01/2014,GPMS/APMS and PCTMS, Primary Care , BINCOTE ROAD SURGERY ,2230032," 50,276.06 ",LNE000003600,
Department of Health,NHS England,31/01/2014,GPMS/APMS and PCTMS, Primary Care , BINFIELD ROAD SURGERY ,2230256," 65,950.74 ",LNS000006639,
Department of Health,NHS England,31/01/2014,GPMS/APMS and PCTMS, Primary Care , BINFIELD SURGERY ,2225535," 80,778.90 ",BE000004571,
Department of Health,NHS England,31/01/2014,GPMS/APMS and PCTMS, Primary Care , BINGLEY MEDICAL PRACTICE ,2226033,"-407,269.01 ",BRA000002883,
Department of Health,NHS England,31/01/2014,GPMS/APMS and PCTMS, Primary Care , BINGLEY MEDICAL PRACTICE ,2226037," 677,866.96 ",BRA000002884,
Department of Health,NHS England,31/01/2014,GPMS/APMS and PCTMS, Primary Care , BIRBECK MEDICAL GROUP ,2356082," 132,605.04 ",CU000003453,
Department of Health,NHS England,31/01/2014,GPMS/APMS and PCTMS, Primary Care , BIRCHDALE ROAD MEDICAL CENTRE ,2226806,"-37,593.11 ",LNA000004393,
Department of Health,NHS England,31/01/2014,GPMS/APMS and PCTMS, Primary Care , BIRCHDALE ROAD MEDICAL CENTRE ,2226807," 74,962.56 ",LNA000004394,
Department of Health,NHS England,31/01/2014,GPMS/APMS and PCTMS, Primary Care , BIRCHES MEDICAL CENTRE ,2211513,"-54,839.31 ",SU000004442,
Department of Health,NHS England,31/01/2014,GPMS/APMS and PCTMS, Primary Care , BIRCHES MEDICAL CENTRE ,2384205," 32,367.44 ",ROC000002269,
Department of Health,NHS England,31/01/2014,GPMS/APMS and PCTMS, Primary Care , BIRCHES MEDICAL CENTRE ,2222688," 128,878.66 ",SU000004443,
Department of Health,NHS England,31/01/2014,GPMS/APMS and PCTMS, Primary Care , BIRCHES MEDICAL PRACTICE ,2411132," 71,403.79 ",KHU000004597,
Department of Health,NHS England,31/01/2014,GPMS/APMS and PCTMS, Primary Care , BIRCHINGTON MEDICAL CENTRE ,2278554," 59,891.61 ",KC000011685,
Department of Health,NHS England,31/01/2014,GPMS/APMS and PCTMS, Primary Care , BIRCHTREE PRACTICE ,2277810,"-44,192.89 ",MID000003263,
Department of Health,NHS England,31/01/2014,GPMS/APMS and PCTMS, Primary Care , BIRCHTREE PRACTICE ,2292274," 89,220.16 ",MID000003264,
Department of Health,NHS England,31/01/2014,GPMS/APMS and PCTMS, Primary Care , BIRCHWOOD MEDICAL CENTRE POOLE ,2211120," 77,381.93 ",DO000004540,
Department of Health,NHS England,31/01/2014,GPMS/APMS and PCTMS, Primary Care , BIRCHWOOD MEDICAL CENTRE WARRINGTON ,2211709," 95,747.64 ",CH000004932,
Department of Health,NHS England,31/01/2014,GPMS/APMS and PCTMS, Primary Care , BIRCHWOOD MEDICAL PRACTICE BRISTOL ,2412064," 44,170.53 ",BRS000006066,
Department of Health,NHS England,31/01/2014,GPMS/APMS and PCTMS, Primary Care , BIRCHWOOD MEDICAL PRACTICE HORLEY ,2415885," 32,080.58 ",SY000005553,
Department of Health,NHS England,31/01/2014,GPMS/APMS and PCTMS, Primary Care , BIRCHWOOD MEDICAL PRACTICE HORLEY ,2339981," 105,229.39 ",SY000005167,
Department of Health,NHS England,31/01/2014,GPMS/APMS and PCTMS, Primary Care , BIRCHWOOD SURGERY ,2428962," 112,121.34 ",HT000006047,
Department of Health,NHS England,31/01/2014,GPMS/APMS and PCTMS, Primary Care , BIRD IN EYE SURGERY ,2306273," 53,269.22 ",TE000005252,
Department of Health,NHS England,31/01/2014,GPMS/APMS and PCTMS, Primary Care , BIRLEY HEALTH CENTRE ,2227250,"-79,551.43 ",SHE000003012,
Department of Health,NHS England,31/01/2014,GPMS/APMS and PCTMS, Primary Care , BIRLEY HEALTH CENTRE ,2243960," 154,168.23 ",SHE000003013,
Department of Health,NHS England,31/01/2014,Services from other NHS bodies, Specialised Commissioning , BIRMINGHAM & SOLIHULL MENTAL HEALTH NHS FOUNDATION TRUST ,2331244," 61,316.00 ",26547 ,
Department of Health,NHS England,31/01/2014,Services from other NHS bodies, Specialised Commissioning , BIRMINGHAM & SOLIHULL MENTAL HEALTH NHS FOUNDATION TRUST ,2196268," 62,544.00 ",26457 ,
Department of Health,NHS England,31/01/2014,Services from other NHS bodies, Health & Justice , BIRMINGHAM & SOLIHULL MENTAL HEALTH NHS FOUNDATION TRUST ,2381299," 598,131.00 ",26665 ,
Department of Health,NHS England,31/01/2014,Services from other NHS bodies, Specialised Commissioning , BIRMINGHAM & SOLIHULL MENTAL HEALTH NHS FOUNDATION TRUST ,2291735," 4,634,567.00 ",26666 ,
Department of Health,NHS England,31/01/2014,General Dental services and personal dental services, Secondary and Community Dental Care , BIRMINGHAM CHILDRENS HOSPITAL NHS FOUNDATION TRUST ,2395506," 31,217.50 ",15665118 ,
Department of Health,NHS England,31/01/2014,Services from other NHS bodies, Other , BIRMINGHAM CHILDRENS HOSPITAL NHS FOUNDATION TRUST ,2394523," 200,000.00 ",15664667 ,
Department of Health,NHS England,31/01/2014,Services from other NHS bodies, Specialised Commissioning , BIRMINGHAM CHILDRENS HOSPITAL NHS FOUNDATION TRUST ,1865538," 1,074,456.95 ",15664319 ,
Department of Health,NHS England,31/01/2014,Services from other NHS bodies, Specialised Commissioning , BIRMINGHAM CHILDRENS HOSPITAL NHS FOUNDATION TRUST ,2197713," 12,878,707.00 ",15664961 ,
Department of Health,NHS England,31/01/2014,General Dental services and personal dental services, Secondary and Community Dental Care , BIRMINGHAM COMMUNITY HEALTHCARE NHS TRUST ,2255428," 94,544.00 ",44997893 ,
Department of Health,NHS England,31/01/2014,General Dental services and personal dental services, Secondary and Community Dental Care , BIRMINGHAM COMMUNITY HEALTHCARE NHS TRUST ,2165558," 116,326.00 ",44997555 ,
Department of Health,NHS England,31/01/2014,General Dental services and personal dental services, Secondary and Community Dental Care , BIRMINGHAM COMMUNITY HEALTHCARE NHS TRUST ,2243450," 116,326.00 ",44997891 ,
Department of Health,NHS England,31/01/2014,Services from other NHS bodies, Public Health , BIRMINGHAM COMMUNITY HEALTHCARE NHS TRUST ,2242870," 119,756.90 ",44997894 ,
Department of Health,NHS England,31/01/2014,GPMS/APMS and PCTMS, Primary Care , BIRMINGHAM COMMUNITY HEALTHCARE NHS TRUST ,2290310," 446,729.00 ",44997885 ,
Department of Health,NHS England,31/01/2014,General Dental services and personal dental services, Secondary and Community Dental Care , BIRMINGHAM COMMUNITY HEALTHCARE NHS TRUST ,2197710," 748,386.00 ",44997892 ,
Department of Health,NHS England,31/01/2014,General Dental services and personal dental services, Secondary and Community Dental Care , BIRMINGHAM COMMUNITY HEALTHCARE NHS TRUST ,2209347," 841,496.00 ",44997890 ,
Department of Health,NHS England,31/01/2014,Services from other NHS bodies, Specialised Commissioning , BIRMINGHAM COMMUNITY HEALTHCARE NHS TRUST ,2197689," 1,571,592.00 ",44997877 ,
Department of Health,NHS England,31/01/2014,Services from other NHS bodies, Public Health , BIRMINGHAM COMMUNITY HEALTHCARE NHS TRUST ,2275838," 1,758,874.00 ",44997874 ,
Department of Health,NHS England,31/01/2014,Services from other NHS bodies, Specialised Commissioning , BIRMINGHAM WOMENS NHS FOUNDATION TRUST ,2222787," 2,366,162.00 ",OPI128951,
Department of Health,NHS England,31/01/2014,GPMS/APMS and PCTMS, Primary Care , BISHOPGATE MEDICAL CENTRE ,2227018,"-134,094.60 ",DR000003420,
Department of Health,NHS England,31/01/2014,GPMS/APMS and PCTMS, Primary Care , BISHOPGATE MEDICAL CENTRE ,2227019," 238,818.87 ",DR000003421,
Department of Health,NHS England,31/01/2014,GPMS/APMS and PCTMS, Primary Care , BISHOPS CASTLE MEDICAL PRACTICE ,2383126," 45,459.03 ",SA000003800,
Department of Health,NHS England,31/01/2014,GPMS/APMS and PCTMS, Primary Care , BISHOPS PLACE SURGERY ,2339794," 30,944.29 ",DN000008385,
Department of Health,NHS England,31/01/2014,GPMS/APMS and PCTMS, Primary Care , BISHOPS WALTHAM SURGERY ,2198095,"-84,004.87 ",SO000010806,
Department of Health,NHS England,31/01/2014,GPMS/APMS and PCTMS, Primary Care , BISHOPS WALTHAM SURGERY ,2198096," 179,263.65 ",SO000010807,
Department of Health,NHS England,31/01/2014,GPMS/APMS and PCTMS, Primary Care , BISHOPSTON MEDICAL PRACTICE ,2229098," 100,473.48 ",BRS000005914,
Department of Health,NHS England,31/01/2014,GPMS/APMS and PCTMS, Primary Care , BITTERNE PARK SURGERY ,2337651," 70,465.93 ",SO000011082,
Department of Health,NHS England,31/01/2014,GPMS/APMS and PCTMS, Primary Care , BITTERNE SURGERY ,2337653," 80,509.41 ",SO000011084,
Department of Health,NHS England,31/01/2014,GPMS/APMS and PCTMS, Primary Care , BK JAISWAL ,2355890," 35,991.31 ",LNC000003195,
Department of Health,NHS England,31/01/2014,Services from other NHS bodies, Specialised Commissioning , BLACK COUNTRY PARTNERSHIP NHS FOUNDATION TRUST ,2183743," 252,747.17 ",1100001296 ,
Department of Health,NHS England,31/01/2014,Services from other NHS bodies, Specialised Commissioning , BLACK COUNTRY PARTNERSHIP NHS FOUNDATION TRUST ,2355753," 252,747.17 ",1100001335 ,
Department of Health,NHS England,31/01/2014,Services from other NHS bodies, Public Health , BLACK COUNTRY PARTNERSHIP NHS FOUNDATION TRUST ,2175428," 350,849.00 ",1100001300 ,
Department of Health,NHS England,31/01/2014,GPMS/APMS and PCTMS, Primary Care , BLACK JEB ,2359546," 29,170.58 ",MAN000002765,
Department of Health,NHS England,31/01/2014,GPMS/APMS and PCTMS, Primary Care , BLACK LONG THOMAS DAS WRIGHT VELTMAN & PARTNERS ,2355913," 112,614.22 ",DE000006504,
Department of Health,NHS England,31/01/2014,GPMS/APMS and PCTMS, Primary Care , BLACKBROOK SURGERY LISIEUX WAY TAUNTON ,2428684," 87,149.40 ",SM000002838,
Department of Health,NHS England,31/01/2014,GPMS/APMS and PCTMS, Primary Care , BLACKBURN ROAD MEDICAL PRACTICE ,2406408," 34,117.11 ",LA000007814,
Department of Health,NHS England,31/01/2014,GPMS/APMS and PCTMS, Primary Care , BLACKDOWN COUNTRY PRACTICE HEMYOCK ,2455149," 81,646.19 ",DN000008860,
Department of Health,NHS England,31/01/2014,GPMS/APMS and PCTMS, Primary Care , BLACKETTS MEDICAL PRACTICE ,2243894,"-99,504.93 ",DR000003422,
Department of Health,NHS England,31/01/2014,GPMS/APMS and PCTMS, Primary Care , BLACKETTS MEDICAL PRACTICE ,2227020," 168,495.38 ",DR000003423,
Department of Health,NHS England,31/01/2014,GPMS/APMS and PCTMS, Primary Care , BLACKFIELD HEALTH CENTRE ,2337655," 207,369.76 ",SO000011086,
Department of Health,NHS England,31/01/2014,GPMS/APMS and PCTMS, Primary Care , BLACKFORD HOUSE MEDICAL CENTRE ,2384207," 59,846.35 ",ROC000002271,
Department of Health,NHS England,31/01/2014,GPMS/APMS and PCTMS, Primary Care , BLACKFRIARS MEDICAL PRACTICE ,2244181," 55,760.55 ",LNS000006641,
Department of Health,NHS England,31/01/2014,GPMS/APMS and PCTMS, Primary Care , BLACKMORE HEALTH CENTRE SIDMOUTH ,2455151," 138,516.52 ",DN000008862,
Department of Health,NHS England,31/01/2014,Services from other NHS bodies, Specialised Commissioning , BLACKPOOL TEACHING HOSPITALS NHS FOUNDATION TRUST ,2182947," 26,349.00 ",1110004928 ,
Department of Health,NHS England,31/01/2014,General Dental services and personal dental services, Secondary and Community Dental Care , BLACKPOOL TEACHING HOSPITALS NHS FOUNDATION TRUST ,2334523," 83,296.13 ",1110004332 ,
Department of Health,NHS England,31/01/2014,Services from other NHS bodies, Public Health , BLACKPOOL TEACHING HOSPITALS NHS FOUNDATION TRUST ,2381390," 569,495.00 ",1110005483 ,
Department of Health,NHS England,31/01/2014,Services from other NHS bodies, Specialised Commissioning , BLACKPOOL TEACHING HOSPITALS NHS FOUNDATION TRUST ,2381391," 4,585,218.00 ",1110005476 ,
Department of Health,NHS England,31/01/2014,GPMS/APMS and PCTMS, Primary Care , BLACKTHORN HEALTH CENTRE ,2337657," 112,429.85 ",SO000011088,
Department of Health,NHS England,31/01/2014,GPMS/APMS and PCTMS, Primary Care , BLACKTHORN MEDICAL CENTRE ,2278556," 47,848.36 ",KC000011687,
Department of Health,NHS England,31/01/2014,GPMS/APMS and PCTMS, Primary Care , BLENHEIM MEDICAL CENTRE ,2340768," 33,888.20 ",BD000003802,
Department of Health,NHS England,31/01/2014,GPMS/APMS and PCTMS, Primary Care , BLENHEIM MEDICAL CENTRE ,2243659," 100,692.96 ",BD000003714,
Department of Health,NHS England,31/01/2014,GPMS/APMS and PCTMS, Primary Care , BLETCHINGTON ROAD SURGERY ,2413580," 63,253.75 ",OX000003970,
Department of Health,NHS England,31/01/2014,GPMS/APMS and PCTMS, Primary Care , BLITHEHALE MEDICAL CENTRE ,2226808,"-119,534.85 ",LNA000004395,
Department of Health,NHS England,31/01/2014,GPMS/APMS and PCTMS, Primary Care , BLITHEHALE MEDICAL CENTRE ,2243846," 143,904.11 ",LNA000004396,
Department of Health,NHS England,31/01/2014,GPMS/APMS and PCTMS, Primary Care , BLOOMFIELD MEDICAL CENTRE ,2396868,"-27,004.81 ",LA000007815,
Department of Health,NHS England,31/01/2014,GPMS/APMS and PCTMS, Primary Care , BLOOMFIELD MEDICAL CENTRE ,2396869," 113,049.53 ",LA000007816,
Department of Health,NHS England,31/01/2014,GPMS/APMS and PCTMS, Primary Care , BLOOMSBURY HEALTH CENTRE ,2356355," 42,546.11 ",BIR000005839,
Department of Health,NHS England,31/01/2014,GPMS/APMS and PCTMS, Primary Care , BLOOMSBURY SURGERY ,2414949," 45,203.41 ",LND000003480,
Department of Health,NHS England,31/01/2014,Purchase of healthcare from non-NHS bodies, Specialised Commissioning , BLUETEQ LTD ,2196343," 28,500.00 ",BL2312,
Department of Health,NHS England,31/01/2014,Purchase of healthcare from non-NHS bodies, Specialised Commissioning , BMI HEALTHCARE LTD ,2317422," 50,000.00 ",TRCL011013,
Department of Health,NHS England,31/01/2014,Purchase of healthcare from non-NHS bodies, Specialised Commissioning , BMI HEALTHCARE LTD ,2317423," 50,000.00 ",TRCL011113,
Department of Health,NHS England,31/01/2014,Purchase of healthcare from non-NHS bodies, Specialised Commissioning , BMI HEALTHCARE LTD ,2317424," 50,000.00 ",TRCL011213,
Department of Health,NHS England,31/01/2014,Purchase of healthcare from non-NHS bodies, Specialised Commissioning , BMI HEALTHCARE LTD ,2334609," 50,000.00 ",TRCL020114,
Department of Health,NHS England,31/01/2014,GPMS/APMS and PCTMS, Primary Care , BOAT HOUSE SURGERY ,2225532," 86,729.93 ",BE000004567,
Department of Health,NHS England,31/01/2014,GPMS/APMS and PCTMS, Primary Care , BOCKHAMPTON ROAD SURGERY ,2338940," 57,823.24 ",BE000004686,
Department of Health,NHS England,31/01/2014,Purchase of healthcare from non-NHS bodies, NHS England Running Costs , NHS SHARED BUSINESS SERVICES LTD ,2175331," 71,449.72 ",100020011 ,
Department of Health,NHS England,31/01/2014,GPMS/APMS and PCTMS, Primary Care , BOGNOR MEDICAL PRACTICE ,2230802," 81,627.77 ",TW000006232,
Department of Health,NHS England,31/01/2014,GPMS/APMS and PCTMS, Primary Care , BOKAHRI AA ,2227742," 78,393.53 ",MAN000002646,
Department of Health,NHS England,31/01/2014,GPMS/APMS and PCTMS, Primary Care , BOLLINGTON MEDICAL CENTRE ,2211707," 95,849.30 ",CH000004930,
Department of Health,NHS England,31/01/2014,GPMS/APMS and PCTMS, Primary Care , BOLTON COMMUNITY PRACTICE ,2292227," 147,531.16 ",WIG000004468,
Department of Health,NHS England,31/01/2014,Purchase of healthcare from non-NHS bodies, Social Care , BOLTON COUNCIL ,2369241," 4,975,408.00 ",100520118600102000 ,
Department of Health,NHS England,31/01/2014,General Opthalmic services, Primary Care , BOLTON VISIONPLUS LTD ,2278423," 49,138.18 ",4098144_S,
Department of Health,NHS England,31/01/2014,GPMS/APMS and PCTMS, Primary Care , BOND MDI & PARTNER ,2319721,"-41,102.51 ",SOP000002680,
Department of Health,NHS England,31/01/2014,GPMS/APMS and PCTMS, Primary Care , BOND MDI & PARTNER ,2319722," 49,125.47 ",SOP000002681,
Department of Health,NHS England,31/01/2014,GPMS/APMS and PCTMS, Primary Care , BONDGATE SURGERY ,2226949," 87,879.45 ",NR000002159,
Department of Health,NHS England,31/01/2014,GPMS/APMS and PCTMS, Primary Care , BOOTH J T & PARTNERS ,2413211," 51,793.59 ",EX000011366,
Department of Health,NHS England,31/01/2014,General Opthalmic services, Primary Care , BOOTS OPTICIANS LTD ,2228329," 34,387.50 ",4093559_S,
Department of Health,NHS England,31/01/2014,GPMS/APMS and PCTMS, Primary Care , BORDER PRACTICE ,2198099,"-60,276.72 ",SO000010810,
Department of Health,NHS England,31/01/2014,GPMS/APMS and PCTMS, Primary Care , BORDER PRACTICE ,2198100," 131,263.02 ",SO000010811,
Department of Health,NHS England,31/01/2014,GPMS/APMS and PCTMS, Primary Care , BOROUGH GREEN MEDICAL PRACTICE ,2278558," 86,256.62 ",KC000011689,
Department of Health,NHS England,31/01/2014,GPMS/APMS and PCTMS, Primary Care , BOROUGH ROAD & NUNTHORPE MEDICAL GROUP ,2277812," 91,941.35 ",MID000003266,
Department of Health,NHS England,31/01/2014,GPMS/APMS and PCTMS, Primary Care , BORSTAL VILLAGE ,2433418," 36,933.70 ",KC000012669,
Department of Health,NHS England,31/01/2014,GPMS/APMS and PCTMS, Primary Care , BOSCOMBE MANOR MEDICAL CENTRE ,2339075," 28,024.36 ",DO000004746,
Department of Health,NHS England,31/01/2014,GPMS/APMS and PCTMS, Primary Care , BOSMERE MEDICAL PRACTICE ,2198101,"-117,999.99 ",SO000010812,
Department of Health,NHS England,31/01/2014,GPMS/APMS and PCTMS, Primary Care , BOSMERE MEDICAL PRACTICE ,2198102," 274,217.41 ",SO000010813,
Department of Health,NHS England,31/01/2014,GPMS/APMS and PCTMS, Primary Care , BOTLEY MEDICAL CENTRE ,2413582," 62,814.37 ",OX000003972,
Department of Health,NHS England,31/01/2014,GPMS/APMS and PCTMS, Primary Care , BOTOLPH COMMUNITY HEALTH CENTRE ,2244653," 63,844.17 ",CB000005013,
Department of Health,NHS England,31/01/2014,GPMS/APMS and PCTMS, Primary Care , BOUGHTON MEDICAL GROUP ,2306850,"-57,078.65 ",CH000005250,
Department of Health,NHS England,31/01/2014,GPMS/APMS and PCTMS, Primary Care , BOUGHTON MEDICAL GROUP ,2166260," 60,425.14 ",CH000004823,
Department of Health,NHS England,31/01/2014,GPMS/APMS and PCTMS, Primary Care , BOUGHTON MEDICAL GROUP ,2306851," 80,575.47 ",CH000005251,
Department of Health,NHS England,31/01/2014,GPMS/APMS and PCTMS, Primary Care , BOUNCES ROAD SURGERY ,2414905," 33,511.32 ",LNE000003768,
Department of Health,NHS England,31/01/2014,GPMS/APMS and PCTMS, Primary Care , BOUNDARIES SURGERY ,2337661," 31,732.71 ",SO000011092,
Department of Health,NHS England,31/01/2014,GPMS/APMS and PCTMS, Primary Care , BOUNDARY COURT SURGERY ,2414910," 27,403.27 ",LNE000003770,
Department of Health,NHS England,31/01/2014,GPMS/APMS and PCTMS, Primary Care , BOUNDARY HOUSE SURGERY BRACKNELL ,2356010," 77,875.34 ",BE000004688,
Department of Health,NHS England,31/01/2014,Prescribing costs, Primary Care , BOUNDARY HOUSE SURGERY LONDON ,2222616, 727.02 ,151681-08-JAN-2014,
Department of Health,NHS England,31/01/2014,GPMS/APMS and PCTMS, Primary Care , BOUNDARY HOUSE SURGERY LONDON ,2222616," 29,536.19 ",151681-08-JAN-2014,
Department of Health,NHS England,31/01/2014,GPMS/APMS and PCTMS, Primary Care , BOUNDARY HOUSE SURGERY LONDON ,2244168," 51,998.03 ",LNE000003602,
Department of Health,NHS England,31/01/2014,GPMS/APMS and PCTMS, Primary Care , BOUNDS GREEN GROUP PRACTICE ,2230036,"-26,271.04 ",LNE000003603,
Department of Health,NHS England,31/01/2014,GPMS/APMS and PCTMS, Primary Care , BOUNDS GREEN GROUP PRACTICE ,2307751," 41,085.35 ",LNE000003708,
Department of Health,NHS England,31/01/2014,GPMS/APMS and PCTMS, Primary Care , BOUNDS GREEN GROUP PRACTICE ,2244169," 144,578.41 ",LNE000003604,
Department of Health,NHS England,31/01/2014,GPMS/APMS and PCTMS, Primary Care , BOURKE M & PARTNERS ,2339983," 59,311.99 ",SY000005169,
Department of Health,NHS England,31/01/2014,GPMS/APMS and PCTMS, Primary Care , BOUTPORT MEDICAL CENTRE ,2339800," 48,183.82 ",DN000008391,
Department of Health,NHS England,31/01/2014,GPMS/APMS and PCTMS, Primary Care , BOVEY TRACEY & CHUDLEIGH PRACTICE ,2455158," 130,648.51 ",DN000008870,
Department of Health,NHS England,31/01/2014,GPMS/APMS and PCTMS, Primary Care , BOW MEDICAL PRACTICE ,2455160," 39,040.55 ",DN000008872,
Department of Health,NHS England,31/01/2014,GPMS/APMS and PCTMS, Primary Care , BOWERS S & PARTNERS ,2319163,"-37,164.63 ",LIP000004660,
Department of Health,NHS England,31/01/2014,GPMS/APMS and PCTMS, Primary Care , BOWERS S & PARTNERS ,2166888," 34,650.92 ",LIP000004375,
Department of Health,NHS England,31/01/2014,GPMS/APMS and PCTMS, Primary Care , BOWERS S & PARTNERS ,2319164," 51,837.69 ",LIP000004661,
Department of Health,NHS England,31/01/2014,GPMS/APMS and PCTMS, Primary Care , BOWES MEDICAL CENTRE ,2414917," 30,259.89 ",LNE000003772,
Department of Health,NHS England,31/01/2014,GPMS/APMS and PCTMS, Primary Care , BOWLAND MEDICAL PRACTICE ,2359548," 66,702.70 ",MAN000002767,
Department of Health,NHS England,31/01/2014,GPMS/APMS and PCTMS, Primary Care , BOWLEY C ,2369682," 69,371.17 ",MAN000002769,
Department of Health,NHS England,31/01/2014,GPMS/APMS and PCTMS, Primary Care , BOWLING HALL MEDICAL PRACTICE ,2226041,"-326,424.16 ",BRA000002885,
Department of Health,NHS England,31/01/2014,GPMS/APMS and PCTMS, Primary Care , BOWLING HALL MEDICAL PRACTICE ,2243705," 570,493.57 ",BRA000002886,
Department of Health,NHS England,31/01/2014,GPMS/APMS and PCTMS, Primary Care , BOWTON P A & PARTNER ,2413213," 47,882.03 ",EX000011368,
Department of Health,NHS England,31/01/2014,GPMS/APMS and PCTMS, Primary Care , BOX SURGERY ,2260473," 51,088.86 ",WL000004198,
Department of Health,NHS England,31/01/2014,GPMS/APMS and PCTMS, Primary Care , BOXWELL ROAD SURGERY ,2414498," 45,082.04 ",HT000006049,
Department of Health,NHS England,31/01/2014,GPMS/APMS and PCTMS, Primary Care , BOYATT WOOD SURGERY ,2337663," 37,448.30 ",SO000011094,
Department of Health,NHS England,31/01/2014,GPMS/APMS and PCTMS, Primary Care , BRACKLEY HEALTH CENTRE ,2410446," 33,044.26 ",NO000003905,
Department of Health,NHS England,31/01/2014,GPMS/APMS and PCTMS, Primary Care , BRACONDALE MEDICAL CENTRE ,2384443," 36,964.18 ",SPT000001816,
Department of Health,NHS England,31/01/2014,Services from other NHS bodies, Specialised Commissioning , BRADFORD DISTRICT CARE TRUST ,2222804," 358,516.00 ",184062 ,
Department of Health,NHS England,31/01/2014,Services from other NHS bodies, Secondary and Community Dental Care , BRADFORD DISTRICT CARE TRUST ,2275846," 409,293.00 ",184061 ,
Department of Health,NHS England,31/01/2014,Services from other NHS bodies, Public Health , BRADFORD DISTRICT CARE TRUST ,2243461," 980,946.00 ",184060 ,
Department of Health,NHS England,31/01/2014,GPMS/APMS and PCTMS, Primary Care , BRADFORD LOCAL MEDICAL COMMITTEE ,2243162," 101,507.05 ",148203-17-DEC-2013,
Department of Health,NHS England,31/01/2014,Services from other NHS bodies, Secondary and Community Dental Care , BRADFORD TEACHING HOSPITALS NHS FOUNDATION TRUST ,2353869,"-144,808.00 ",279247 ,
Department of Health,NHS England,31/01/2014,Services from other NHS bodies, Specialised Commissioning , BRADFORD TEACHING HOSPITALS NHS FOUNDATION TRUST ,2256123," 36,974.00 ",279408 ,
Department of Health,NHS England,31/01/2014,General Dental services and personal dental services, Secondary and Community Dental Care , BRADFORD TEACHING HOSPITALS NHS FOUNDATION TRUST ,2242519," 43,165.79 ",279188 ,
Department of Health,NHS England,31/01/2014,Services from other NHS bodies, Secondary and Community Dental Care , BRADFORD TEACHING HOSPITALS NHS FOUNDATION TRUST ,2404650," 50,358.37 ",279185 ,
Department of Health,NHS England,31/01/2014,Services from other NHS bodies, Specialised Commissioning , BRADFORD TEACHING HOSPITALS NHS FOUNDATION TRUST ,2304260," 69,818.34 ",279135 ,
Department of Health,NHS England,31/01/2014,Services from other NHS bodies, Public Health , BRADFORD TEACHING HOSPITALS NHS FOUNDATION TRUST ,2305810," 357,345.00 ",279444 ,
Department of Health,NHS England,31/01/2014,Services from other NHS bodies, Secondary and Community Dental Care , BRADFORD TEACHING HOSPITALS NHS FOUNDATION TRUST ,2305810," 485,457.00 ",279444 ,
Department of Health,NHS England,31/01/2014,Services from other NHS bodies, Specialised Commissioning , BRADFORD TEACHING HOSPITALS NHS FOUNDATION TRUST ,2256124," 3,018,501.00 ",279409 ,
Department of Health,NHS England,31/01/2014,GPMS/APMS and PCTMS, Primary Care , BRADGATE SURGERY ,2228908," 88,235.75 ",BRS000005697,
Department of Health,NHS England,31/01/2014,GPMS/APMS and PCTMS, Primary Care , BRADLEY & PARTNERS ,2356027," 95,828.47 ",LNN000002920,
Department of Health,NHS England,31/01/2014,GPMS/APMS and PCTMS, Primary Care , BRADLEY GEDGE BARRON BARRON & PARTNERS ,2229924," 94,482.29 ",DE000006316,
Department of Health,NHS England,31/01/2014,GPMS/APMS and PCTMS, Primary Care , BRADLEY MEDICAL CENTRE ,2355968," 26,382.49 ",WOM000002391,
Department of Health,NHS England,31/01/2014,GPMS/APMS and PCTMS, Primary Care , BRADLEY STOKE SURGERY ,2228905,"-26,707.73 ",BRS000005694,
Department of Health,NHS England,31/01/2014,GPMS/APMS and PCTMS, Primary Care , BRADLEY STOKE SURGERY ,2228906," 129,439.72 ",BRS000005695,
Department of Health,NHS England,31/01/2014,GPMS/APMS and PCTMS, Primary Care , BRADY & PARTNERS ,2339350," 89,654.33 ",LNN000002918,
Department of Health,NHS England,31/01/2014,GPMS/APMS and PCTMS, Primary Care , BRAILSFORD & HULLAND MEDICAL PRACTICE ,2337189," 56,877.80 ",DE000006508,
Department of Health,NHS England,31/01/2014,GPMS/APMS and PCTMS, Primary Care , BRAITHWAITE SURGERY ,2277029," 46,788.56 ",WIG000004470,
Department of Health,NHS England,31/01/2014,Establishment, Primary Care , BRAMBLE.CC LTD ,2395098," 33,600.00 ",3531 ,
Department of Health,NHS England,31/01/2014,GPMS/APMS and PCTMS, Primary Care , BRAMBLEHAIES SURGERY CULLOMPTON ,2455155," 59,284.55 ",DN000008866,
Department of Health,NHS England,31/01/2014,GPMS/APMS and PCTMS, Primary Care , BRAMBLYS GRANGE MEDICAL PRACTICE ,2337658,"-159,769.60 ",SO000011089,
Department of Health,NHS England,31/01/2014,GPMS/APMS and PCTMS, Primary Care , BRAMBLYS GRANGE MEDICAL PRACTICE ,2337659," 219,452.42 ",SO000011090,
Department of Health,NHS England,31/01/2014,GPMS/APMS and PCTMS, Primary Care , BRAMHALL HEALTH CENTRE ,2384439," 98,357.39 ",SPT000001812,
Department of Health,NHS England,31/01/2014,GPMS/APMS and PCTMS, Primary Care , BRAMHALL PARK MEDICAL CENTRE ,2227757," 99,714.07 ",SPT000001728,
Department of Health,NHS England,31/01/2014,GPMS/APMS and PCTMS, Primary Care , BRAMPTON MEDICAL PRACTICE ,2340372,"-30,391.75 ",CU000003454,
Department of Health,NHS England,31/01/2014,GPMS/APMS and PCTMS, Primary Care , BRAMPTON MEDICAL PRACTICE ,2384024," 39,896.93 ",CU000003718,
Department of Health,NHS England,31/01/2014,GPMS/APMS and PCTMS, Primary Care , BRAMPTON MEDICAL PRACTICE ,2356083," 150,124.11 ",CU000003455,
Department of Health,NHS England,31/01/2014,GPMS/APMS and PCTMS, Primary Care , BRANCH END SURGERY ,2243884," 51,405.24 ",NR000002161,
Department of Health,NHS England,31/01/2014,GPMS/APMS and PCTMS, Primary Care , BRANDON MEDICAL PRACTICE ,2211514,"-55,669.42 ",SU000004444,
Department of Health,NHS England,31/01/2014,GPMS/APMS and PCTMS, Primary Care , BRANDON MEDICAL PRACTICE ,2211515," 107,135.57 ",SU000004445,
Department of Health,NHS England,31/01/2014,GPMS/APMS and PCTMS, Primary Care , BRANKSOMEWOOD HEALTHCARE CENTRE ,2198097,"-77,458.69 ",SO000010808,
Department of Health,NHS England,31/01/2014,GPMS/APMS and PCTMS, Primary Care , BRANKSOMEWOOD HEALTHCARE CENTRE ,2198098," 174,237.71 ",SO000010809,
Department of Health,NHS England,31/01/2014,GPMS/APMS and PCTMS, Primary Care , BRANN & PARTNERS ,2226549," 129,525.59 ",EX000010852,
Department of Health,NHS England,31/01/2014,GPMS/APMS and PCTMS, Primary Care , BRANNAM MEDICAL CENTRE ,2455156," 124,156.93 ",DN000008868,
Department of Health,NHS England,31/01/2014,GPMS/APMS and PCTMS, Primary Care , BRANT ROAD SURGERY LINCOLN ,2210999," 62,070.01 ",LL000005086,
Department of Health,NHS England,31/01/2014,GPMS/APMS and PCTMS, Primary Care , BRAYFORD SQUARE SURGERY ,2337142," 31,025.77 ",LNA000004688,
Department of Health,NHS England,31/01/2014,GPMS/APMS and PCTMS, Primary Care , BREACH & PARTNERS ,2319939,"-45,265.67 ",STL000003771,
Department of Health,NHS England,31/01/2014,GPMS/APMS and PCTMS, Primary Care , BREACH & PARTNERS ,2167068," 48,726.40 ",STL000003532,
Department of Health,NHS England,31/01/2014,GPMS/APMS and PCTMS, Primary Care , BREACH & PARTNERS ,2319940," 62,785.91 ",STL000003772,
Department of Health,NHS England,31/01/2014,GPMS/APMS and PCTMS, Primary Care , BREDBURY MEDICAL PRACTICE ,2244012," 60,459.73 ",SPT000001730,
Department of Health,NHS England,31/01/2014,GPMS/APMS and PCTMS, Primary Care , BREEZE HILL NEIGHBOURHOOD HEALTH CENTRE ,2319289,"-30,623.33 ",LIP000004814,
Department of Health,NHS England,31/01/2014,GPMS/APMS and PCTMS, Primary Care , BREEZE HILL NEIGHBOURHOOD HEALTH CENTRE ,2319290," 37,422.40 ",LIP000004815,
Department of Health,NHS England,31/01/2014,GPMS/APMS and PCTMS, Primary Care , BREMNER & PARTNERS ,2319161,"-81,666.24 ",LIP000004658,
Department of Health,NHS England,31/01/2014,GPMS/APMS and PCTMS, Primary Care , BREMNER & PARTNERS ,2166886," 36,429.79 ",LIP000004373,
Department of Health,NHS England,31/01/2014,GPMS/APMS and PCTMS, Primary Care , BREMNER & PARTNERS ,2319162," 99,035.60 ",LIP000004659,
Department of Health,NHS England,31/01/2014,GPMS/APMS and PCTMS, Primary Care , BRENNAN & PARTNERS ,2319836,"-109,154.45 ",BIK000002263,
Department of Health,NHS England,31/01/2014,GPMS/APMS and PCTMS, Primary Care , BRENNAN & PARTNERS ,2166807," 43,097.56 ",BIK000002145,
Department of Health,NHS England,31/01/2014,GPMS/APMS and PCTMS, Primary Care , BRENNAN & PARTNERS ,2332494," 142,139.36 ",BIK000002264,
Department of Health,NHS England,31/01/2014,GPMS/APMS and PCTMS, Primary Care , BRENT AREA MEDICAL CENTRE ANVIL HOUSE EAST BRENT ,2428685," 35,102.89 ",SM000002842,
Department of Health,NHS England,31/01/2014,GPMS/APMS and PCTMS, Primary Care , BRETTON MEDICAL PRACTICE ,2384750," 82,136.18 ",CB000005371,
Department of Health,NHS England,31/01/2014,GPMS/APMS and PCTMS, Primary Care , BRIARWOOD MEDICAL CENTRE ,2406412," 56,198.66 ",LA000007826,
Department of Health,NHS England,31/01/2014,GPMS/APMS and PCTMS, Primary Care , BRICK LANE SURGERY ,2414935," 28,259.40 ",LNE000003778,
Department of Health,NHS England,31/01/2014,GPMS/APMS and PCTMS, Primary Care , BRIDGE COTTAGE SURGERY ,2414503," 114,260.53 ",HT000006057,
Department of Health,NHS England,31/01/2014,GPMS/APMS and PCTMS, Primary Care , BRIDGE HOUSE MEDICAL CENTRE ,2396247," 76,599.90 ",WA000003536,
Department of Health,NHS England,31/01/2014,GPMS/APMS and PCTMS, Primary Care , BRIDGE HOUSE SURGERY ,2230040," 87,822.31 ",LNE000003606,
Department of Health,NHS England,31/01/2014,GPMS/APMS and PCTMS, Primary Care , BRIDGE LANE GROUP PRACTICE ,2244379," 110,955.99 ",LNP000004979,
Department of Health,NHS England,31/01/2014,GPMS/APMS and PCTMS, Primary Care , BRIDGE MEDICAL CENTRE ,2320680," 58,275.09 ",TW000006547,
Department of Health,NHS England,31/01/2014,GPMS/APMS and PCTMS, Primary Care , BRIDGE STREET SURGERY ,2428636," 71,642.63 ",KHU000004602,
Department of Health,NHS England,31/01/2014,GPMS/APMS and PCTMS, Primary Care , BRIDGEGATE MEDICAL CENTRE ,2356085," 87,418.30 ",CU000003461,
Department of Health,NHS England,31/01/2014,GPMS/APMS and PCTMS, Primary Care , BRIDGEGATE SURGERY ,2319002," 80,303.25 ",NN000007063,
Department of Health,NHS England,31/01/2014,GPMS/APMS and PCTMS, Primary Care , BRIDGEMARY MEDICAL CENTRE ,2198106,"-60,467.51 ",SO000010818,
Department of Health,NHS England,31/01/2014,GPMS/APMS and PCTMS, Primary Care , BRIDGEMARY MEDICAL CENTRE ,2198107," 120,329.30 ",SO000010819,
Department of Health,NHS England,31/01/2014,GPMS/APMS and PCTMS, Primary Care , BRIDGES MEDICAL CENTRE ,2211127,"-33,902.54 ",DO000004547,
Department of Health,NHS England,31/01/2014,GPMS/APMS and PCTMS, Primary Care , BRIDGES MEDICAL CENTRE ,2211128," 165,258.19 ",DO000004548,
Department of Health,NHS England,31/01/2014,GPMS/APMS and PCTMS, Primary Care , BRIDGES MEDICAL PRACTICE ,2230550,"-43,872.74 ",GAT000002184,
Department of Health,NHS England,31/01/2014,GPMS/APMS and PCTMS, Primary Care , BRIDGES MEDICAL PRACTICE ,2230551," 75,719.84 ",GAT000002185,
Department of Health,NHS England,31/01/2014,Services from other NHS bodies, Public Health , BRIDGEWATER COMMUNITY HEALTHCARE NHS TRUST ,2466421,"-101,475.00 ",26281465 ,
Department of Health,NHS England,31/01/2014,Services from other NHS bodies, Health & Justice , BRIDGEWATER COMMUNITY HEALTHCARE NHS TRUST ,2221194," 27,193.00 ",26281117 ,
Department of Health,NHS England,31/01/2014,Services from other NHS bodies, Public Health , BRIDGEWATER COMMUNITY HEALTHCARE NHS TRUST ,2465534," 101,475.00 ",26281119 ,
Department of Health,NHS England,31/01/2014,Services from other NHS bodies, Health & Justice , BRIDGEWATER COMMUNITY HEALTHCARE NHS TRUST ,2256136," 120,858.00 ",26281364 ,
Department of Health,NHS England,31/01/2014,Services from other NHS bodies, Health & Justice , BRIDGEWATER COMMUNITY HEALTHCARE NHS TRUST ,2209367," 166,457.17 ",26281261 ,
Department of Health,NHS England,31/01/2014,Services from other NHS bodies, Public Health , BRIDGEWATER COMMUNITY HEALTHCARE NHS TRUST ,2465584," 169,336.00 ",26281153 ,
Department of Health,NHS England,31/01/2014,Services from other NHS bodies, Public Health , BRIDGEWATER COMMUNITY HEALTHCARE NHS TRUST ,2381292," 262,016.62 ",26281257 ,
Department of Health,NHS England,31/01/2014,Services from other NHS bodies, Public Health , BRIDGEWATER COMMUNITY HEALTHCARE NHS TRUST ,2256115," 378,408.00 ",26281246 ,
Department of Health,NHS England,31/01/2014,Services from other NHS bodies, Public Health , BRIDGEWATER COMMUNITY HEALTHCARE NHS TRUST ,2275975," 451,000.00 ",26281366 ,
Department of Health,NHS England,31/01/2014,GPMS/APMS and PCTMS, Primary Care , BRIDGEWATER FAMILY MEDICAL PRACTICE ,2383127," 37,642.58 ",SA000003802,
Department of Health,NHS England,31/01/2014,GPMS/APMS and PCTMS, Primary Care , BRIDGNORTH MEDICAL PRACTICE ,2383128," 113,370.28 ",SA000003804,
Department of Health,NHS England,31/01/2014,GPMS/APMS and PCTMS, Primary Care , BRIDPORT MEDICAL CENTRE ,2211130," 179,657.78 ",DO000004550,
Department of Health,NHS England,31/01/2014,GPMS/APMS and PCTMS, Primary Care , BRIERLEY HILL HEALTH & S C C ,2355984," 31,406.27 ",DUD000001378,
Department of Health,NHS England,31/01/2014,Purchase of healthcare from non-NHS bodies, Social Care , BRIGHTON & HOVE CITY COUNCIL ,2464964," 4,397,579.00 ",4275226009 ,
Department of Health,NHS England,31/01/2014,Services from other NHS bodies, Public Health , BRIGHTON AND SUSSEX UNIVERSITY HOSPITALS NHS TRUST ,2197250,"-2,069,010.00 ",311808 ,
Department of Health,NHS England,31/01/2014,Services from other NHS bodies, Specialised Commissioning , BRIGHTON AND SUSSEX UNIVERSITY HOSPITALS NHS TRUST ,2196483," 133,423.35 ",138119 ,
Department of Health,NHS England,31/01/2014,Services from other NHS bodies, Specialised Commissioning , BRIGHTON AND SUSSEX UNIVERSITY HOSPITALS NHS TRUST ,2255492," 173,110.33 ",138963 ,
Department of Health,NHS England,31/01/2014,Services from other NHS bodies, Secondary and Community Dental Care , BRIGHTON AND SUSSEX UNIVERSITY HOSPITALS NHS TRUST ,2291103," 401,712.11 ",138697 ,
Department of Health,NHS England,31/01/2014,Services from other NHS bodies, Other , BRIGHTON AND SUSSEX UNIVERSITY HOSPITALS NHS TRUST ,2289948," 1,102,506.00 ",138760 ,
Department of Health,NHS England,31/01/2014,Services from other NHS bodies, Public Health , BRIGHTON AND SUSSEX UNIVERSITY HOSPITALS NHS TRUST ,2290436," 1,998,458.87 ",138817 ,
Department of Health,NHS England,31/01/2014,Services from other NHS bodies, Public Health , BRIGHTON AND SUSSEX UNIVERSITY HOSPITALS NHS TRUST ,2289571," 2,069,010.00 ",138294 ,
Department of Health,NHS England,31/01/2014,Services from other NHS bodies, Specialised Commissioning , BRIGHTON AND SUSSEX UNIVERSITY HOSPITALS NHS TRUST ,2291103," 8,940,429.89 ",138697 ,
Department of Health,NHS England,31/01/2014,GPMS/APMS and PCTMS, Primary Care , BRIMINGTON SURGERY ,2337401," 26,810.50 ",DE000006673,
Department of Health,NHS England,31/01/2014,GPMS/APMS and PCTMS, Primary Care , BRIMINGTON SURGERY ,2230004," 67,126.79 ",DE000006408,
Department of Health,NHS England,31/01/2014,GPMS/APMS and PCTMS, Primary Care , BRINNINGTON HEALTH CENTRE BRINNINGTON ,2227769," 49,329.57 ",SPT000001734,
Department of Health,NHS England,31/01/2014,GPMS/APMS and PCTMS, Primary Care , BRINNINGTON HEALTH CENTRE STOCKPORT ,2227773," 40,317.67 ",SPT000001736,
Department of Health,NHS England,31/01/2014,Purchase of healthcare from non-NHS bodies, Social Care , BRISTOL CITY COUNCIL ,2291728," 7,259,859.00 ",800076840X,
Department of Health,NHS England,31/01/2014,Purchase of healthcare from non-NHS bodies, Public Health , BRISTOL COMMUNITY HEALTH CIC ,2426231," 33,759.08 ",41262540 ,
Department of Health,NHS England,31/01/2014,Purchase of healthcare from non-NHS bodies, Health & Justice , BRISTOL COMMUNITY HEALTH CIC ,2305143," 40,625.00 ",41262533 ,
Department of Health,NHS England,31/01/2014,Purchase of healthcare from non-NHS bodies, Public Health , BRISTOL COMMUNITY HEALTH CIC ,2305144," 42,401.74 ",41262550 ,
Department of Health,NHS England,31/01/2014,Purchase of healthcare from non-NHS bodies, Health & Justice , BRISTOL COMMUNITY HEALTH CIC ,2242515," 60,549.50 ",41262494 ,
Department of Health,NHS England,31/01/2014,Purchase of healthcare from non-NHS bodies, Health & Justice , BRISTOL COMMUNITY HEALTH CIC ,2380477," 60,549.50 ",41262583 ,
Department of Health,NHS England,31/01/2014,Purchase of healthcare from non-NHS bodies, Health & Justice , BRISTOL COMMUNITY HEALTH CIC ,2441831," 135,887.60 ",41262582 ,
Department of Health,NHS England,31/01/2014,Purchase of healthcare from non-NHS bodies, Health & Justice , BRISTOL COMMUNITY HEALTH CIC ,2441829," 192,206.25 ",41262580 ,
Department of Health,NHS England,31/01/2014,GPMS/APMS and PCTMS, Primary Care , BRIXTON HILL GROUP PRACTICE ,2244182," 93,560.74 ",LNS000006645,
Department of Health,NHS England,31/01/2014,GPMS/APMS and PCTMS, Primary Care , BROAD LANE SURGERY ,2243918," 43,637.22 ",COV000002264,
Department of Health,NHS England,31/01/2014,GPMS/APMS and PCTMS, Primary Care , BROADMEAD MEDICAL CENTRE ,2228910," 93,867.12 ",BRS000005699,
Department of Health,NHS England,31/01/2014,GPMS/APMS and PCTMS, Primary Care , BROADMEAD SURGERY ,2211427,"-38,150.14 ",LNM000004451,
Department of Health,NHS England,31/01/2014,GPMS/APMS and PCTMS, Primary Care , BROADMEAD SURGERY ,2211428," 70,219.86 ",LNM000004452,
Department of Health,NHS England,31/01/2014,GPMS/APMS and PCTMS, Primary Care , BROADSHIRES HEALTH CENTRE ,2413586," 74,340.46 ",OX000003976,
Department of Health,NHS England,31/01/2014,GPMS/APMS and PCTMS, Primary Care , BROADWATER FARM ,2230042,"-33,311.19 ",LNE000003607,
Department of Health,NHS England,31/01/2014,GPMS/APMS and PCTMS, Primary Care , BROADWATER FARM ,2230044," 66,928.22 ",LNE000003608,
Department of Health,NHS England,31/01/2014,GPMS/APMS and PCTMS, Primary Care , BROADWATER MEDICAL CENTRE ,2320682," 59,479.63 ",TW000006549,
Department of Health,NHS England,31/01/2014,GPMS/APMS and PCTMS, Primary Care , BROADWAY MEDICAL CENTRE ,2396877," 85,238.32 ",LA000007828,
Department of Health,NHS England,31/01/2014,GPMS/APMS and PCTMS, Primary Care , BROADWAY PRACTICE ,2278564," 29,239.70 ",KC000011696,
Department of Health,NHS England,31/01/2014,GPMS/APMS and PCTMS, Primary Care , BROADWAY SURGERY ,2340193," 42,265.19 ",LNB000002847,
Department of Health,NHS England,31/01/2014,GPMS/APMS and PCTMS, Primary Care , BROCKHURST MEDICAL CENTRE ,2337673," 37,735.86 ",SO000011106,
Department of Health,NHS England,31/01/2014,GPMS/APMS and PCTMS, Primary Care , BROCKLEY SURGERY ,2230262," 32,812.26 ",LNS000006647,
Department of Health,NHS England,31/01/2014,GPMS/APMS and PCTMS, Primary Care , BROCKWELL MEDICAL GROUP ,2226952,"-26,712.83 ",NR000002164,
Department of Health,NHS England,31/01/2014,GPMS/APMS and PCTMS, Primary Care , BROCKWELL MEDICAL GROUP ,2226953," 139,960.09 ",NR000002165,
Department of Health,NHS England,31/01/2014,GPMS/APMS and PCTMS, Primary Care , BROCKWELL PARK ,2230264," 55,092.96 ",LNS000006649,
Department of Health,NHS England,31/01/2014,GPMS/APMS and PCTMS, Primary Care , BROCKWOOD MEDICAL PRACTICE ,2227623," 94,412.25 ",SY000005049,
Department of Health,NHS England,31/01/2014,GPMS/APMS and PCTMS, Primary Care , BRODBIN & PARTNERS ,2319843," 32,716.46 ",BIK000002272,
Department of Health,NHS England,31/01/2014,GPMS/APMS and PCTMS, Primary Care , BROKEN CROSS SURGERY ,2211713," 40,797.45 ",CH000004936,
Department of Health,NHS England,31/01/2014,GPMS/APMS and PCTMS, Primary Care , BROMLEY COMMON PRACTICE ,2278647," 55,139.93 ",LNT000002285,
Department of Health,NHS England,31/01/2014,Services from other NHS bodies, Public Health , BROMLEY HEALTHCARE CIC ,2443058," 25,206.00 ",25575517 ,
Department of Health,NHS England,31/01/2014,Purchase of healthcare from non-NHS bodies, Secondary and Community Dental Care , BROMLEY HEALTHCARE CIC ,2443059," 96,583.00 ",25575518 ,
Department of Health,NHS England,31/01/2014,Purchase of healthcare from non-NHS bodies, Public Health , BROMLEY HEALTHCARE CIC ,2443056," 293,838.00 ",25575515 ,
Department of Health,NHS England,31/01/2014,GPMS/APMS and PCTMS, Primary Care , BRONDESBURY MEDICAL CENTRE ,2230162," 159,847.14 ",LND000003320,
Department of Health,NHS England,31/01/2014,GPMS/APMS and PCTMS, Primary Care , BROOK GREEN MEDICAL CENTRE ,2357501,"-29,258.14 ",LNM000004676,
Department of Health,NHS England,31/01/2014,GPMS/APMS and PCTMS, Primary Care , BROOK GREEN MEDICAL CENTRE ,2357502," 118,745.37 ",LNM000004677,
Department of Health,NHS England,31/01/2014,GPMS/APMS and PCTMS, Primary Care , BROOK HEALTH CENTRE ,2229597," 89,347.95 ",NO000003761,
Department of Health,NHS England,31/01/2014,GPMS/APMS and PCTMS, Primary Care , BROOK HOUSE SURGERY ,2337675," 38,372.03 ",SO000011108,
Department of Health,NHS England,31/01/2014,GPMS/APMS and PCTMS, Primary Care , BROOK LANE SURGERY ,2355928," 94,927.12 ",SO000011110,
Department of Health,NHS England,31/01/2014,GPMS/APMS and PCTMS, Primary Care , BROOK MEDICAL CENTRE ,2428626," 46,278.63 ",NO000003909,
Department of Health,NHS England,31/01/2014,GPMS/APMS and PCTMS, Primary Care , BROOKE ROAD SURGERY ,2355841," 36,615.62 ",LNA000004529,
Department of Health,NHS England,31/01/2014,GPMS/APMS and PCTMS, Primary Care , BROOKE SURGERY ,2222650," 89,926.36 ",GMK000002458,
Department of Health,NHS England,31/01/2014,GPMS/APMS and PCTMS, Primary Care , BROOKES & LEE ,2319169,"-69,875.48 ",LIP000004666,
Department of Health,NHS England,31/01/2014,GPMS/APMS and PCTMS, Primary Care , BROOKES & LEE ,2166894," 32,447.53 ",LIP000004381,
Department of Health,NHS England,31/01/2014,GPMS/APMS and PCTMS, Primary Care , BROOKES & LEE ,2319170," 83,632.42 ",LIP000004667,
Department of Health,NHS England,31/01/2014,GPMS/APMS and PCTMS, Primary Care , BROOKFIELD PARK SURGERY ,2414955," 29,651.08 ",LND000003482,
Department of Health,NHS England,31/01/2014,GPMS/APMS and PCTMS, Primary Care , BROOKFIELD SURGERY ,2306854,"-39,610.56 ",CH000005254,
Department of Health,NHS England,31/01/2014,GPMS/APMS and PCTMS, Primary Care , BROOKFIELD SURGERY ,2166261," 40,952.74 ",CH000004824,
Department of Health,NHS England,31/01/2014,GPMS/APMS and PCTMS, Primary Care , BROOKFIELD SURGERY ,2317839," 67,449.15 ",CH000005255,
Department of Health,NHS England,31/01/2014,GPMS/APMS and PCTMS, Primary Care , BROOKHOUSE MEDICAL CENTRE ,2396879," 44,568.68 ",LA000007830,
Department of Health,NHS England,31/01/2014,GPMS/APMS and PCTMS, Primary Care , BROOKSIDE GROUP PRACTICE ,2338945,"-30,980.40 ",BE000004692,
Department of Health,NHS England,31/01/2014,GPMS/APMS and PCTMS, Primary Care , BROOKSIDE GROUP PRACTICE ,2338946," 200,386.79 ",BE000004693,
Department of Health,NHS England,31/01/2014,GPMS/APMS and PCTMS, Primary Care , BROOKSIDE HEALTH CENTRE ,2337678," 98,790.78 ",SO000011112,
Department of Health,NHS England,31/01/2014,GPMS/APMS and PCTMS, Primary Care , BROOKSIDE SURGERY ,2396249," 33,462.83 ",WA000003538,
Department of Health,NHS England,31/01/2014,GPMS/APMS and PCTMS, Primary Care , BROOM LEYS SURGERY ,2187230," 70,285.42 ",LD000005811,
Department of Health,NHS England,31/01/2014,GPMS/APMS and PCTMS, Primary Care , BROOMHILL SURGERY ,2412421," 67,092.20 ",SHE000003196,
Department of Health,NHS England,31/01/2014,GPMS/APMS and PCTMS, Primary Care , BROOMWOOD ROAD SURGERY ,2292356," 79,129.18 ",LNT000002287,
Department of Health,NHS England,31/01/2014,GPMS/APMS and PCTMS, Primary Care , BROSELEY MEDICAL PRACTICE ,2383129," 38,411.23 ",SA000003806,
Department of Health,NHS England,31/01/2014,GPMS/APMS and PCTMS, Primary Care , BROUGHTON HOUSE SURGERY ,2317793," 40,180.15 ",BU000003471,
Department of Health,NHS England,31/01/2014,GPMS/APMS and PCTMS, Primary Care , BROW MEDICAL CENTRE ,2320684," 36,921.21 ",TW000006551,
Department of Health,NHS England,31/01/2014,GPMS/APMS and PCTMS, Primary Care , BROWN B J & PARTNERS ,2226555," 51,897.55 ",EX000010858,
Department of Health,NHS England,31/01/2014,GPMS/APMS and PCTMS, Primary Care , BROWN CLEE MEDICAL PRACTICE ,2370171," 29,990.23 ",SA000003808,
Department of Health,NHS England,31/01/2014,GPMS/APMS and PCTMS, Primary Care , BROWNHILL SURGERY ,2337680," 56,136.17 ",SO000011114,
Department of Health,NHS England,31/01/2014,GPMS/APMS and PCTMS, Primary Care , BRUNE MEDICAL CENTRE ,2337682," 90,829.76 ",SO000011116,
Department of Health,NHS England,31/01/2014,GPMS/APMS and PCTMS, Primary Care , BRUNEL MEDICAL PRACTICE BABBACOMBE TORQUAY ,2455169," 137,591.48 ",DN000008882,
Department of Health,NHS England,31/01/2014,GPMS/APMS and PCTMS, Primary Care , BRUNSWICK HOUSE MEDICAL GROUP ,2356086," 139,591.37 ",CU000003463,
Department of Health,NHS England,31/01/2014,GPMS/APMS and PCTMS, Primary Care , BRUNSWICK MEDICAL CENTRE UHPC ,2230163,"-29,975.68 ",LND000003321,
Department of Health,NHS England,31/01/2014,GPMS/APMS and PCTMS, Primary Care , BRUNSWICK MEDICAL CENTRE UHPC ,2230164," 73,941.37 ",LND000003322,
Department of Health,NHS England,31/01/2014,GPMS/APMS and PCTMS, Primary Care , BRUNSWICK SURGERY ,2340699," 48,099.79 ",TE000005818,
Department of Health,NHS England,31/01/2014,GPMS/APMS and PCTMS, Primary Care , BRYANT STREET ,2278568," 40,892.67 ",KC000011700,
Department of Health,NHS England,31/01/2014,Establishment, NHS England Running Costs , BT GLOBAL SERVICES ,2465896," 32,948.41 ",790108410 ,
Department of Health,NHS England,31/01/2014,Establishment, NHS England Running Costs , BT GLOBAL SERVICES ,2452518," 205,051.72 ",790109119 ,
Department of Health,NHS England,31/01/2014,Establishment, NHS England Running Costs , BT GLOBAL SERVICES ,2368009," 247,195.40 ",790107382 ,
Department of Health,NHS England,31/01/2014,Establishment, NHS England Running Costs , BT GLOBAL SERVICES ,2208680," 484,274.94 ",790107404 ,
Department of Health,NHS England,31/01/2014,GPMS/APMS and PCTMS, Primary Care , BUCHANAN ROAD SURGERY ,2428744," 54,464.66 ",SHE000003192,
Department of Health,NHS England,31/01/2014,GPMS/APMS and PCTMS, Primary Care , BUCKFASTLEIGH MEDICAL CENTRE ,2339803," 41,218.36 ",DN000008394,
Department of Health,NHS England,31/01/2014,Services from other NHS bodies, Secondary and Community Dental Care , BUCKINGHAMSHIRE HEALTHCARE NHS TRUST ,2196380, 263.44 ,BB004102,
Department of Health,NHS England,31/01/2014,Services from other NHS bodies, Health & Justice , BUCKINGHAMSHIRE HEALTHCARE NHS TRUST ,2208172," 14,000.00 ",BB004101,
Department of Health,NHS England,31/01/2014,Services from other NHS bodies, Health & Justice , BUCKINGHAMSHIRE HEALTHCARE NHS TRUST ,2466069," 14,903.99 ",BB004142,
Department of Health,NHS England,31/01/2014,General Dental services and personal dental services, Secondary and Community Dental Care , BUCKINGHAMSHIRE HEALTHCARE NHS TRUST ,2196380," 21,075.50 ",BB004102,
Department of Health,NHS England,31/01/2014,Services from other NHS bodies, Secondary and Community Dental Care , BUCKINGHAMSHIRE HEALTHCARE NHS TRUST ,2196219," 34,750.08 ",BB004094,
Department of Health,NHS England,31/01/2014,Services from other NHS bodies, Public Health , BUCKINGHAMSHIRE HEALTHCARE NHS TRUST ,2196380," 35,863.05 ",BB004102,
Department of Health,NHS England,31/01/2014,Services from other NHS bodies, Secondary and Community Dental Care , BUCKINGHAMSHIRE HEALTHCARE NHS TRUST ,2208172," 204,000.00 ",BB004101,
Department of Health,NHS England,31/01/2014,Services from other NHS bodies, Secondary and Community Dental Care , BUCKINGHAMSHIRE HEALTHCARE NHS TRUST ,2466069," 215,971.79 ",BB004142,
Department of Health,NHS England,31/01/2014,Services from other NHS bodies, Specialised Commissioning , BUCKINGHAMSHIRE HEALTHCARE NHS TRUST ,2290256," 588,555.08 ",BB004132,
Department of Health,NHS England,31/01/2014,Services from other NHS bodies, Public Health , BUCKINGHAMSHIRE HEALTHCARE NHS TRUST ,2466069," 763,785.09 ",BB004142,
Department of Health,NHS England,31/01/2014,Services from other NHS bodies, Public Health , BUCKINGHAMSHIRE HEALTHCARE NHS TRUST ,2208172," 776,660.87 ",BB004101,
Department of Health,NHS England,31/01/2014,Services from other NHS bodies, Specialised Commissioning , BUCKINGHAMSHIRE HEALTHCARE NHS TRUST ,2208147," 3,759,445.39 ",BB004118,
Department of Health,NHS England,31/01/2014,GPMS/APMS and PCTMS, Primary Care , BUCKLAND MEDICAL CENTRE ,2279043," 32,494.92 ",KC000012142,
Department of Health,NHS England,31/01/2014,GPMS/APMS and PCTMS, Primary Care , BUCKLAND SURGERY ,2455162," 26,839.06 ",DN000008874,
Department of Health,NHS England,31/01/2014,GPMS/APMS and PCTMS, Primary Care , BUDBROOKE MEDICAL CENTRE ,2396244," 33,794.68 ",WA000003532,
Department of Health,NHS England,31/01/2014,GPMS/APMS and PCTMS, Primary Care , BUDLEIGH SALTERTON MEDICAL CENTRE ,2467166," 83,165.76 ",DN000008876,
Department of Health,NHS England,31/01/2014,GPMS/APMS and PCTMS, Primary Care , BUDSHEAD MEDICAL PRACTICE TAMAR LCG ,2455165," 56,997.92 ",DN000008878,
Department of Health,NHS England,31/01/2014,GPMS/APMS and PCTMS, Primary Care , BUGBROOKE MEDICAL PRACTICE ,2229592," 114,568.17 ",NO000003756,
Department of Health,NHS England,31/01/2014,GPMS/APMS and PCTMS, Primary Care , BULBANKS MEDICAL CENTRE ,2229713," 30,678.67 ",LNW000002384,
Department of Health,NHS England,31/01/2014,GPMS/APMS and PCTMS, Primary Care , BULL BELFITT & GUPTA ,2337193," 59,959.90 ",DE000006510,
Department of Health,NHS England,31/01/2014,GPMS/APMS and PCTMS, Primary Care , BUNBURY MEDICAL PRACTICE ,2211711," 57,731.60 ",CH000004934,
Department of Health,NHS England,31/01/2014,GPMS/APMS and PCTMS, Primary Care , BUNTINGFORD MEDICAL CENTRE ,2428963," 53,990.85 ",HT000006051,
Department of Health,NHS England,31/01/2014,Supplies and services � clinical, Specialised Commissioning , BUPA HOME HEALTHCARE LTD ,2452779," 31,392.00 ",SINV1297875,
Department of Health,NHS England,31/01/2014,Supplies and services � clinical, Specialised Commissioning , BUPA HOME HEALTHCARE LTD ,2304966," 32,650.00 ",SINV1281633,
Department of Health,NHS England,31/01/2014,Supplies and services � clinical, Specialised Commissioning , BUPA HOME HEALTHCARE LTD ,2304939," 46,886.88 ",SINV1288436,
Department of Health,NHS England,31/01/2014,Supplies and services � clinical, Specialised Commissioning , BUPA HOME HEALTHCARE LTD ,2274601," 46,996.81 ",SINV1267170,
Department of Health,NHS England,31/01/2014,Supplies and services � clinical, Specialised Commissioning , BUPA HOME HEALTHCARE LTD ,2405337," 70,604.62 ",S1NV1261635,
Department of Health,NHS England,31/01/2014,Supplies and services � clinical, Specialised Commissioning , BUPA HOME HEALTHCARE LTD ,2452777," 79,636.71 ",SINV1297877,
Department of Health,NHS England,31/01/2014,Supplies and services � general, Specialised Commissioning , BUPA HOME HEALTHCARE LTD ,2368084," 407,224.80 ",SINV1261355,
Department of Health,NHS England,31/01/2014,Purchase of healthcare from non-NHS bodies, Specialised Commissioning , BUPA HOME HEALTHCARE LTD ,2208330," 478,382.02 ",BHHNOV13NWSCGADD,
Department of Health,NHS England,31/01/2014,Purchase of healthcare from non-NHS bodies, Specialised Commissioning , BUPA HOME HEALTHCARE LTD ,2208196," 1,179,919.20 ",BHHNOV13NWSCG,
Department of Health,NHS England,31/01/2014,Purchase of healthcare from non-NHS bodies, Specialised Commissioning , BUPA HOME HEALTHCARE LTD ,2368338," 1,533,850.72 ",BHHDEC13NWSCG,
Department of Health,NHS England,31/01/2014,GPMS/APMS and PCTMS, Primary Care , BURDWOOD SURGERY ,2225537," 73,080.60 ",BE000004573,
Department of Health,NHS England,31/01/2014,GPMS/APMS and PCTMS, Primary Care , BURGESS H ,2227746," 101,860.55 ",MAN000002648,
Department of Health,NHS England,31/01/2014,GPMS/APMS and PCTMS, Primary Care , BURGESS ROAD SURGERY ,2198103,"-82,924.92 ",SO000010814,
Department of Health,NHS England,31/01/2014,GPMS/APMS and PCTMS, Primary Care , BURGESS ROAD SURGERY ,2209540," 162,989.77 ",SO000010815,
Department of Health,NHS England,31/01/2014,GPMS/APMS and PCTMS, Primary Care , BURN BRAE MEDICAL GROUP ,2243885," 74,756.32 ",NR000002163,
Department of Health,NHS England,31/01/2014,GPMS/APMS and PCTMS, Primary Care , BURNCROSS SURGERY ,2243961," 154,735.32 ",SHE000003015,
Department of Health,NHS England,31/01/2014,GPMS/APMS and PCTMS, Primary Care , BURNGREAVE SURGERY ,2243962," 60,703.15 ",SHE000003017,
Department of Health,NHS England,31/01/2014,GPMS/APMS and PCTMS, Primary Care , BURNHAM HEALTH CENTRE ,2317791," 146,417.77 ",BU000003467,
Department of Health,NHS England,31/01/2014,GPMS/APMS and PCTMS, Primary Care , BURNHAM MEDICAL CENTRE ,2428686," 152,982.35 ",SM000002846,
Department of Health,NHS England,31/01/2014,GPMS/APMS and PCTMS, Primary Care , BURNLEY MEDICAL PRACTICE ,2341812," 31,936.31 ",LNL000003799,
Department of Health,NHS England,31/01/2014,GPMS/APMS and PCTMS, Primary Care , BURNLEY WOOD MEDICAL CENTRE ,2396872," 45,533.69 ",LA000007820,
Department of Health,NHS England,31/01/2014,GPMS/APMS and PCTMS, Primary Care , BURNS A & PARTNERS ,2339985," 57,725.28 ",SY000005171,
Department of Health,NHS England,31/01/2014,GPMS/APMS and PCTMS, Primary Care , BURNTWOOD HEALTH & WELLBEING CENTRE ,2230649," 68,049.06 ",ST000008809,
Department of Health,NHS England,31/01/2014,GPMS/APMS and PCTMS, Primary Care , BURRELL & PARTNERS ,2227021,"-106,322.23 ",DR000003424,
Department of Health,NHS England,31/01/2014,GPMS/APMS and PCTMS, Primary Care , BURRELL & PARTNERS ,2243895," 218,697.49 ",DR000003425,
Department of Health,NHS England,31/01/2014,GPMS/APMS and PCTMS, Primary Care , BURSLEDON SURGERY ,2337667," 31,801.62 ",SO000011100,
Department of Health,NHS England,31/01/2014,GPMS/APMS and PCTMS, Primary Care , BURSTED WOOD SURGERY ,2229715," 32,008.31 ",LNW000002386,
Department of Health,NHS England,31/01/2014,GPMS/APMS and PCTMS, Primary Care , BURTON & BRANSGORE MEDICAL CENTRES ,2211124," 87,371.86 ",DO000004544,
Department of Health,NHS England,31/01/2014,General Dental services and personal dental services, Secondary and Community Dental Care , BURTON HOSPITALS NHS FOUNDATION TRUST ,2275249," 61,189.58 ",IN0013357281,
Department of Health,NHS England,31/01/2014,General Dental services and personal dental services, Secondary and Community Dental Care , BURTON HOSPITALS NHS FOUNDATION TRUST ,2207733," 115,154.03 ",IN0013263541,
Department of Health,NHS England,31/01/2014,General Dental services and personal dental services, Secondary and Community Dental Care , BURTON HOSPITALS NHS FOUNDATION TRUST ,2254882," 115,154.03 ",IN0013314121,
Department of Health,NHS England,31/01/2014,General Dental services and personal dental services, Secondary and Community Dental Care , BURTON HOSPITALS NHS FOUNDATION TRUST ,2354572," 115,154.03 ",IN0013366011,
Department of Health,NHS England,31/01/2014,Services from other NHS bodies, Other , BURTON HOSPITALS NHS FOUNDATION TRUST ,2426041," 150,000.00 ",IN0013343661,
Department of Health,NHS England,31/01/2014,Services from other NHS bodies, Other , BURTON HOSPITALS NHS FOUNDATION TRUST ,2465861," 150,000.00 ",IN0013343581,
Department of Health,NHS England,31/01/2014,Services from other NHS bodies, Specialised Commissioning , BURTON HOSPITALS NHS FOUNDATION TRUST ,2256157," 908,663.91 ",IN0013365691,
Department of Health,NHS England,31/01/2014,GPMS/APMS and PCTMS, Primary Care , BURTON LATIMER HEALTH CENTRE ,2229593,"-25,633.47 ",NO000003757,
Department of Health,NHS England,31/01/2014,GPMS/APMS and PCTMS, Primary Care , BURTON LATIMER HEALTH CENTRE ,2229594," 108,323.28 ",NO000003758,
Department of Health,NHS England,31/01/2014,GPMS/APMS and PCTMS, Primary Care , BURVILL HOUSE SURGERY ,2225644," 78,680.57 ",HT000005830,
Department of Health,NHS England,31/01/2014,GPMS/APMS and PCTMS, Primary Care , BURWELL SURGERY ,2341075," 68,833.23 ",CB000005341,
Department of Health,NHS England,31/01/2014,GPMS/APMS and PCTMS, Primary Care , BURY KNOWLE HEALTH CENTRE ,2243621," 125,241.53 ",OX000003863,
Department of Health,NHS England,31/01/2014,GPMS/APMS and PCTMS, Primary Care , BURY ROAD SURGERY ,2337669," 35,123.36 ",SO000011102,
Department of Health,NHS England,31/01/2014,GPMS/APMS and PCTMS, Primary Care , BUSH & PARTNERS ,2319837,"-144,329.24 ",BIK000002265,
Department of Health,NHS England,31/01/2014,GPMS/APMS and PCTMS, Primary Care , BUSH & PARTNERS ,2166808," 55,288.39 ",BIK000002146,
Department of Health,NHS England,31/01/2014,GPMS/APMS and PCTMS, Primary Care , BUSH & PARTNERS ,2332495," 184,003.90 ",BIK000002266,
Department of Health,NHS England,31/01/2014,GPMS/APMS and PCTMS, Primary Care , BUSHFIELD HEALTH CENTRE ,2341077," 36,745.13 ",CB000005343,
Department of Health,NHS England,31/01/2014,GPMS/APMS and PCTMS, Primary Care , BUTCHERY SURGERY ,2278562," 28,172.49 ",KC000011694,
Department of Health,NHS England,31/01/2014,GPMS/APMS and PCTMS, Primary Care , BUTE HOUSE MEDICAL PRACTICE ,2413863," 68,780.38 ",BD000003872,
Department of Health,NHS England,31/01/2014,GPMS/APMS and PCTMS, Primary Care , BUTE HOUSE SURGERY ,2211126," 75,382.25 ",DO000004546,
Department of Health,NHS England,31/01/2014,GPMS/APMS and PCTMS, Primary Care , BUTLER S & PARTNERS ,2226553," 76,572.92 ",EX000010856,
Department of Health,NHS England,31/01/2014,GPMS/APMS and PCTMS, Primary Care , BUXTED SURGERY ,2320243," 26,660.78 ",TE000005499,
Department of Health,NHS England,31/01/2014,GPMS/APMS and PCTMS, Primary Care , BUXTED SURGERY ,2340514," 101,086.27 ",TE000005622,
Department of Health,NHS England,31/01/2014,GPMS/APMS and PCTMS, Primary Care , BUXTON MEDICAL PRACTICE ,2342058," 58,033.61 ",DE000006557,
Department of Health,NHS England,31/01/2014,GPMS/APMS and PCTMS, Primary Care , BYFIELD MEDICAL CENTRE ,2410448," 56,343.02 ",NO000003907,
Department of Health,NHS England,31/01/2014,GPMS/APMS and PCTMS, Primary Care , BYRNE & PARTNERS ,2319166," 26,410.34 ",LIP000004663,
Department of Health,NHS England,31/01/2014,GPMS/APMS and PCTMS, Primary Care , C J D PEACH ,2244376," 101,184.87 ",LNP000004969,
Department of Health,NHS England,31/01/2014,GPMS/APMS and PCTMS, Primary Care , C J ELLIOTT ,2231305," 98,802.55 ",LNP000004971,
Department of Health,NHS England,31/01/2014,GPMS/APMS and PCTMS, Primary Care , C M KROLL ,2244377," 102,792.74 ",LNP000004973,
Department of Health,NHS England,31/01/2014,GPMS/APMS and PCTMS, Primary Care , C PERERA ,2231308," 41,655.90 ",LNP000004975,
Department of Health,NHS England,31/01/2014,GPMS/APMS and PCTMS, Primary Care , C RIBEIRO ,2244378," 77,599.17 ",LNP000004977,
Department of Health,NHS England,31/01/2014,GPMS/APMS and PCTMS, Primary Care , C T C MARKS ,2337186," 25,171.22 ",LNC000003198,
Department of Health,NHS England,31/01/2014,GPMS/APMS and PCTMS, Primary Care , C TRAN ,2226893,"-31,304.94 ",LNC000003120,
Department of Health,NHS England,31/01/2014,GPMS/APMS and PCTMS, Primary Care , C TRAN ,2243830," 61,295.04 ",LNC000003121,
Department of Health,NHS England,31/01/2014,GPMS/APMS and PCTMS, Primary Care , CA STEDALL ,2338216," 54,391.09 ",WAL000002326,
Department of Health,NHS England,31/01/2014,GPMS/APMS and PCTMS, Primary Care , CABIN SURGERY ,2406411," 36,593.96 ",LA000007824,
Department of Health,NHS England,31/01/2014,Establishment, Other , CABLE & WIRELESS UK ,2331872," 454,275.60 ",MPDEC13044,
Department of Health,NHS England,31/01/2014,GPMS/APMS and PCTMS, Primary Care , CADDINGTON MEDICAL PRACTICE ,2413865," 39,808.48 ",BD000003874,
Department of Health,NHS England,31/01/2014,GPMS/APMS and PCTMS, Primary Care , CAEN MEDICAL CENTRE ,2455167," 110,981.56 ",DN000008880,
Department of Health,NHS England,31/01/2014,GPMS/APMS and PCTMS, Primary Care , CALCOT MEDICAL CENTRE ,2317792," 65,028.95 ",BU000003469,
Department of Health,NHS England,31/01/2014,GPMS/APMS and PCTMS, Primary Care , CALDBECK SURGERY ,2340375," 56,747.70 ",CU000003459,
Department of Health,NHS England,31/01/2014,Services from other NHS bodies, Specialised Commissioning , CALDERDALE & HUDDERSFIELD NHS FOUNDATION TRUST ,2404542," 83,442.41 ",4710020082 ,
Department of Health,NHS England,31/01/2014,Services from other NHS bodies, Specialised Commissioning , CALDERDALE & HUDDERSFIELD NHS FOUNDATION TRUST ,2207844," 120,046.00 ",4710019810 ,
Department of Health,NHS England,31/01/2014,Services from other NHS bodies, Specialised Commissioning , CALDERDALE & HUDDERSFIELD NHS FOUNDATION TRUST ,2466188," 139,956.00 ",4710022730 ,
Department of Health,NHS England,31/01/2014,Services from other NHS bodies, Specialised Commissioning , CALDERDALE & HUDDERSFIELD NHS FOUNDATION TRUST ,2183060," 145,188.96 ",4710020083 ,
Department of Health,NHS England,31/01/2014,Services from other NHS bodies, Specialised Commissioning , CALDERDALE & HUDDERSFIELD NHS FOUNDATION TRUST ,2207833," 173,182.00 ",4710019814 ,
Department of Health,NHS England,31/01/2014,Services from other NHS bodies, Specialised Commissioning , CALDERDALE & HUDDERSFIELD NHS FOUNDATION TRUST ,2221191," 323,992.00 ",4710020998 ,
Department of Health,NHS England,31/01/2014,Services from other NHS bodies, Public Health , CALDERDALE & HUDDERSFIELD NHS FOUNDATION TRUST ,1984134," 558,764.11 ",4710020863 ,
Department of Health,NHS England,31/01/2014,GPMS/APMS and PCTMS, Primary Care , CALE GREEN SURGERY ,2395893," 32,576.46 ",SPT000001819,
Department of Health,NHS England,31/01/2014,Purchase of healthcare from non-NHS bodies, Specialised Commissioning , CALEA UK LTD ,2182946," 30,456.92 ",1100000008 ,
Department of Health,NHS England,31/01/2014,Purchase of healthcare from non-NHS bodies, Specialised Commissioning , CALEA UK LTD ,2354925," 34,625.80 ",1100000010 ,
Department of Health,NHS England,31/01/2014,Purchase of healthcare from non-NHS bodies, Specialised Commissioning , CALEA UK LTD ,2182945," 35,413.80 ",1100000009 ,
Department of Health,NHS England,31/01/2014,Purchase of healthcare from non-NHS bodies, Specialised Commissioning , CALEA UK LTD ,2354921," 39,439.80 ",1100000011 ,
Department of Health,NHS England,31/01/2014,Purchase of healthcare from non-NHS bodies, Specialised Commissioning , CALEA UK LTD ,2316688," 88,803.12 ",1100038651 ,
Department of Health,NHS England,31/01/2014,GPMS/APMS and PCTMS, Primary Care , CALLAGHAN JM & PARTNERS ,2319167,"-44,080.96 ",LIP000004664,
Department of Health,NHS England,31/01/2014,GPMS/APMS and PCTMS, Primary Care , CALLAGHAN JM & PARTNERS ,2166892," 42,531.26 ",LIP000004379,
Department of Health,NHS England,31/01/2014,GPMS/APMS and PCTMS, Primary Care , CALLAGHAN JM & PARTNERS ,2319168," 61,673.41 ",LIP000004665,
Department of Health,NHS England,31/01/2014,GPMS/APMS and PCTMS, Primary Care , CALLOWLAND SURGERY ,2414501," 85,721.23 ",HT000006055,
Department of Health,NHS England,31/01/2014,GPMS/APMS and PCTMS, Primary Care , CAMBERWELL GREEN SURGERY ,2230259," 104,826.50 ",LNS000006643,
Department of Health,NHS England,31/01/2014,GPMS/APMS and PCTMS, Primary Care , CAMBRIAN MEDICAL CENTRE ,2383175," 97,444.92 ",SA000003906,
Department of Health,NHS England,31/01/2014,GPMS/APMS and PCTMS, Primary Care , CAMBRIDGE ACCESS SURGERY ,2244849," 34,369.83 ",CB000005187,
Department of Health,NHS England,31/01/2014,GPMS/APMS and PCTMS, Primary Care , CAMBRIDGE AVENUE MEDICAL CENTRE ,2411135," 134,682.08 ",KHU000004600,
Department of Health,NHS England,31/01/2014,GPMS/APMS and PCTMS, Primary Care , CAMBRIDGE MEDICAL GROUP ,2292275," 57,025.58 ",MID000003268,
Department of Health,NHS England,31/01/2014,Services from other NHS bodies, Specialised Commissioning , CAMBRIDGE UNIVERSITY HOSPITALS NHS FOUNDATION TRUST ,2380663," 222,000.00 ",80138512 ,
Department of Health,NHS England,31/01/2014,Services from other NHS bodies, Specialised Commissioning , CAMBRIDGE UNIVERSITY HOSPITALS NHS FOUNDATION TRUST ,2466127," 2,668,283.63 ",80138811 ,
Department of Health,NHS England,31/01/2014,Services from other NHS bodies, Specialised Commissioning , CAMBRIDGE UNIVERSITY HOSPITALS NHS FOUNDATION TRUST ,2290385," 18,641,653.39 ",70010362 ,
Department of Health,NHS England,31/01/2014,Services from other NHS bodies, Health & Justice , CAMBRIDGESHIRE & PETERBOROUGH NHS FOUNDATION TRUST ,2222060," 57,336.58 ",9900011019 ,
Department of Health,NHS England,31/01/2014,Services from other NHS bodies, Specialised Commissioning , CAMBRIDGESHIRE & PETERBOROUGH NHS FOUNDATION TRUST ,2275278," 289,148.00 ",9900011015 ,
Department of Health,NHS England,31/01/2014,Services from other NHS bodies, Specialised Commissioning , CAMBRIDGESHIRE & PETERBOROUGH NHS FOUNDATION TRUST ,2275277," 463,618.00 ",9900011014 ,
Department of Health,NHS England,31/01/2014,Services from other NHS bodies, Health & Justice , CAMBRIDGESHIRE COMMUNITY SERVICES ,2380324," 19,666.67 ",8500017714 ,
Department of Health,NHS England,31/01/2014,Services from other NHS bodies, Specialised Commissioning , CAMBRIDGESHIRE COMMUNITY SERVICES ,2291019," 35,967.17 ",8500017744 ,
Department of Health,NHS England,31/01/2014,Services from other NHS bodies, Specialised Commissioning , CAMBRIDGESHIRE COMMUNITY SERVICES ,2368163," 169,202.25 ",8500017721 ,
Department of Health,NHS England,31/01/2014,Services from other NHS bodies, Public Health , CAMBRIDGESHIRE COMMUNITY SERVICES ,2275585," 208,583.33 ",8500017736 ,
Department of Health,NHS England,31/01/2014,Services from other NHS bodies, Public Health , CAMBRIDGESHIRE COMMUNITY SERVICES ,2380324," 528,567.66 ",8500017714 ,
Department of Health,NHS England,31/01/2014,GPMS/APMS and PCTMS, Primary Care , CAMBRIDGESHIRE LOCAL MEDICAL COMMITTEE ,2197534," 34,985.21 ",150918-06-JAN-2014,
Department of Health,NHS England,31/01/2014,GPMS/APMS and PCTMS, Primary Care , CAMBRIDGESHIRE LOCAL MEDICAL COMMITTEE ,2395299," 35,145.05 ",154218-21-JAN-2014,
Department of Health,NHS England,31/01/2014,Services from other NHS bodies, Military Health , CAMDEN & ISLINGTON NHS FOUNDATION TRUST ,2183254," 37,500.00 ",50004724 ,
Department of Health,NHS England,31/01/2014,GPMS/APMS and PCTMS, Primary Care , CAMDEN HEALTH IMPROVEMENT PRACTICE ,2244151," 57,422.39 ",LND000003318,
Department of Health,NHS England,31/01/2014,GPMS/APMS and PCTMS, Primary Care , CAMERON & PARTNER ,2319838,"-54,000.57 ",BIK000002267,
Department of Health,NHS England,31/01/2014,GPMS/APMS and PCTMS, Primary Care , CAMERON & PARTNER ,2319839," 68,721.47 ",BIK000002268,
Department of Health,NHS England,31/01/2014,GPMS/APMS and PCTMS, Primary Care , CAMPBELL SURGERY ,2198105," 47,157.36 ",SO000010817,
Department of Health,NHS England,31/01/2014,GPMS/APMS and PCTMS, Primary Care , CAMPHOR IA ,2319841," 39,324.70 ",BIK000002270,
Department of Health,NHS England,31/01/2014,GPMS/APMS and PCTMS, Primary Care , CAMROSE MEDICAL PARTNERSHIP ,2337671," 98,825.27 ",SO000011104,
Department of Health,NHS England,31/01/2014,GPMS/APMS and PCTMS, Primary Care , CANBERRA CENTRE FOR HEALTH ,2211693," 34,023.75 ",LNM000004450,
Department of Health,NHS England,31/01/2014,GPMS/APMS and PCTMS, Primary Care , CANBURY MEDICAL CENTRE ,2339352,"-26,946.08 ",LNN000002921,
Department of Health,NHS England,31/01/2014,GPMS/APMS and PCTMS, Primary Care , CANBURY MEDICAL CENTRE ,2339353," 92,530.78 ",LNN000002922,
Department of Health,NHS England,31/01/2014,GPMS/APMS and PCTMS, Primary Care , CANFORD HEATH GROUP PRACTICE ,2211121,"-25,659.94 ",DO000004541,
Department of Health,NHS England,31/01/2014,GPMS/APMS and PCTMS, Primary Care , CANFORD HEATH GROUP PRACTICE ,2211122," 107,876.85 ",DO000004542,
Department of Health,NHS England,31/01/2014,GPMS/APMS and PCTMS, Primary Care , CANNINGTON HEALTH CENTRE ,2411864," 66,848.35 ",SM000002844,
Department of Health,NHS England,31/01/2014,GPMS/APMS and PCTMS, Primary Care , CANTERBURY MEDICAL PRACTICE ,2279037," 88,102.28 ",KC000012136,
Department of Health,NHS England,31/01/2014,GPMS/APMS and PCTMS, Primary Care , CANTERBURY WAY SURGERY ,2428964," 26,309.79 ",HT000006053,
Department of Health,NHS England,31/01/2014,GPMS/APMS and PCTMS, Primary Care , CANUTE SURGERY ,2355926," 41,381.59 ",SO000011096,
Department of Health,NHS England,31/01/2014,GPMS/APMS and PCTMS, Primary Care , CAPE ROAD SURGERY ,2406178," 37,865.55 ",WA000003534,
Department of Health,NHS England,31/01/2014,GPMS/APMS and PCTMS, Primary Care , CAPELFIELD SURGERY ,2227621," 53,121.44 ",SY000005047,
Department of Health,NHS England,31/01/2014,Consultancy services, Other , CAPITA BUSINESS SERVICES LTD ,2175432," 40,000.00 ",93342268 ,
Department of Health,NHS England,31/01/2014,GPMS/APMS and PCTMS, Primary Care , CAPLAN M ,2359554," 49,682.60 ",MAN000002774,
Department of Health,NHS England,31/01/2014,GPMS/APMS and PCTMS, Primary Care , CAPTAIN FRENCH LANE SURGERY ,2356084," 67,749.41 ",CU000003457,
Department of Health,NHS England,31/01/2014,Purchase of healthcare from non-NHS bodies, Specialised Commissioning , CARE FERTILITY ,2274616," 33,255.00 ",192122 ,
Department of Health,NHS England,31/01/2014,GPMS/APMS and PCTMS, Primary Care , CARE HOME MEDICAL PRACTICE ,2187566," 87,172.95 ",SLF000002839,
Department of Health,NHS England,31/01/2014,Purchase of healthcare from non-NHS bodies, Specialised Commissioning , CARE UK ,2242264," 292,080.15 ",RFARM000289,
Department of Health,NHS England,31/01/2014,GPMS/APMS and PCTMS, Primary Care , CARE UK CLINICAL SERVICES LTD ,2474324,"-86,241.17 ",120020982 ,
Department of Health,NHS England,31/01/2014,Purchase of healthcare from non-NHS bodies, Health & Justice , CARE UK CLINICAL SERVICES LTD ,2290756," 48,891.94 ",120026580 ,
Department of Health,NHS England,31/01/2014,GPMS/APMS and PCTMS, Primary Care , CARE UK CLINICAL SERVICES LTD ,2474313," 59,101.57 ",120023457 ,
Department of Health,NHS England,31/01/2014,GPMS/APMS and PCTMS, Primary Care , CARE UK CLINICAL SERVICES LTD ,2474438," 59,101.57 ",120025464 ,
Department of Health,NHS England,31/01/2014,GPMS/APMS and PCTMS, Primary Care , CARE UK CLINICAL SERVICES LTD ,2474574," 59,101.57 ",120027079 ,
Department of Health,NHS England,31/01/2014,GPMS/APMS and PCTMS, Primary Care , CARE UK CLINICAL SERVICES LTD ,2452240," 68,400.00 ",120026578 ,
Department of Health,NHS England,31/01/2014,GPMS/APMS and PCTMS, Primary Care , CARE UK CLINICAL SERVICES LTD ,2368205," 83,899.18 ",120027149 ,
Department of Health,NHS England,31/01/2014,GPMS/APMS and PCTMS, Primary Care , CARE UK CLINICAL SERVICES LTD ,2474202," 145,342.74 ",120018553 ,
Department of Health,NHS England,31/01/2014,GPMS/APMS and PCTMS, Primary Care , CARE UK CLINICAL SERVICES LTD ,2331479," 153,949.00 ",120027078 ,
Department of Health,NHS England,31/01/2014,Purchase of healthcare from non-NHS bodies, Health & Justice , CARE UK CLINICAL SERVICES LTD ,2291737," 168,073.67 ",120027311 ,
Department of Health,NHS England,31/01/2014,Purchase of healthcare from non-NHS bodies, Health & Justice , CARE UK CLINICAL SERVICES LTD ,2316721," 184,750.00 ",120027083 ,
Department of Health,NHS England,31/01/2014,Purchase of healthcare from non-NHS bodies, Health & Justice , CARE UK CLINICAL SERVICES LTD ,2331421," 212,630.00 ",120027313 ,
Department of Health,NHS England,31/01/2014,Purchase of healthcare from non-NHS bodies, Health & Justice , CARE UK CLINICAL SERVICES LTD ,2331505," 295,416.67 ",120027148 ,
Department of Health,NHS England,31/01/2014,Purchase of healthcare from non-NHS bodies, Health & Justice , CARE UK CLINICAL SERVICES LTD ,2331506," 307,274.13 ",120027086 ,
Department of Health,NHS England,31/01/2014,Purchase of healthcare from non-NHS bodies, Health & Justice , CARE UK CLINICAL SERVICES LTD ,2276050," 340,288.55 ",120027312 ,
Department of Health,NHS England,31/01/2014,Purchase of healthcare from non-NHS bodies, Health & Justice , CARE UK CLINICAL SERVICES LTD ,2276049," 405,002.33 ",120027309 ,
Department of Health,NHS England,31/01/2014,Purchase of healthcare from non-NHS bodies, Health & Justice , CARE UK CLINICAL SERVICES LTD ,2331478," 423,226.00 ",120027085 ,
Department of Health,NHS England,31/01/2014,Purchase of healthcare from non-NHS bodies, Other , CARE UK CLINICAL SERVICES LTD ,2332329," 1,757,993.67 ",120027624 ,
Department of Health,NHS England,31/01/2014,Purchase of healthcare from non-NHS bodies, Other , CARE UK CLINICAL SERVICES LTD ,2443095," 1,976,824.08 ",120028421 ,
Department of Health,NHS England,31/01/2014,GPMS/APMS and PCTMS, Primary Care , CARE UK CLINICAL SERVICES LTD BIRMINGHAM ,2342306," 119,928.14 ",BIR000005840,
Department of Health,NHS England,31/01/2014,GPMS/APMS and PCTMS, Primary Care , CARE UK CLINICAL SERVICES LTD SOUTHEND ON SEA ,2226551," 97,137.90 ",EX000010854,
Department of Health,NHS England,31/01/2014,GPMS/APMS and PCTMS, Primary Care , CARE UK LTD ,2226929," 50,091.12 ",LNC000003170,
Department of Health,NHS England,31/01/2014,Purchase of healthcare from non-NHS bodies, Specialised Commissioning , CARE UK MENTAL HEALTH PARTNERSHIPS LTD ,2331469," 318,109.05 ",RFARM000302,
Department of Health,NHS England,31/01/2014,GPMS/APMS and PCTMS, Primary Care , CAREPOINT PRACTICE ,2320291," 38,201.54 ",LNK000001415,
Department of Health,NHS England,31/01/2014,GPMS/APMS and PCTMS, Primary Care , CARFAX HEALTH ENTERPRISE ,2276129,"-31,600.47 ",WL000004199,
Department of Health,NHS England,31/01/2014,GPMS/APMS and PCTMS, Primary Care , CARFAX HEALTH ENTERPRISE ,2276130," 249,602.71 ",WL000004200,
Department of Health,NHS England,31/01/2014,Purchase of healthcare from non-NHS bodies, Specialised Commissioning , CARING HOMES GROUP ,2222806," 225,348.30 ",57600993TO57601010,
Department of Health,NHS England,31/01/2014,GPMS/APMS and PCTMS, Primary Care , CARISBROOKE HEALTH CENTRE ,2337665,"-26,175.69 ",SO000011097,
Department of Health,NHS England,31/01/2014,GPMS/APMS and PCTMS, Primary Care , CARISBROOKE HEALTH CENTRE ,2355927," 76,825.29 ",SO000011098,
Department of Health,NHS England,31/01/2014,GPMS/APMS and PCTMS, Primary Care , CARISBROOKE SURGERY ,2340512," 67,387.75 ",TE000005620,
Department of Health,NHS England,31/01/2014,GPMS/APMS and PCTMS, Primary Care , CARITAS GENERAL PRACTICE PARTNERSHIP ,2227765," 124,781.44 ",SPT000001732,
Department of Health,NHS England,31/01/2014,GPMS/APMS and PCTMS, Primary Care , CARITAS GROUP PRACTICE ,2260334," 98,054.29 ",YW000003950,
Department of Health,NHS England,31/01/2014,GPMS/APMS and PCTMS, Primary Care , CARLETON PRACTICE ,2396870," 32,446.41 ",LA000007818,
Department of Health,NHS England,31/01/2014,GPMS/APMS and PCTMS, Primary Care , CARLISLE HOUSE SURGERY ,2339077," 52,931.77 ",DO000004748,
Department of Health,NHS England,31/01/2014,GPMS/APMS and PCTMS, Primary Care , CARLTON HOUSE SURGERY ,2414923," 96,802.26 ",LNE000003774,
Department of Health,NHS England,31/01/2014,GPMS/APMS and PCTMS, Primary Care , CARODOC SURGERY ,2396549," 53,056.51 ",DR000003677,
Department of Health,NHS England,31/01/2014,GPMS/APMS and PCTMS, Primary Care , CARRFIELD MEDICAL CENTRE ,2227259," 28,298.01 ",SHE000003019,
Department of Health,NHS England,31/01/2014,GPMS/APMS and PCTMS, Primary Care , CARRINGTON HOUSE SURGERY ,2317796," 71,951.42 ",BU000003477,
Department of Health,NHS England,31/01/2014,GPMS/APMS and PCTMS, Primary Care , CARSHALTON FIELDS SURGERY ,2244420," 35,797.04 ",LNP000005125,
Department of Health,NHS England,31/01/2014,GPMS/APMS and PCTMS, Primary Care , CARTERKNOWLE & DORE MEDICAL PRACTICE ,2428745," 89,970.82 ",SHE000003200,
Department of Health,NHS England,31/01/2014,GPMS/APMS and PCTMS, Primary Care , CARTMEL SURGERY ,2356087," 25,421.80 ",CU000003465,
Department of Health,NHS England,31/01/2014,GPMS/APMS and PCTMS, Primary Care , CASSIDY MEDICAL CENTRE ,2211699," 57,218.90 ",LNM000004454,
Department of Health,NHS England,31/01/2014,GPMS/APMS and PCTMS, Primary Care , CASSIO SURGERY ,2197587," 35,314.22 ",151067-06-JAN-2014,
Department of Health,NHS England,31/01/2014,GPMS/APMS and PCTMS, Primary Care , CASTLE GARDENS MEDICAL CENTRE ,2413221," 64,631.89 ",EX000011376,
Department of Health,NHS England,31/01/2014,GPMS/APMS and PCTMS, Primary Care , CASTLE GARDENS SURGERY ,2339819," 54,398.87 ",DN000008412,
Department of Health,NHS England,31/01/2014,GPMS/APMS and PCTMS, Primary Care , CASTLE MEADOWS SURGERY ,2338880,"-40,964.95 ",DUD000001460,
Department of Health,NHS England,31/01/2014,GPMS/APMS and PCTMS, Primary Care , CASTLE MEADOWS SURGERY ,2338881," 83,402.57 ",DUD000001461,
Department of Health,NHS England,31/01/2014,GPMS/APMS and PCTMS, Primary Care , CASTLE MEDICAL CENTRE ,2406180," 102,211.63 ",WA000003542,
Department of Health,NHS England,31/01/2014,GPMS/APMS and PCTMS, Primary Care , CASTLE MEDICAL GROUP ,2406413," 148,162.55 ",LA000007832,
Department of Health,NHS England,31/01/2014,GPMS/APMS and PCTMS, Primary Care , CASTLE PLACE SURGERY TIVERTON ,2455181," 136,650.04 ",DN000008896,
Department of Health,NHS England,31/01/2014,GPMS/APMS and PCTMS, Primary Care , CASTLE PRACTICE ,2186202," 56,359.00 ",CR000002944,
Department of Health,NHS England,31/01/2014,GPMS/APMS and PCTMS, Primary Care , CASTLE ST ,2413869," 87,557.85 ",BD000003878,
Department of Health,NHS England,31/01/2014,GPMS/APMS and PCTMS, Primary Care , CASTLEFOROAD MEDICAL PRACTICE ,2226448,"-50,599.50 ",WAK000001778,
Department of Health,NHS England,31/01/2014,GPMS/APMS and PCTMS, Primary Care , CASTLEFOROAD MEDICAL PRACTICE ,2226449," 105,669.20 ",WAK000001779,
Department of Health,NHS England,31/01/2014,GPMS/APMS and PCTMS, Primary Care , CASTLEGATE SURGERY COCKERMOUTH ,2340380," 97,470.18 ",CU000003467,
Department of Health,NHS England,31/01/2014,GPMS/APMS and PCTMS, Primary Care , CASTLEGATE SURGERY HERTFORD ,2414513," 56,143.76 ",HT000006067,
Department of Health,NHS England,31/01/2014,GPMS/APMS and PCTMS, Primary Care , CASTLEHEAD MEDICAL CENTRE ,2340384," 59,766.63 ",CU000003469,
Department of Health,NHS England,31/01/2014,GPMS/APMS and PCTMS, Primary Care , CASTLETON HEALTH CENTRE ,2384209," 87,366.10 ",ROC000002273,
Department of Health,NHS England,31/01/2014,GPMS/APMS and PCTMS, Primary Care , CASTLETON ROAD HEALTH CENTRE ,2356062," 28,971.97 ",LNB000002858,
Department of Health,NHS England,31/01/2014,GPMS/APMS and PCTMS, Primary Care , CATER STREET SURGERY ,2243661," 45,819.07 ",BD000003718,
Department of Health,NHS England,31/01/2014,GPMS/APMS and PCTMS, Primary Care , CATHEDRAL MEDICAL CENTRE ,2256359," 72,517.81 ",CB000005018,
Department of Health,NHS England,31/01/2014,GPMS/APMS and PCTMS, Primary Care , CATHEDRAL MEDICAL GROUP ,2406494," 30,091.08 ",TW000006732,
Department of Health,NHS England,31/01/2014,GPMS/APMS and PCTMS, Primary Care , CATHEDRAL MEDICAL GROUP ,2230804," 105,780.36 ",TW000006234,
Department of Health,NHS England,31/01/2014,GPMS/APMS and PCTMS, Primary Care , CATHERINE STREET SURGERY ,2356088," 25,308.71 ",CU000003471,
Department of Health,NHS England,31/01/2014,GPMS/APMS and PCTMS, Primary Care , CATOR MEDICAL CENTRE ,2278661,"-29,371.02 ",LNT000002294,
Department of Health,NHS England,31/01/2014,GPMS/APMS and PCTMS, Primary Care , CATOR MEDICAL CENTRE ,2292358," 50,487.04 ",LNT000002295,
Department of Health,NHS England,31/01/2014,GPMS/APMS and PCTMS, Primary Care , CATTERICK VILLAGE SURGERY ,2227590," 55,212.91 ",YN000004755,
Department of Health,NHS England,31/01/2014,GPMS/APMS and PCTMS, Primary Care , CAUSEWAY MEDICAL CENTRE ,2211719," 52,750.62 ",CH000004942,
Department of Health,NHS England,31/01/2014,GPMS/APMS and PCTMS, Primary Care , CAVENDISH HEALTH CENTRE ,2231108," 61,609.07 ",LNJ000002902,
Department of Health,NHS England,31/01/2014,GPMS/APMS and PCTMS, Primary Care , CAVERSHAM GROUP PRACTICE ,2307790," 39,601.81 ",LND000003376,
Department of Health,NHS England,31/01/2014,GPMS/APMS and PCTMS, Primary Care , CAVERSHAM GROUP PRACTICE ,2429024," 132,663.86 ",LND000003486,
Department of Health,NHS England,31/01/2014,GPMS/APMS and PCTMS, Primary Care , CAXTON SURGERY ,2356207," 107,937.66 ",SA000003727,
Department of Health,NHS England,31/01/2014,GPMS/APMS and PCTMS, Primary Care , CCA CARE PARTNERSHIP ,2211721," 171,863.41 ",CH000004944,
Department of Health,NHS England,31/01/2014,GPMS/APMS and PCTMS, Primary Care , CECIL LOBO ,2226810,"-105,826.36 ",LNA000004399,
Department of Health,NHS England,31/01/2014,GPMS/APMS and PCTMS, Primary Care , CECIL LOBO ,2243848," 244,005.76 ",LNA000004400,
Department of Health,NHS England,31/01/2014,GPMS/APMS and PCTMS, Primary Care , CEDAR BROOK PRACTICE ,2211220,"-103,426.99 ",LNK000001338,
Department of Health,NHS England,31/01/2014,GPMS/APMS and PCTMS, Primary Care , CEDAR BROOK PRACTICE ,2211221," 191,238.27 ",LNK000001339,
Department of Health,NHS England,31/01/2014,GPMS/APMS and PCTMS, Primary Care , CEDAR MEDICAL PRACTICE ,2411141," 58,194.18 ",KHU000004608,
Department of Health,NHS England,31/01/2014,GPMS/APMS and PCTMS, Primary Care , CEDAR PRACTICE ,2355844," 72,173.66 ",LNA000004541,
Department of Health,NHS England,31/01/2014,GPMS/APMS and PCTMS, Primary Care , CEDARS MEDICAL CENTRE ,2306861,"-42,023.75 ",CH000005263,
Department of Health,NHS England,31/01/2014,GPMS/APMS and PCTMS, Primary Care , CEDARS MEDICAL CENTRE ,2320297," 44,469.07 ",LNK000001421,
Department of Health,NHS England,31/01/2014,GPMS/APMS and PCTMS, Primary Care , CEDARS MEDICAL CENTRE ,2166265," 49,100.93 ",CH000004828,
Department of Health,NHS England,31/01/2014,GPMS/APMS and PCTMS, Primary Care , CEDARS MEDICAL CENTRE ,2317841," 75,153.71 ",CH000005264,
Department of Health,NHS England,31/01/2014,GPMS/APMS and PCTMS, Primary Care , CEDARS MEDICAL GROUP ,2227025,"-59,256.89 ",DR000003429,
Department of Health,NHS England,31/01/2014,GPMS/APMS and PCTMS, Primary Care , CEDARS MEDICAL GROUP ,2227026," 115,779.51 ",DR000003430,
Department of Health,NHS England,31/01/2014,GPMS/APMS and PCTMS, Primary Care , CEDARS SURGERY ,2279016," 63,518.20 ",KC000012114,
Department of Health,NHS England,31/01/2014,GPMS/APMS and PCTMS, Primary Care , CEDARS SURGERY MAIDENHEAD ,2338952," 80,288.28 ",BE000004699,
Department of Health,NHS England,31/01/2014,GPMS/APMS and PCTMS, Primary Care , CEDARS SURGERY WESTON MARE ,2228920," 56,267.02 ",BRS000005711,
Department of Health,NHS England,31/01/2014,Establishment, NHS England Running Costs , CENTERPRISE INTERNATIONAL LTD ,2242773," 81,100.00 ",90144580 ,
Department of Health,NHS England,31/01/2014,Services from other NHS bodies, Public Health , CENTRAL & NORTH WEST LONDON NHS FOUNDATION TRUST ,2466646,"-25,578.00 ",C0004213,
Department of Health,NHS England,31/01/2014,Services from other NHS bodies, Health & Justice , CENTRAL & NORTH WEST LONDON NHS FOUNDATION TRUST ,2222059," 28,872.00 ",S0512596,
Department of Health,NHS England,31/01/2014,Services from other NHS bodies, Health & Justice , CENTRAL & NORTH WEST LONDON NHS FOUNDATION TRUST ,2222789," 37,357.00 ",S0512598,
Department of Health,NHS England,31/01/2014,Services from other NHS bodies, Health & Justice , CENTRAL & NORTH WEST LONDON NHS FOUNDATION TRUST ,2221878," 57,740.00 ",SO512595,
Department of Health,NHS England,31/01/2014,General Dental services and personal dental services, Secondary and Community Dental Care , CENTRAL & NORTH WEST LONDON NHS FOUNDATION TRUST ,2409786," 144,931.00 ",S0512671,
Department of Health,NHS England,31/01/2014,Services from other NHS bodies, Health & Justice , CENTRAL & NORTH WEST LONDON NHS FOUNDATION TRUST ,2332279," 292,790.00 ",S0512673,
Department of Health,NHS England,31/01/2014,Services from other NHS bodies, Public Health , CENTRAL & NORTH WEST LONDON NHS FOUNDATION TRUST ,2426470," 318,953.00 ",S0512672,
Department of Health,NHS England,31/01/2014,Services from other NHS bodies, Health & Justice , CENTRAL & NORTH WEST LONDON NHS FOUNDATION TRUST ,2221907," 609,367.00 ",SO512597,
Department of Health,NHS England,31/01/2014,Services from other NHS bodies, Specialised Commissioning , CENTRAL & NORTH WEST LONDON NHS FOUNDATION TRUST ,2165618," 3,276,269.00 ",S0512574,
Department of Health,NHS England,31/01/2014,GPMS/APMS and PCTMS, Primary Care , CENTRAL CLINIC ,2338766,"-28,268.40 ",DUD000001379,
Department of Health,NHS England,31/01/2014,GPMS/APMS and PCTMS, Primary Care , CENTRAL CLINIC ,2338769," 59,638.76 ",DUD000001380,
Department of Health,NHS England,31/01/2014,Services from other NHS bodies, Secondary and Community Dental Care , CENTRAL ESSEX COMMUNITY SERVICES CIC ,2368156," 39,613.00 ",CE4000004907,
Department of Health,NHS England,31/01/2014,Purchase of healthcare from non-NHS bodies, Public Health , CENTRAL ESSEX COMMUNITY SERVICES CIC ,2368156," 438,600.00 ",CE4000004907,
Department of Health,NHS England,31/01/2014,Services from other NHS bodies, Public Health , CENTRAL LONDON COMMUNITY HEALTHCARE NHS TRUST ,2316897," 28,317.00 ",N0023350,
Department of Health,NHS England,31/01/2014,Services from other NHS bodies, Other , CENTRAL LONDON COMMUNITY HEALTHCARE NHS TRUST ,2316660," 32,909.00 ",N0022611,
Department of Health,NHS England,31/01/2014,Services from other NHS bodies, Other , CENTRAL LONDON COMMUNITY HEALTHCARE NHS TRUST ,2331480," 32,909.00 ",N0023347,
Department of Health,NHS England,31/01/2014,Services from other NHS bodies, Public Health , CENTRAL LONDON COMMUNITY HEALTHCARE NHS TRUST ,2304779," 45,002.00 ",N0022613,
Department of Health,NHS England,31/01/2014,Services from other NHS bodies, Public Health , CENTRAL LONDON COMMUNITY HEALTHCARE NHS TRUST ,2316879," 45,002.00 ",N0023348,
Department of Health,NHS England,31/01/2014,Services from other NHS bodies, Other , CENTRAL LONDON COMMUNITY HEALTHCARE NHS TRUST ,2316658," 77,479.36 ",N0022612,
Department of Health,NHS England,31/01/2014,Services from other NHS bodies, Secondary and Community Dental Care , CENTRAL LONDON COMMUNITY HEALTHCARE NHS TRUST ,2369079," 83,111.22 ",N0022609,
Department of Health,NHS England,31/01/2014,Services from other NHS bodies, Public Health , CENTRAL LONDON COMMUNITY HEALTHCARE NHS TRUST ,2331332," 117,851.51 ",N0022614,
Department of Health,NHS England,31/01/2014,Services from other NHS bodies, Public Health , CENTRAL LONDON COMMUNITY HEALTHCARE NHS TRUST ,2331331," 169,243.90 ",N0022616,
Department of Health,NHS England,31/01/2014,Services from other NHS bodies, Public Health , CENTRAL LONDON COMMUNITY HEALTHCARE NHS TRUST ,2474402," 409,590.00 ",N0022617,
Department of Health,NHS England,31/01/2014,Services from other NHS bodies, Secondary and Community Dental Care , CENTRAL LONDON COMMUNITY HEALTHCARE NHS TRUST ,2291747," 421,851.00 ",N0023345,
Department of Health,NHS England,31/01/2014,Services from other NHS bodies, Secondary and Community Dental Care , CENTRAL LONDON COMMUNITY HEALTHCARE NHS TRUST ,2332252," 421,851.00 ",N0022608,
Department of Health,NHS England,31/01/2014,Services from other NHS bodies, Health & Justice , CENTRAL LONDON COMMUNITY HEALTHCARE NHS TRUST ,2221616," 682,452.00 ",N0022939,
Department of Health,NHS England,31/01/2014,Services from other NHS bodies, Public Health , CENTRAL LONDON COMMUNITY HEALTHCARE NHS TRUST ,2291748," 1,159,817.00 ",N0023346,
Department of Health,NHS England,31/01/2014,Services from other NHS bodies, Public Health , CENTRAL LONDON COMMUNITY HEALTHCARE NHS TRUST ,2466161," 1,159,817.00 ",N0022610,
Department of Health,NHS England,31/01/2014,General Dental services and personal dental services, Secondary and Community Dental Care , CENTRAL MANCHESTER UNIVERSITY HOSPITALS NHS FOUNDATION TRUST ,2255052,"-189,328.00 ",925400 ,
Department of Health,NHS England,31/01/2014,Services from other NHS bodies, Specialised Commissioning , CENTRAL MANCHESTER UNIVERSITY HOSPITALS NHS FOUNDATION TRUST ,2196101," 27,813.00 ",219316 ,
Department of Health,NHS England,31/01/2014,Services from other NHS bodies, Specialised Commissioning , CENTRAL MANCHESTER UNIVERSITY HOSPITALS NHS FOUNDATION TRUST ,2196118," 27,953.00 ",219312 ,
Department of Health,NHS England,31/01/2014,Services from other NHS bodies, Health & Justice , CENTRAL MANCHESTER UNIVERSITY HOSPITALS NHS FOUNDATION TRUST ,2395512," 28,782.00 ",224631 ,
Department of Health,NHS England,31/01/2014,Services from other NHS bodies, Specialised Commissioning , CENTRAL MANCHESTER UNIVERSITY HOSPITALS NHS FOUNDATION TRUST ,2242090," 30,405.00 ",219313 ,
Department of Health,NHS England,31/01/2014,Services from other NHS bodies, Specialised Commissioning , CENTRAL MANCHESTER UNIVERSITY HOSPITALS NHS FOUNDATION TRUST ,2196094," 32,160.00 ",219314 ,
Department of Health,NHS England,31/01/2014,Services from other NHS bodies, Public Health , CENTRAL MANCHESTER UNIVERSITY HOSPITALS NHS FOUNDATION TRUST ,2368362," 35,888.00 ",221699 ,
Department of Health,NHS England,31/01/2014,Services from other NHS bodies, Specialised Commissioning , CENTRAL MANCHESTER UNIVERSITY HOSPITALS NHS FOUNDATION TRUST ,2196108," 52,027.00 ",219318 ,
Department of Health,NHS England,31/01/2014,General Dental services and personal dental services, Secondary and Community Dental Care , CENTRAL MANCHESTER UNIVERSITY HOSPITALS NHS FOUNDATION TRUST ,2254631," 71,630.00 ",215901 ,
Department of Health,NHS England,31/01/2014,Services from other NHS bodies, Specialised Commissioning , CENTRAL MANCHESTER UNIVERSITY HOSPITALS NHS FOUNDATION TRUST ,2304404," 71,803.00 ",222608 ,
Department of Health,NHS England,31/01/2014,General Dental services and personal dental services, Secondary and Community Dental Care , CENTRAL MANCHESTER UNIVERSITY HOSPITALS NHS FOUNDATION TRUST ,2395511," 75,309.00 ",224628 ,
Department of Health,NHS England,31/01/2014,General Dental services and personal dental services, Secondary and Community Dental Care , CENTRAL MANCHESTER UNIVERSITY HOSPITALS NHS FOUNDATION TRUST ,2254756," 80,888.00 ",210644 ,
Department of Health,NHS England,31/01/2014,General Dental services and personal dental services, Secondary and Community Dental Care , CENTRAL MANCHESTER UNIVERSITY HOSPITALS NHS FOUNDATION TRUST ,2254780," 80,888.00 ",219236 ,
Department of Health,NHS England,31/01/2014,General Dental services and personal dental services, Secondary and Community Dental Care , CENTRAL MANCHESTER UNIVERSITY HOSPITALS NHS FOUNDATION TRUST ,2254157," 82,431.00 ",209645 ,
Department of Health,NHS England,31/01/2014,General Dental services and personal dental services, Secondary and Community Dental Care , CENTRAL MANCHESTER UNIVERSITY HOSPITALS NHS FOUNDATION TRUST ,2254376," 82,431.00 ",213926 ,
Department of Health,NHS England,31/01/2014,General Dental services and personal dental services, Secondary and Community Dental Care , CENTRAL MANCHESTER UNIVERSITY HOSPITALS NHS FOUNDATION TRUST ,2303492," 82,431.00 ",211562 ,
Department of Health,NHS England,31/01/2014,Services from other NHS bodies, Specialised Commissioning , CENTRAL MANCHESTER UNIVERSITY HOSPITALS NHS FOUNDATION TRUST ,2316548," 83,332.00 ",224000 ,
Department of Health,NHS England,31/01/2014,Services from other NHS bodies, Specialised Commissioning , CENTRAL MANCHESTER UNIVERSITY HOSPITALS NHS FOUNDATION TRUST ,2331153," 100,300.00 ",220912 ,
Department of Health,NHS England,31/01/2014,Services from other NHS bodies, Public Health , CENTRAL MANCHESTER UNIVERSITY HOSPITALS NHS FOUNDATION TRUST ,2427707," 101,444.00 ",224627 ,
Department of Health,NHS England,31/01/2014,General Dental services and personal dental services, Secondary and Community Dental Care , CENTRAL MANCHESTER UNIVERSITY HOSPITALS NHS FOUNDATION TRUST ,2303460," 247,293.00 ",207236 ,
Department of Health,NHS England,31/01/2014,Services from other NHS bodies, Other , CENTRAL MANCHESTER UNIVERSITY HOSPITALS NHS FOUNDATION TRUST ,2474700," 294,238.00 ",224595 ,
Department of Health,NHS England,31/01/2014,Services from other NHS bodies, Specialised Commissioning , CENTRAL MANCHESTER UNIVERSITY HOSPITALS NHS FOUNDATION TRUST ,2207472," 369,895.00 ",215621 ,
Department of Health,NHS England,31/01/2014,Services from other NHS bodies, Other , CENTRAL MANCHESTER UNIVERSITY HOSPITALS NHS FOUNDATION TRUST ,2274580," 415,446.00 ",221653 ,
Department of Health,NHS England,31/01/2014,Services from other NHS bodies, Specialised Commissioning , CENTRAL MANCHESTER UNIVERSITY HOSPITALS NHS FOUNDATION TRUST ,2207930," 833,129.00 ",219791 ,
Department of Health,NHS England,31/01/2014,Services from other NHS bodies, Specialised Commissioning , CENTRAL MANCHESTER UNIVERSITY HOSPITALS NHS FOUNDATION TRUST ,2207538," 928,239.00 ",216716 ,
Department of Health,NHS England,31/01/2014,Services from other NHS bodies, Secondary and Community Dental Care , CENTRAL MANCHESTER UNIVERSITY HOSPITALS NHS FOUNDATION TRUST ,2381328," 1,142,760.00 ",224645 ,
Department of Health,NHS England,31/01/2014,Services from other NHS bodies, Other , CENTRAL MANCHESTER UNIVERSITY HOSPITALS NHS FOUNDATION TRUST ,2289792," 3,739,010.00 ",220871 ,
Department of Health,NHS England,31/01/2014,Services from other NHS bodies, Specialised Commissioning , CENTRAL MANCHESTER UNIVERSITY HOSPITALS NHS FOUNDATION TRUST ,2369201," 26,189,989.00 ",224644 ,
Department of Health,NHS England,31/01/2014,GPMS/APMS and PCTMS, Primary Care , CENTRAL MEDICAL CENTRE ,2231315," 69,425.54 ",LNP000004987,
Department of Health,NHS England,31/01/2014,GPMS/APMS and PCTMS, Primary Care , CENTRAL PARK SURGERY ,2396882," 33,201.78 ",LA000007834,
Department of Health,NHS England,31/01/2014,GPMS/APMS and PCTMS, Primary Care , CENTRAL SURGERY BARTON HUMBER ,2411143," 140,191.46 ",KHU000004610,
Department of Health,NHS England,31/01/2014,GPMS/APMS and PCTMS, Primary Care , CENTRAL SURGERY RUGBY ,2396252,"-27,282.44 ",WA000003543,
Department of Health,NHS England,31/01/2014,GPMS/APMS and PCTMS, Primary Care , CENTRAL SURGERY RUGBY ,2406181," 157,220.13 ",WA000003544,
Department of Health,NHS England,31/01/2014,Purchase of healthcare from non-NHS bodies, Specialised Commissioning , CENTRE FOR REPRODUCTIVE & GENETIC HEALTH ,2276012," 66,226.25 ",189257 ,
Department of Health,NHS England,31/01/2014,GPMS/APMS and PCTMS, Primary Care , CENTRE PRACTICE (THE) ,2355929," 117,931.40 ",SO000011128,
Department of Health,NHS England,31/01/2014,GPMS/APMS and PCTMS, Primary Care , CERNE ABBAS SURGERY ,2222671," 63,732.10 ",DO000004552,
Department of Health,NHS England,31/01/2014,GPMS/APMS and PCTMS, Primary Care , CESTRIA HEALTH CENTRE ,2227027,"-120,739.77 ",DR000003431,
Department of Health,NHS England,31/01/2014,GPMS/APMS and PCTMS, Primary Care , CESTRIA HEALTH CENTRE ,2243896," 252,557.84 ",DR000003432,
Department of Health,NHS England,31/01/2014,Premises, NHS England Running Costs , CGI IT UK LTD ,2405969," 28,744.96 ",GB2460006259,
Department of Health,NHS England,31/01/2014,Premises, NHS England Running Costs , CGI IT UK LTD ,2183799," 29,612.83 ",GB2460005621,
Department of Health,NHS England,31/01/2014,Consultancy services, Social Care , CGI IT UK LTD ,2316445," 56,302.12 ",GB2460005622,
Department of Health,NHS England,31/01/2014,GPMS/APMS and PCTMS, Primary Care , CH MEDICAL ,2222651," 70,480.69 ",GMK000002460,
Department of Health,NHS England,31/01/2014,GPMS/APMS and PCTMS, Primary Care , CHADSFIELD MEDICAL PRACTICE ,2395894," 69,354.41 ",SPT000001829,
Department of Health,NHS England,31/01/2014,GPMS/APMS and PCTMS, Primary Care , CHADWELL HEATH HEALTH CENTRE ,2337194," 47,496.77 ",LNC000003202,
Department of Health,NHS England,31/01/2014,GPMS/APMS and PCTMS, Primary Care , CHADWELL HEATH SURGERY ,2227523," 65,072.84 ",LNB000002746,
Department of Health,NHS England,31/01/2014,GPMS/APMS and PCTMS, Primary Care , CHAGFORD HEALTH CENTRE ,2467169," 34,448.61 ",DN000008898,
Department of Health,NHS England,31/01/2014,GPMS/APMS and PCTMS, Primary Care , CHAGGAR ,2356321," 77,359.63 ",WBH000001826,
Department of Health,NHS England,31/01/2014,GPMS/APMS and PCTMS, Primary Care , CHAJED G C & PARTNERS ,2428764," 65,563.63 ",EX000011378,
Department of Health,NHS England,31/01/2014,GPMS/APMS and PCTMS, Primary Care , CHALABI & KHAN ,2226811,"-77,784.09 ",LNA000004401,
Department of Health,NHS England,31/01/2014,GPMS/APMS and PCTMS, Primary Care , CHALABI & KHAN ,2243849," 148,320.07 ",LNA000004402,
Department of Health,NHS England,31/01/2014,GPMS/APMS and PCTMS, Primary Care , CHALFONT ROAD SURGERY ,2414947," 40,488.20 ",LNE000003784,
Department of Health,NHS England,31/01/2014,GPMS/APMS and PCTMS, Primary Care , CHALKHILL FAMILY PRACTICE ,2356317," 63,707.02 ",LNL000003989,
Department of Health,NHS England,31/01/2014,GPMS/APMS and PCTMS, Primary Care , CHANA & PARTNERS ,2319942,"-45,067.83 ",STL000003775,
Department of Health,NHS England,31/01/2014,GPMS/APMS and PCTMS, Primary Care , CHANA & PARTNERS ,2319943," 55,634.17 ",STL000003776,
Department of Health,NHS England,31/01/2014,GPMS/APMS and PCTMS, Primary Care , CHANCERY LANE PRACTICE ,2406182," 46,833.23 ",WA000003546,
Department of Health,NHS England,31/01/2014,GPMS/APMS and PCTMS, Primary Care , CHAND NARULA & SPOONER ,2244135," 31,492.23 ",DE000006318,
Department of Health,NHS England,31/01/2014,GPMS/APMS and PCTMS, Primary Care , CHANDRA REDDY P ,2226562," 30,998.93 ",EX000010868,
Department of Health,NHS England,31/01/2014,GPMS/APMS and PCTMS, Primary Care , CHANDRASHEKHAR & PARTNER ,2319173,"-48,397.67 ",LIP000004672,
Department of Health,NHS England,31/01/2014,GPMS/APMS and PCTMS, Primary Care , CHANDRASHEKHAR & PARTNER ,2319174," 65,406.53 ",LIP000004673,
Department of Health,NHS England,31/01/2014,GPMS/APMS and PCTMS, Primary Care , CHANDY J ,2227028,"-60,289.35 ",DR000003433,
Department of Health,NHS England,31/01/2014,Prescribing costs, Primary Care , CHANDY J ,2227029," 1,107.67 ",DR000003434,
Department of Health,NHS England,31/01/2014,GPMS/APMS and PCTMS, Primary Care , CHANDY J ,2227029," 115,901.12 ",DR000003434,
Department of Health,NHS England,31/01/2014,GPMS/APMS and PCTMS, Primary Care , CHANG & PARTNERS ,2339359," 58,233.37 ",LNN000002928,
Department of Health,NHS England,31/01/2014,GPMS/APMS and PCTMS, Primary Care , CHANNEL VIEW SURGERY TEIGNMOUTH ,2455184," 80,387.65 ",DN000008900,
Department of Health,NHS England,31/01/2014,GPMS/APMS and PCTMS, Primary Care , CHAPEL ROW SURGERY ,2432756," 27,349.12 ",BE000004948,
Department of Health,NHS England,31/01/2014,GPMS/APMS and PCTMS, Primary Care , CHAPEL ROW SURGERY ,2356011," 59,534.07 ",BE000004701,
Department of Health,NHS England,31/01/2014,GPMS/APMS and PCTMS, Primary Care , CHAPEL STREET MEDICAL PRACTICE ASHTON LYNE ,2359204," 45,439.70 ",GMK000002595,
Department of Health,NHS England,31/01/2014,GPMS/APMS and PCTMS, Primary Care , CHAPEL STREET MEDICAL PRACTICE DERBY ,2337202," 96,827.47 ",DE000006514,
Department of Health,NHS England,31/01/2014,GPMS/APMS and PCTMS, Primary Care , CHAPEL STREET SURGERY NEWHAVEN ,2340520," 50,605.11 ",TE000005628,
Department of Health,NHS England,31/01/2014,GPMS/APMS and PCTMS, Primary Care , CHARD ROAD SURGERY ,2455351," 71,967.15 ",DN000009074,
Department of Health,NHS England,31/01/2014,GPMS/APMS and PCTMS, Primary Care , CHARING SURGERY ,2278570," 67,906.97 ",KC000011702,
Department of Health,NHS England,31/01/2014,GPMS/APMS and PCTMS, Primary Care , CHARLBURY MEDCIAL CENTRE ,2413588," 40,324.24 ",OX000003978,
Department of Health,NHS England,31/01/2014,GPMS/APMS and PCTMS, Primary Care , CHARLESTOWN MEDICAL PRACTICE ,2359556," 58,819.12 ",MAN000002776,
Department of Health,NHS England,31/01/2014,GPMS/APMS and PCTMS, Primary Care , CHARLTON & PARTNERS ,2227022,"-77,365.65 ",DR000003426,
Department of Health,NHS England,31/01/2014,GPMS/APMS and PCTMS, Primary Care , CHARLTON & PARTNERS ,2227023," 151,489.65 ",DR000003427,
Department of Health,NHS England,31/01/2014,GPMS/APMS and PCTMS, Primary Care , CHARLTON HILL SURGERY ,2337683,"-27,167.79 ",SO000011117,
Department of Health,NHS England,31/01/2014,GPMS/APMS and PCTMS, Primary Care , CHARLTON HILL SURGERY ,2337684," 98,650.47 ",SO000011118,
Department of Health,NHS England,31/01/2014,GPMS/APMS and PCTMS, Primary Care , CHARLTON HOUSE MEDICAL CENTRE ,2429000," 60,959.78 ",LNE000003780,
Department of Health,NHS England,31/01/2014,GPMS/APMS and PCTMS, Primary Care , CHARLTON MEDICAL CENTRE ,2383130," 84,345.88 ",SA000003810,
Department of Health,NHS England,31/01/2014,GPMS/APMS and PCTMS, Primary Care , CHARNOCK HEALTH PRIMARY CARE CENTRE ,2412423," 40,971.87 ",SHE000003198,
Department of Health,NHS England,31/01/2014,GPMS/APMS and PCTMS, Primary Care , CHARTERHOUSE SURGERY ,2292357," 64,944.82 ",LNT000002289,
Department of Health,NHS England,31/01/2014,GPMS/APMS and PCTMS, Primary Care , CHASTLETON MEDICAL GROUP ,2406390," 125,597.79 ",DR000003680,
Department of Health,NHS England,31/01/2014,GPMS/APMS and PCTMS, Primary Care , CHATHAM STREET SURGERY ,2225539," 60,312.88 ",BE000004575,
Department of Health,NHS England,31/01/2014,GPMS/APMS and PCTMS, Primary Care , CHATTERJEE PC ,2359559," 72,539.24 ",MAN000002780,
Department of Health,NHS England,31/01/2014,GPMS/APMS and PCTMS, Primary Care , CHATURVEDI K K ,2243757," 34,122.22 ",EX000010860,
Department of Health,NHS England,31/01/2014,GPMS/APMS and PCTMS, Primary Care , CHAWLA & PARTNER ,2341974," 42,625.34 ",WBH000001820,
Department of Health,NHS England,31/01/2014,GPMS/APMS and PCTMS, Primary Care , CHAWTON HOUSE SURGERY ,2337686," 63,283.99 ",SO000011120,
Department of Health,NHS England,31/01/2014,GPMS/APMS and PCTMS, Primary Care , CHAWTON PARK SURGERY ,2337688," 85,794.56 ",SO000011122,
Department of Health,NHS England,31/01/2014,GPMS/APMS and PCTMS, Primary Care , CHEADLE HULME HEALTH CENTRE - DR SEABROOK ,2227778," 104,224.64 ",SPT000001738,
Department of Health,NHS England,31/01/2014,GPMS/APMS and PCTMS, Primary Care , CHEADLE HULME HEALTH CENTRE - DR SHIPSTON ,2227781," 85,435.55 ",SPT000001740,
Department of Health,NHS England,31/01/2014,GPMS/APMS and PCTMS, Primary Care , CHEADLE MEDICAL PRACTICE ,2384451," 95,405.15 ",SPT000001825,
Department of Health,NHS England,31/01/2014,GPMS/APMS and PCTMS, Primary Care , CHEAM FAMILY PRACTICE ,2244380," 100,436.81 ",LNP000004981,
Department of Health,NHS England,31/01/2014,GPMS/APMS and PCTMS, Primary Care , CHEDDAR MEDICAL CENTRE ROYNON WAY CHEDDAR ,2411867," 77,429.30 ",SM000002848,
Department of Health,NHS England,31/01/2014,GPMS/APMS and PCTMS, Primary Care , CHELFORD SURGERY ,2211715," 53,838.29 ",CH000004938,
Department of Health,NHS England,31/01/2014,GPMS/APMS and PCTMS, Primary Care , CHELLS WAY SURGERY ,2414505," 106,864.54 ",HT000006059,
Department of Health,NHS England,31/01/2014,Services from other NHS bodies, Secondary and Community Dental Care , CHELSEA AND WESTMINSTER HOSPITAL NHS FOUNDATION TRUST ,2243474," 327,244.00 ",8014003903 ,
Department of Health,NHS England,31/01/2014,Services from other NHS bodies, Specialised Commissioning , CHELSEA AND WESTMINSTER HOSPITAL NHS FOUNDATION TRUST ,2222929," 8,488,704.00 ",8014003902 ,
Department of Health,NHS England,31/01/2014,GPMS/APMS and PCTMS, Primary Care , CHELSEA PRACTICE ,2231106," 33,235.58 ",LNJ000002900,
Department of Health,NHS England,31/01/2014,GPMS/APMS and PCTMS, Primary Care , CHELSFIELD SURGERY ,2278655," 61,861.16 ",LNT000002291,
Department of Health,NHS England,31/01/2014,GPMS/APMS and PCTMS, Primary Care , CHELSTON HALL SURGERY ,2339813," 62,239.47 ",DN000008406,
Department of Health,NHS England,31/01/2014,GPMS/APMS and PCTMS, Primary Care , CHERITON BISHOP SURGERY ,2455174," 47,489.45 ",DN000008888,
